Nominativi dei beneficiari;Data mandato;Natura economica;Importo;Descrizione mandato;Numero mandato;TITNO_BL;2� livello;3� livello;4� livello;5� livello
ELEMEDIA S.P.A.;17/07/2018;Accesso a banche dati e a pubblicazioni on line;179,99;ABBONAMENTO AL QUOTIDIANO DIGITALE IL TIRRENO ON LINE;2373;1;3;2;5;3
MONRIF NET S.R.L.;07/08/2018;Accesso a banche dati e a pubblicazioni on line;179,99;Liquidazione Fattura Nr. PA00224/2018  del 17/07/2018 (di cui Split per euro 6,92) - SERVIZIO DI ABBONAMENTO AL QUOTIDIANO DIGITALE LA NAZIONE ON LINE - DETERMINA A CONTRARRE E DI AFFIDAMENTO;2713;1;3;2;5;3
ACQUE S.P.A.;03/07/2018;Acqua;957,81;Liquidazione Fattura Nr. 6018012000007480  del 21/06/2018 (di cui Split per euro 87,07) - FORNITURA ACQUA RSA;2337;1;3;2;5;5
ACQUE S.P.A.;03/07/2018;Acqua;338,17;Liquidazione Fattura Nr. 6018012000007571  del 22/06/2018 (di cui Split per euro 30,74) - Fornitura acqua scuola infanzia Vinci;2304;1;3;2;5;5
ACQUE S.P.A.;03/07/2018;Acqua;475,41;Liquidazione Fattura Nr. 6018012000007669  del 25/06/2018 (di cui Split per euro 43,22) - FORNITURA ACQUA POTABILE PALAZZINA UZZIELLI;2316;1;3;2;5;5
ACQUE S.P.A.;25/07/2018;Acqua;78,23;liquidazione fattura n.6018012000007178 del 14/06/2018;2641;1;3;2;5;5
ACQUE S.P.A.;25/07/2018;Acqua;491,79;Liquidazione Fattura Nr. 6018012000007811  del 27/06/2018 (di cui Split per euro 44,71) - Fornitura acqua Nido Infanzia;2646;1;3;2;5;5
ACQUE S.P.A.;25/07/2018;Acqua;153,35;Liquidazione Fattura Nr. 6018012000007862  del 28/06/2018 (di cui Split per euro 13,94) - Fornitura acqua Casa Natale;2640;1;3;2;5;5
ACQUE S.P.A.;16/08/2018;Acqua;89,28;Liquidazione Fattura Nr. 6018012000008252  del 11/07/2018 (di cui Split per euro 6,50) - FORNITURA ACQUA SCUOLA PRIMARIA VINCI;3425;1;3;2;5;5
ACQUE S.P.A.;16/08/2018;Acqua;440,79;Liquidazione Fattura Nr. 6018012000008367  del 12/07/2018 (di cui Split per euro 40,07) - FORNITURA ACQUA SCUOLA PRIMARIA SPICCHIO;3426;1;3;2;5;5
ACQUE S.P.A.;06/09/2018;Acqua;367,08;Liquidazione Fattura Nr. 6018012000009521  del 10/08/2018 (di cui Split per euro 33,37) - FORNITURA ACQUA POTABILE SCUOLA INFANZIA SPICCHIO;3551;1;3;2;5;5
ACQUE S.P.A.;06/09/2018;Acqua;571,93;Liquidazione Fattura Nr. 6018012000009695  del 14/08/2018 (di cui Split per euro 51,99) - FORNITURA ACQUA POTABILE SCUOLA PRIMARIA SPICCHIO;3556;1;3;2;5;5
ACQUE S.P.A.;06/09/2018;Acqua;99,43;Liquidazione Fattura Nr. 6018012000009731  del 14/08/2018 (di cui Split per euro 9,04) - FORNITURA ACQUA POTABILE UFFICI COMUNALI;3546;1;3;2;5;5
ACQUE S.P.A.;06/09/2018;Acqua;284,70;Liquidazione Fattura Nr. 6018012000009834  del 17/08/2018 al netto di Nota: N. 09201600000312 del 12/02/2016 di 109,40,N. 6017012000015605 del 12/12/2017 di 278,29,N. 6018012000004503 del 13/04/2018 di 7,39 (di cui Split per euro 25,91) - F;3562;1;3;2;5;5
ACQUE S.P.A.;06/09/2018;Acqua;158,51;Liquidazione Fattura Nr. 6018012000009834  del 17/08/2018 al netto di Nota: N. 09201600000312 del 12/02/2016 di 109,40,N. 6017012000015605 del 12/12/2017 di 278,29,N. 6018012000004503 del 13/04/2018 di 7,39 (di cui Split per euro 45,05) - F;3561;1;3;2;5;5
ACQUE S.P.A.;06/09/2018;Acqua;291,67;Liquidazione Fattura Nr. 6018012000010089  del 22/08/2018 al netto di Nota: N. 09201600000327 del 12/02/2016 di 193,83,N. 6016012000007670 del 20/12/2016 di 197,55 (di cui Split per euro 44,14) - Fornitura acqua Scuola Infanzia Sovigliana;3550;1;3;2;5;5
ACQUE S.P.A.;06/09/2018;Acqua;274,86;Liquidazione Fattura Nr. 6018012000010125  del 22/08/2018 (di cui Split per euro 24,99) - FORNITURA ACQUA POTABILE VILLA REGHINI;3565;1;3;2;5;5
ACQUE S.P.A.;06/09/2018;Acqua;169,09;Liquidazione Fattura Nr. 6018012000010187  del 23/08/2018 (di cui Split per euro 15,37) - FORNITURA ACQUA MAGAZZINO COMUNALE;3547;1;3;2;5;5
ACQUE S.P.A.;18/09/2018;Acqua;937,63;Liquidazione Fattura Nr. 6018012000010202  del 24/08/2018 (di cui Split per euro 85,24) - FORNITURA ACQUA POTABILE RSA;3685;1;3;2;5;5
ACQUE S.P.A.;18/09/2018;Acqua;662,10;Liquidazione Fattura Nr. 6018012000010206  del 24/08/2018 (di cui Split per euro 60,19) - FORNITURA ACQUA POTABILE ROTATORIA VIA DEI MARTIRI;3682;1;3;2;5;5
ACQUE S.P.A.;18/09/2018;Acqua;15,31;Liquidazione Fattura Nr. 6018012000010243  del 24/08/2018 (di cui Split per euro 1,39) - FORNITURA ACQUA POTABILE PALAZZO COMUNALE;3670;1;3;2;5;5
ACQUE S.P.A.;18/09/2018;Acqua;73,00;Liquidazione Fattura Nr. 6018012000010244  del 24/08/2018 (di cui Split per euro 6,64) - FORNITURA ACQUA POTABILE BIBLIOTECA;3678;1;3;2;5;5
ACQUE S.P.A.;18/09/2018;Acqua;68,89;Liquidazione Fattura Nr. 6018012000010249  del 24/08/2018 (di cui Split per euro 6,26) - FORNITURA ACQUA POTABILE UFF.COMUNALI;3673;1;3;2;5;5
ACQUE S.P.A.;18/09/2018;Acqua;85,49;Liquidazione Fattura Nr. 6018012000010253  del 24/08/2018 (di cui Split per euro 7,77) - FORNITURA ACQUA POTABILE UFFICI COMUNALI;3672;1;3;2;5;5
ACQUE S.P.A.;18/09/2018;Acqua;35,37;Liquidazione Fattura Nr. 6018012000010254  del 24/08/2018 (di cui Split per euro 3,22) - FORNITURA ACQUA POTABILE COMUNE;3671;1;3;2;5;5
ACQUE S.P.A.;18/09/2018;Acqua;336,93;Liquidazione Fattura Nr. 6018012000010255  del 24/08/2018 (di cui Split per euro 30,63) - FORNITURA ACQUA POTABILE SCUOLA INFANZIA VINCI;3676;1;3;2;5;5
ACQUE S.P.A.;18/09/2018;Acqua;513,30;Liquidazione Fattura Nr. 6018012000010280  del 27/08/2018 (di cui Split per euro 46,66) - FORNITURA ACQUA POTABILE MUSEO;3680;1;3;2;5;5
ACQUE S.P.A.;18/09/2018;Acqua;176,35;Liquidazione Fattura Nr. 6018012000010301  del 27/08/2018 (di cui Split per euro 16,03) - FORNITURA ACQUA POTABILE PRIMARIA VINCI;3677;1;3;2;5;5
ACQUE S.P.A.;18/09/2018;Acqua;457,08;Liquidazione Fattura Nr. 6018012000010304  del 27/08/2018 (di cui Split per euro 41,55) - FORNITURA ACQUA POTABILE PALAZZINA UZIELLI;3679;1;3;2;5;5
ACQUE S.P.A.;18/09/2018;Acqua;8,27;Liquidazione Fattura Nr. 6018012000010306  del 27/08/2018 (di cui Split per euro 0,75) - FORNITURA ACQUA POTABILE AREA CAMPER;3683;1;3;2;5;5
ACQUE S.P.A.;18/09/2018;Acqua;43,31;Liquidazione Fattura Nr. 6018012000010307  del 27/08/2018 (di cui Split per euro 3,94) - FORNITURA ACQUA POTABILE TEATRO MISERICORDIA;3681;1;3;2;5;5
ACQUE S.P.A.;18/09/2018;Acqua;35,65;Liquidazione Fattura Nr. 6018012000010400  del 28/08/2018 (di cui Split per euro 3,24) - FORNITURA ACQUA POTABILE LOCALI EX MACELLI;3674;1;3;2;5;5
ACQUE S.P.A.;18/09/2018;Acqua;494,88;Liquidazione Fattura Nr. 6018012000010466  del 29/08/2018 (di cui Split per euro 44,99) - FORNITURA ACQUA POTABILE NIDO;3684;1;3;2;5;5
ACQUE S.P.A.;18/09/2018;Acqua;153,48;Liquidazione Fattura Nr. 6018012000010494  del 29/08/2018 (di cui Split per euro 13,95) - FORNITURA ACQUA POTABILE PER IMMOBILI E SERVIZI COMUNALI ANNO 2018 _ IMPEGNO DI SPESA PER ACQUE SPA;3675;1;3;2;5;5
AGENZIA PER LO SVILUPPO  EMPOLESE VALDESA S.P.A.;07/08/2018;Acquisto di servizi per altre spese per formazione e addestramento n.a.c.;280,00;"Liquidazione Fattura Nr. 82/03  del 02/07/2018 - PARTECIPAZIONE A CORSO DI FORMAZIONE DEL 28.06.2018 ""I PRIMI ADEMPIMENTI PER L'APPLICAZIONE DEL NUOVO CCNL"" - DETERMINA A CONTRARRE E DI AFFIDAMENTO";2707;1;3;2;4;999
TAMBURINI  GIONNI;18/07/2018;Altre prestazioni professionali e specialistiche n.a.c.;151,00;LIQUIDAZIONE FATTURA NR. FATTPA 12_18  DEL 16/04/2018 - VISITE MEDICINA DEL LAVORO;2402;1;3;2;11;999
TAMBURINI  GIONNI;18/07/2018;Altre prestazioni professionali e specialistiche n.a.c.;140,00;LIQUIDAZIONE FATTURA NR. FATTPA 14_18  DEL 27/04/2018 - VISITE MEDICINA DEL LAVORO;2403;1;3;2;11;999
TAMBURINI  GIONNI;18/07/2018;Altre prestazioni professionali e specialistiche n.a.c.;130,00;LIQUIDAZIONE FATTURA NR. FATTPA 17_18  DEL 31/05/2018 - VISITE MEDICINA DEL LAVORO;2404;1;3;2;11;999
MATINI  PARIDE;06/08/2018;Altre prestazioni professionali e specialistiche n.a.c.;700,00;LIQUIDAZIONE FATTURA NR. 20674  DEL 01/08/2018 - COMPENSO PER FORMAZIONE IN MATERIA PREVIDENZIALE E PENSIONISTICA AL SERVIZIO PERSONALE DELL'ENTE;2677;1;3;2;11;999
MIGLIORI MARIA TERESA;06/08/2018;Altre prestazioni professionali e specialistiche n.a.c.;360,00;LIQUIDAZIONE FATTURA NR. 206770  DEL 31/07/2018 - COMPENSO MEMBRO ESTERNO COMMISSIONE GIUDICATRICE CONCORSO ISTRUTTORE DIRETTIVO AMMINISTRATIVO D1;2678;1;3;2;11;999
ZUCCHI MARIA CRISTINA;06/08/2018;Altre prestazioni professionali e specialistiche n.a.c.;360,00;LIQUIDAZIONE FATTURA NR. 20468  DEL 26/07/2018 - COMPENSO MEMBRO ESTERNO  COMMISSIONE GIUDICATRICE CONCORSO PUBBLICO ISTRUTTORE DIRETTIVO AMMINISTRATIVO D1;2679;1;3;2;11;999
STUDIO PICCHI ASSOCIATO;07/08/2018;Altre prestazioni professionali e specialistiche n.a.c.;2.579,98;LIQUIDAZIONE FATTURA NR. 000035-2018-FATTURE  DEL 25/06/2018 (DI CUI SPLIT PER EURO 465,24) - AFFIDAMENTO SERVIZIO ELABORAZIONE PAGHE E CONTRIBUTI PERIODO 01/01/2018 -31/12/2018: DETERMINA A CONTRARRE E AGGIUDICAZIONE;2708;1;3;2;11;999
ECOMEDICA S.P.A.;17/08/2018;Altre prestazioni professionali e specialistiche n.a.c.;30,82;Liquidazione Fattura Nr. 39/P  del 30/05/2018 - PRESTAZIONI DIAGNOSTICHE;3452;1;3;2;11;999
CENTRO STUDI ENTI LOCALI S.R.L.;20/08/2018;Altre prestazioni professionali e specialistiche n.a.c.;750,00;Liquidazione Fattura Nr. 355/AE  del 30/06/2018 (di cui Split per euro 135,25) - Fattura vendita AE Split Pay;3503;1;3;2;11;999
CENTRO STUDI ENTI LOCALI S.R.L.;21/08/2018;Altre prestazioni professionali e specialistiche n.a.c.;1.525,00;Liquidazione Fattura Nr. 420/AE  del 30/06/2018 (di cui Split per euro 275,00) - Servizio Responsabile Protezione Dati. Regolamento UE 679/16;3508;1;3;2;11;999
LATINI  CLAUDIO;21/08/2018;Altre prestazioni professionali e specialistiche n.a.c.;570,96;LIQUIDAZIONE FATTURA PER SERVIZIO DI REDAZIONE DUVRI INERENTE L'APPALTO DEL SERVIZIO PULIZIA EDIFICI COMUNALI;3523;1;3;2;11;999
ASSOCIAZIONE CULTURALE IL PONTE;18/07/2018;Altre spese per contratti di servizio pubblico;6.135,97;Liquidazione Fattura Nr. 19  del 14/05/2018 - SERVIZIO CONCESSIONE SERVIZI EDUCATIVI PER L'INFANZIA E SERVIZI EXTRA - SCOLASTICI VILLA REGHINI MESI DI MARZO E APRILE 2018;2384;1;3;2;15;999
CO&SO EMPOLI - CONS. DI COOP. SOCIALI - SOCIETA' COOPERATIVA;18/07/2018;Altre spese per contratti di servizio pubblico;18.277,61;Liquidazione Fattura Nr. 000351-2C0  del 30/04/2018 (di cui Split per euro 870,36) - Fatt. regime sciss.pag.;2383;1;3;2;15;999
CO&SO EMPOLI - CONS. DI COOP. SOCIALI - SOCIETA' COOPERATIVA;18/07/2018;Altre spese per contratti di servizio pubblico;2.762,90;Liquidazione Fattura Nr. 000380-2C0  del 30/04/2018 - Fattura vendita - CONCESSIONE SERVIZI EDUCATIVI PER L'INFANZIA E EXTRASCOLASTICI PRESSO VILLA REGHINI MESE DI APRILE 2018;2385;1;3;2;15;999
CO&SO EMPOLI - CONS. DI COOP. SOCIALI - SOCIETA' COOPERATIVA;18/07/2018;Altre spese per contratti di servizio pubblico;2.762,90;Liquidazione Fattura Nr. 000417-2C0  del 31/05/2018 - SERVIZI INFANZIA E EXTRA-SCOLASTICI VILLA REGHINI MESE DI MAGGIO 2018;2386;1;3;2;15;999
CO&SO EMPOLI - CONS. DI COOP. SOCIALI - SOCIETA' COOPERATIVA;18/07/2018;Altre spese per contratti di servizio pubblico;4.515,30;"Liquidazione Fattura Nr. 000486-2C0 del 25/06/2018 - Fattura CO&SO per servizi front-office e didattica presso Biblioteca Leonardiana e sedi distaccate mese di maggio 2018
";2407;1;3;2;15;999
ESKIMO COOP. SOCIALE ONLUS;08/08/2018;Altre spese per contratti di servizio pubblico;4.438,25;Liquidazione Fattura Nr. FATTPA 47_18  del 30/04/2018 - Concessione servizi per infanzia ed extrascolastici villa Reghini mese di Aprile 2018;2735;1;3;2;15;999
ESKIMO COOP. SOCIALE ONLUS;08/08/2018;Altre spese per contratti di servizio pubblico;4.438,25;Liquidazione Fattura Nr. FATTPA 58_18  del 31/05/2018 - PROCEDURA NEGOZIATA SENZA PREVIA PUBBLICAZIONE DI BANDO DI GARA AI SENSI DELL'ART. 57 COMMA 5 LETT. B D.LGS. 163/2006 SVOLTA CON MODALIT� TELEMATICA PER LA RIPETIZIONE DI SERVIZI ANALO;2736;1;3;2;15;999
ESKIMO COOP. SOCIALE ONLUS;08/08/2018;Altre spese per contratti di servizio pubblico;4.438,25;Liquidazione Fattura Nr. FATTPA 77_18  del 30/06/2018 - PROCEDURA NEGOZIATA SENZA PREVIA PUBBLICAZIONE DI BANDO DI GARA AI SENSI DELL'ART. 57 COMMA 5 LETT. B D.LGS. 163/2006 SVOLTA CON MODALIT� TELEMATICA PER LA RIPETIZIONE DI SERVIZI ANALO;2737;1;3;2;15;999
CENTRO INTERNAZIONALE DI STUDI E DOCUMENTAZIONE LEONARDO DA VINCI C/O BIBLIOTECA;20/08/2018;Altre spese per contratti di servizio pubblico;20.000,00;Liquidazione Fattura Nr. 1 del 27/06/2018 - ACCONTO PER GESTIONE ESPOSIZIONE LEONARDO E LA PITTURA;3494;1;3;2;15;999
CO&SO EMPOLI - CONS. DI COOP. SOCIALI - SOCIETA' COOPERATIVA;20/08/2018;Altre spese per contratti di servizio pubblico;22.825,80;Liquidazione Fattura Nr. 000483-2C0  del 25/06/2018 - Fattura vendita;3492;1;3;2;15;999
CO&SO EMPOLI - CONS. DI COOP. SOCIALI - SOCIETA' COOPERATIVA;20/08/2018;Altre spese per contratti di servizio pubblico;1.157,29;Liquidazione Fattura Nr. 000484-2C0  del 25/06/2018 (di cui Split per euro 208,69) - Fatt. pulizie maggio 2018 - regime reverse charge;3493;1;3;2;15;999
CO&SO EMPOLI - CONS. DI COOP. SOCIALI - SOCIETA' COOPERATIVA;20/08/2018;Altre spese per contratti di servizio pubblico;4.189,97;Liquidazione Fattura Nr. 000485-2C0  del 25/06/2018 (di cui Split per euro 755,57) - Fatt. regime sciss.pag.;3497;1;3;2;15;999
CO&SO EMPOLI - CONS. DI COOP. SOCIALI - SOCIETA' COOPERATIVA;21/08/2018;Altre spese per contratti di servizio pubblico;25.372,57;Liquidazione Fattura Nr. 000455-2C0  del 31/05/2018 (di cui Split per euro 1.208,22) - Fatt. regime sciss.pag. - SERVIZIO SOSTEGNO HANDICAP NELL'AMBITO SCOLASTICO MESE DI MAGGIO 2018;3518;1;3;2;15;999
CO&SO EMPOLI - CONS. DI COOP. SOCIALI - SOCIETA' COOPERATIVA;21/08/2018;Altre spese per contratti di servizio pubblico;2.762,90;Liquidazione Fattura Nr. 000503-2C0  del 30/06/2018 - Fattura vendita - SERVIZI INFANZIA ED EXTRASCOLASTICI PRESSO VILLA REGHINI MESE DI GIUGNO 2018;3519;1;3;2;15;999
ESKIMO COOP. SOCIALE ONLUS;18/09/2018;Altre spese per contratti di servizio pubblico;4.438,25;Liquidazione Fattura Nr. FATTPA 95_18  del 31/07/2018 - SERVIZIO DI CONCESSIONE SERVIZI EDUCATIVI PER L'INFANZIA E SERVIZI EXTRA-SCOLASTICI VILLA REGHINI MESE DI LUGLIO 2018;3690;1;3;2;15;999
ASSOCIAZIONE CULTURALE IL PONTE;20/09/2018;Altre spese per contratti di servizio pubblico;6.135,97;Liquidazione Fattura Nr. 26  del 09/07/2018 - SERVIZIO CONCESSIONE SERVIZI EDUCATIVI PER L'INFANZIA E SERVIZI EXTRA-SCOLASTICI VILLA REGHINI MESI DI MAGGIO E GIUGNO 2018;3697;1;3;2;15;999
CO&SO EMPOLI - CONS. DI COOP. SOCIALI - SOCIETA' COOPERATIVA;20/09/2018;Altre spese per contratti di servizio pubblico;9.616,01;Liquidazione Fattura Nr. 000563-2C0  del 10/07/2018 (di cui Split per euro 457,91) - SERVIZIO SOSTEGNO HANDICAP SVOLTO NELL'AMBITO SCOLASTICO MESE DI GIUGNO 2018;3702;1;3;2;15;999
CO&SO EMPOLI - CONS. DI COOP. SOCIALI - SOCIETA' COOPERATIVA;20/09/2018;Altre spese per contratti di servizio pubblico;3.773,69;Liquidazione Fattura Nr. 000565-2C0  del 20/07/2018 (di cui Split per euro 179,70) - ASSISTENZA SPECIALISTICA DISABILI CENTRI ESTIVI GIUGNO 2018;3703;1;3;2;15;999
CO&SO EMPOLI - CONS. DI COOP. SOCIALI - SOCIETA' COOPERATIVA;24/09/2018;Altre spese per contratti di servizio pubblico;201,96;IVA Liquidazione Fattura Nr. 000371-2C0  del 30/04/2018 (di cui Split per euro 201,96) - Fatt. regime reverse charge;3732;1;3;2;15;999
CO&SO EMPOLI - CONS. DI COOP. SOCIALI - SOCIETA' COOPERATIVA;24/09/2018;Altre spese per contratti di servizio pubblico;3.979,00;"Liquidazione Fattura Nr. 000587-2C0 del 30/07/2018 - Fattura per servizi front-office e didattica presso Biblioteca Leonardiana e sedi distaccate- Giugno 2018
";3733;1;3;2;15;999
CO&SO EMPOLI - CONS. DI COOP. SOCIALI - SOCIETA' COOPERATIVA;24/09/2018;Altre spese per contratti di servizio pubblico;1.119,96;Liquidazione Fattura Nr. 000591-2C0  del 30/07/2018 (di cui Split per euro 201,96) - Fatt. regime reverse charge;3736;1;3;2;15;999
CO&SO EMPOLI - CONS. DI COOP. SOCIALI - SOCIETA' COOPERATIVA;24/09/2018;Altre spese per contratti di servizio pubblico;4.269,02;Liquidazione Fattura Nr. 000592-2C0  del 30/07/2018 (di cui Split per euro 769,82) - Fatt. regime sciss.pag.;3737;1;3;2;15;999
CO&SO EMPOLI - CONS. DI COOP. SOCIALI - SOCIETA' COOPERATIVA;24/09/2018;Altre spese per contratti di servizio pubblico;3.386,48;"Liquidazione Fattura Nr. 000716-2C0 del 31/08/2018 - Fattura per servizi front-office e didattica presso Biblioteca Leonardiana e sedi distaccate-Luglio 2018

";3734;1;3;2;15;999
AZIENDA USL TOSCANA CENTRO;19/07/2018;Altre spese per relazioni pubbliche, convegni e mostre, pubblicit� n.a.c;78,41;VET. 6 parere concentramenti e mostre animale;2413;1;3;2;2;999
ESKIMO COOP. SOCIALE ONLUS;08/08/2018;Altre spese per servizi amministrativi;1.508,00;Liquidazione Fattura Nr. FATTPA 79_18  del 30/06/2018 - SERVIZIO ARCHIVIO GIUGNO 2018;2732;1;3;2;16;999
POSTE ITALIANE SPA SOCIETA' CON SOCIO UNICO;08/08/2018;Altre spese per servizi amministrativi;399,32; PAGAMENTO B=034018801811665263 LIQUID FATTURA NR. 8018116652  DEL 14/06/2018 (DI CUI SPLIT PER EURO 72,01) - NOTIFICA CON MESSO GENNAIO 2018 (SECONDA LIQUIDAZIONE -  N. 71 NOTIFICHE NON CONTEGGIATE IN FATTURA 8018068985) ;2748;1;3;2;16;999
POSTE ITALIANE SPA SOCIETA' CON SOCIO UNICO;08/08/2018;Altre spese per servizi amministrativi;500,55;PAGAMENTO B=034018801811665364  LIQUIDAZIONE FATTURA NR. 8018116653  DEL 14/06/2018 (DI CUI SPLIT PER EURO 90,26) - NOTIFICA CON MESSO APRILE 2018 - N. 89 NOTIFICHE;2749;1;3;2;16;999
POSTE ITALIANE SPA SOCIETA' CON SOCIO UNICO;08/08/2018;Altre spese per servizi amministrativi;798,64;PAGAMENTO B=034018801811665465 LIQUIDAZIONE FATTURA NR. 8018116654  DEL 14/06/2018 (DI CUI SPLIT PER EURO 144,02) - NOTIFICA CON MESSO MAGGIO 2018 VERSAMENTO DIRETTO DELL'IVA VERSO L'ERARIO A CARICO DEL COMMITTENTE;2750;1;3;2;16;999
STATO DELLA CITTA' DEL VATICANO - GOVERNARIATO DIREZIONE DEI MUSEIVATICANI;19/07/2018;Altre spese sostenute per utilizzo di beni di terzi n.a.c.;17,60;IVA REVERSE CHARGE Liquidazione diritti di utilizzo del San Girolamo di Leonardo da Vinci presso Musei Vaticani;2415;1;3;2;7;999
STATO DELLA CITTA' DEL VATICANO - GOVERNARIATO DIREZIONE DEI MUSEIVATICANI;19/07/2018;Altre spese sostenute per utilizzo di beni di terzi n.a.c.;80,00;Liquidazione diritti di utilizzo del San Girolamo di Leonardo da Vinci presso Musei Vaticani;2414;1;3;2;7;999
R�UNION DES MUS�ES NATIONAUX. AGENCE PHOTOGRAPHIQUE;20/08/2018;Altre spese sostenute per utilizzo di beni di terzi n.a.c.;143,96;Liquidazione Fattura Nr. FP00322806 del 21/06/2018 - LEONARDO DA VINCI PAINTINGS IN THE MUSEO LEONARDIANO;3495;1;3;2;7;999
ANTICIMEX SRL;07/08/2018;Altri acquisti di servizi sanitari n.a.c.;422,66;Liquidazione Fattura Nr. 1029/PA  del 30/06/2018 (di cui Split per euro 76,22) - monitoraggio topi e trattamento antilarvale;2728;1;3;2;18;999
ANTICIMEX SRL;07/08/2018;Altri acquisti di servizi sanitari n.a.c.;461,07;Liquidazione Fattura Nr. 846/PA  del 31/05/2018 (di cui Split per euro 83,14) - intervento di monitoraggio topi e ratti e antilarvale;2729;1;3;2;18;999
ANTICIMEX SRL;20/09/2018;Altri acquisti di servizi sanitari n.a.c.;422,66;Liquidazione Fattura Nr. 1246/PA  del 31/07/2018 (di cui Split per euro 76,22) - MONITORAGGIO TOPI E RATTI E TRATTAMENTI ANTILARVALE ;3706;1;3;2;18;999
AGRIGARDEN S.N.C.;18/07/2018;Altri beni e materiali di consumo n.a.c.;915,22;Liquidazione Fattura Nr. FATTPA 1_18  del 24/05/2018 (di cui Split per euro 165,04) - ACQUISTO BENI PER LA MANUTENZIONE DELLE ATTREZZATURE DESTINATE ALL'ESECUZIONE DI LAVORI SU PARCHI GIOCO E AREE ATTREZZATE _ DETERMINA A CONTRARRE E AFFIDA;2395;1;3;1;2;999
L'ELETTRICA S.P.A.;25/07/2018;Altri beni e materiali di consumo n.a.c.;119,36;Liquidazione Fattura Nr. 0000294PA  del 31/05/2018 (di cui Split per euro 21,52) - Riferim.N.Determina n.130      Del 11.05.18 - fornitura materiale per manutenzione scuole e sedi istituzionali;2639;1;3;1;2;999
L'ELETTRICA S.P.A.;25/07/2018;Altri beni e materiali di consumo n.a.c.;575,12;Liquidazione Fattura Nr. 0000295PA  del 31/05/2018 (di cui Split per euro 103,71) - Riferim.N.Determina n.130      Del 11.05.18 - fornitura materiale per manutenzione scuole e sedi istituzionali;2636;1;3;1;2;999
L'ELETTRICA S.P.A.;25/07/2018;Altri beni e materiali di consumo n.a.c.;897,02;Liquidazione Fattura Nr. 0000296PA  del 31/05/2018 (di cui Split per euro 161,76) - Riferim.N.Determina n.136      Del 15.05.18 - FORNITURA MATERIALE ELETTRICO;2642;1;3;1;2;999
L'ELETTRICA S.P.A.;25/07/2018;Altri beni e materiali di consumo n.a.c.;306,05;Liquidazione Fattura Nr. 0000297PA  del 31/05/2018 (di cui Split per euro 55,19) - FORNITURA MATERIALE ELETTRICO PER IMPIANTI DI PUBBLICA ILLUMINAZIONE-DET.N.136 DEL15/05/2018;2643;1;3;1;2;999
BAZAR CINELLI DI CINELLI ILARIA E PAOLO;31/07/2018;Altri beni e materiali di consumo n.a.c.;20,00;PAGAMENTO BUONO ECONOMALE NR. 200039 - ASSEGNAZIONE ACQUISTI URGENTI PER ATTIVITA' ORGANI ISTITUZIONALI- ACQUISTO 10 METRI DI NASTRO TRICOLORE PER INAUGURAZIONI ISTITUZIONALI;2648;1;3;1;2;999
BAZAR CINELLI DI CINELLI ILARIA E PAOLO;31/07/2018;Altri beni e materiali di consumo n.a.c.;3,00;PAGAMENTO BUONO ECONOMALE NR. 200045 - ACQUISTI MINUTI ED URGENTI PER MUSEO-ACQUISTO NASTRO BLU PER UFFICIO  TURISTICO;2659;1;3;1;2;999
FERRAMENTA MAZZEI & LASTRUCCI DI SARDELLI M. E DABRAIO D. S.N.C.;31/07/2018;Altri beni e materiali di consumo n.a.c.;100,00;PAGAMENTO BUONO ECONOMALE NR. 200046 - ACQUISTO MATERIALE URGENTE E MINUTO DI MODESTA ENTITA' PER INTERVENTI SU EDIFICI SEDI ISTITUZIONALI - ACQUISTO N.10 SERRATURE DI RICAMBIO PER SOSTITUZIONI;2650;1;3;1;2;999
L'ELETTRICA S.P.A.;31/07/2018;Altri beni e materiali di consumo n.a.c.;4,90;PAGAMENTO BUONO ECONOMALE NR. 200049 - ACQUISTO MATERIALE URGENTE E MINUTO DI MODESTA ENTITA' PER INTERVENTI SU EDIFICI SEDI ISTITUZIONALI.-N.1 PLACCA E N.1. SUPPORTO A 3 POSTI;2651;1;3;1;2;999
NESTI FABIO;31/07/2018;Altri beni e materiali di consumo n.a.c.;24,00;PAGAMENTO BUONO ECONOMALE NR. 200043 - ACQUISTO BENI PER MANUT.SEDI ISTITUZIONALI-ACQUISTO UNA CORNICE PER GIUDICE DI PACE;2649;1;3;1;2;999
SELMI DI SELMI ANDREA & SELMI FRANCESCO S.N.C.;31/07/2018;Altri beni e materiali di consumo n.a.c.;109,43;PAGAMENTO BUONO ECONOMALE NR. 200052 - ACQUISTO MATERIALE URGENTE  DI MODESTA ENTITA' PER INTERVENTI SU EDIFICI SEDI ISTITUZIONALI- ACQUISTO 2 NUOVE SERRATURE PER I BAGNI DELL'ENTE E N.24 COPIE CHIAVI PER I DIPENDENTI;2652;1;3;1;2;999
TABACCHERIA LEONARDO;31/07/2018;Altri beni e materiali di consumo n.a.c.;32,00;PAGAMENTO BUONO ECONOMALE NR. 200042 - ACQUISTI MINUTI ED URGENTI PER MUSEO-ACQUISTO N.2 MARCHE PER CONTRATTO;2660;1;3;1;2;999
UNICOOP FIRENZE SOC. COOPERATIVA A RESPONSABILIT� LIMITATA;31/07/2018;Altri beni e materiali di consumo n.a.c.;8,07;PAGAMENTO BUONO ECONOMALE NR. 200047 - ACQUISTI MINUTI ED URGENTI PER MUSEO-ACQUISTO 3 PILE DI RICAMBIO PER TELECOMANDI PORTE;2661;1;3;1;2;999
SELMI DI SELMI ANDREA & SELMI FRANCESCO S.N.C.;07/08/2018;Altri beni e materiali di consumo n.a.c.;24,07;IVA Liquidazione Fattura Nr. 1  del 31/05/2018 (di cui Split per euro 24,07) - Fattura;2710;1;3;1;2;999
ARCOGAS ITALIA S.R.L.;17/08/2018;Altri beni e materiali di consumo n.a.c.;405,44;Liquidazione Fattura Nr. 858  del 31/05/2018 (di cui Split per euro 73,11) - ATTREZZATURA PER SALDATURA IN DOTAZIONE AL MAGAZZINO COMUNALE - ACQUISTO PEZZI DI RICAMBIO E NOLEGGIO BOMBOLE ;3449;1;3;1;2;999
CAMPIGLI S.R.L.;17/08/2018;Altri beni e materiali di consumo n.a.c.;1.126,00;Liquidazione Fattura Nr. 2/28  del 31/05/2018 (di cui Split per euro 203,05) - FORNITURA TAVOLE IN PINO DI SVEZIA;3471;1;3;1;2;999
COLORIFICIO CAPPELLI  DI STEFANO CAPPELLI;17/08/2018;Altri beni e materiali di consumo n.a.c.;683,64;Liquidazione Fattura Nr. 4/E  del 31/05/2018 (di cui Split per euro 123,28) - FORNITURA DI  PRODOTTI PER VARI INTERVENTI DI MANUTENZIONE PRESSO SCUOLE E PARCHI GIOCO ;3472;1;3;1;2;999
COLORIFICIO CAPPELLI  DI STEFANO CAPPELLI;17/08/2018;Altri beni e materiali di consumo n.a.c.;141,60;Liquidazione Fattura Nr. 8/E  del 30/06/2018 (di cui Split per euro 25,53) - FORNITURA DI  PRODOTTI PER VARI INTERVENTI DI MANUTENZIONE PRESSO SCUOLE E PARCHI GIOCO - det.n.143/2018;3473;1;3;1;2;999
SOC.ING.MAGNANI SRL;17/08/2018;Altri beni e materiali di consumo n.a.c.;328,96;Liquidazione Fattura Nr. 50/10  del 31/05/2018 (di cui Split per euro 59,32) - FORNITURA STABILIZZATO PER MANUTENZIONE STRADE VICINALI - DETERMINA N. 71 DEL 27.03.2018.;3463;1;3;1;2;999
PRATESI LORENZO S.R.L.;20/08/2018;Altri beni e materiali di consumo n.a.c.;20,02;IVA Liquidazione Fattura Nr. 2 E  del 27/07/2018 (di cui Split per euro 20,02) - Fornitura generica;3506;1;3;1;2;999
DAMAZ S.R.L. - INGROSSO CASALINGHI;21/08/2018;Altri beni e materiali di consumo n.a.c.;549,60;Liquidazione Fattura Nr. 11481P  del 18/06/2018 (di cui Split per euro 99,11) - PRODOTTI PULIZIE ORDINE 2 EDICOM;3509;1;3;1;2;999
DAMAZ S.R.L. - INGROSSO CASALINGHI;21/08/2018;Altri beni e materiali di consumo n.a.c.;283,58;Liquidazione Fattura Nr. 11482P  del 18/06/2018 (di cui Split per euro 51,14) - PRODOTTI PULIZIE ORDINE 2 EDIMUS;3510;1;3;1;2;999
VESCOVI RENZO SPA;22/08/2018;Altri beni e materiali di consumo n.a.c.;232,78;Liquidazione Fattura Nr. 68/10  del 30/06/2018 (di cui Split per euro 41,98) - Fornitura stabilizzato per strade comunali;3536;1;3;1;2;999
MATERIALI EDILI BALDACCI DI BALDACCI RENATO E C. SNC;06/09/2018;Altri beni e materiali di consumo n.a.c.;189,88;Liquidazione Fattura Nr. 556  del 31/05/2018 (di cui Split per euro 34,24) - FORNITURA DI MATERIALI EDILI FINALIZZATI ALL'ESECUZIONE DI LAVORI DI MANUTENZIONE PRESSO GLI EDIFICI SCOLASTICI;3557;1;3;1;2;999
MATERIALI EDILI BALDACCI DI BALDACCI RENATO E C. SNC;06/09/2018;Altri beni e materiali di consumo n.a.c.;14,88;Liquidazione Fattura Nr. 719  del 30/06/2018 (di cui Split per euro 2,68) - FORNITURA DI MATERIALI EDILI FINALIZZATI ALL'ESECUZIONE DI LAVORI DI MANUTENZIONE PRESSO GLI EDIFICI SCOLASTICI;3558;1;3;1;2;999
MATERIALI EDILI BALDACCI DI BALDACCI RENATO E C. SNC;06/09/2018;Altri beni e materiali di consumo n.a.c.;29,83;Liquidazione Fattura Nr. 719  del 30/06/2018 (di cui Split per euro 5,38) - FORNITURA DI MATERIALI EDILI FINALIZZATI ALL'ESECUZIONE DI LAVORI DI MANUTENZIONE PRESSO GLI EDIFICI SCOLASTICI;3552;1;3;1;2;999
L'ELETTRICA S.P.A.;18/09/2018;Altri beni e materiali di consumo n.a.c.;44,21;Liquidazione Fattura Nr. 0000393PA  del 29/06/2018 (di cui Split per euro 7,97) - fornitura materiale elettrico-det.n.130 del 13/08/2018;3626;1;3;1;2;999
L'ELETTRICA S.P.A.;18/09/2018;Altri beni e materiali di consumo n.a.c.;48,29;Liquidazione Fattura Nr. 0000393PA  del 29/06/2018 (di cui Split per euro 8,71) - fornitura materiale elettrico-det.n.130 del 13/08/2018;3623;1;3;1;2;999
L'ELETTRICA S.P.A.;18/09/2018;Altri beni e materiali di consumo n.a.c.;71,97;Liquidazione Fattura Nr. 0000394PA  del 29/06/2018 (di cui Split per euro 12,98) - fornitura materiale elettrico-det.n.130 del 13/08/2018;3619;1;3;1;2;999
L'ELETTRICA S.P.A.;18/09/2018;Altri beni e materiali di consumo n.a.c.;251,71;Liquidazione Fattura Nr. 0000394PA  del 29/06/2018 (di cui Split per euro 45,39) - fornitura materiale elettrico-det.n.130 del 13/08/2018;3624;1;3;1;2;999
SANMINIATESE STRADE S.R.L.;18/09/2018;Altri beni e materiali di consumo n.a.c.;7.899,50;Liquidazione Fattura Nr. 11  del 25/07/2018 (di cui Split per euro 1.424,50) - FORNITURA MATERIALI INERTI PER STRADE COMUNALI;3637;1;3;1;2;999
TESI S.A.S. DI MAZZANTINI G. & C.;20/09/2018;Altri beni e materiali di consumo n.a.c.;832,00;Liquidazione Fattura Nr. 01  del 03/08/2018 (di cui Split per euro 32,00) - AFFIDAMENTO DIRETTO E IMPEGNO DI SPESA PER ACQUISTO GRANAGLIE PER FAGIANOTTI IN ZONE DI RIPOPOLAMENTO E CATTURA;3709;1;3;1;2;999
PRATESI LORENZO S.R.L.;21/09/2018;Altri beni e materiali di consumo n.a.c.;91,00;PAGAMENTO BUONO ECONOMALE NR. 200059 - ACQUISTI URGENTI E MINUTI PER INTERVENTI PARCHI GIOCO ED AREE ATTREZZATE-ACQUISTO CINGHIE PER TRATTORE TAGLIAERBA ;3731;1;3;1;2;999
FRANCO COSIMO PANINI EDITORE SPA;18/07/2018;Altri beni materiali diversi;36.264,50;Liquidazione Fattura Nr. VPA1800026  del 24/05/2018 (di cui Split per euro 6.539,50) - FORNITURA RIPRODUZIONI STAMPATE DI OPERE PITTORICHE DI LEONARDO DA VINCI;2412;2;2;1;99;999
GENERALI ITALIA SPA;09/07/2018;Altri premi di assicurazione contro i danni;654,50;Regolamento pozzi assicurative Rc Patrimoniale e Kasko periodo 30.6.2017-31.12.2017;2343;1;10;4;1;999
FRATERNITA MISERICORDIA DI VINCI;20/08/2018;Altri servizi ausiliari n.a.c.;3.208,32;Liquidazione Fattura Nr. FATTPA 10_18  del 13/07/2018 - SERVIZIO DI CUSTODIA, ASSISTENZA AGLI SPETTACOLI E PULIZIA DEI LOCALI DEL TEATRO DI VINCI PER IL PERIODO DAL 1 GIUGNO 2016 AL 31 DICEMBRE 2018 - AFFIDAMENTO TRAMITE START A FRATERNITA ;3488;1;3;2;13;999
FRATERNITA MISERICORDIA DI VINCI;20/08/2018;Altri servizi ausiliari n.a.c.;3.208,32;Liquidazione Fattura Nr. FATTPA 11_18  del 13/07/2018 - SERVIZIO DI CUSTODIA, ASSISTENZA AGLI SPETTACOLI E PULIZIA DEI LOCALI DEL TEATRO DI VINCI PER IL PERIODO DAL 1 GIUGNO 2016 AL 31 DICEMBRE 2018 - AFFIDAMENTO TRAMITE START A FRATERNITA ;3487;1;3;2;13;999
BARTALUCCI SAS DI BARTALUCCI ELENA E BARTALUCCI MONICA;22/08/2018;Altri servizi ausiliari n.a.c.;79,46;Liquidazione Fattura Nr. 212/P  del 03/07/2018 (di cui Split per euro 14,33) - TRASCRIZIONE SEDUTA CC DEL 4 GIUGNO 2018 - 167 minuti;3524;1;3;2;13;999
BARTALUCCI SAS DI BARTALUCCI ELENA E BARTALUCCI MONICA;22/08/2018;Altri servizi ausiliari n.a.c.;50,91;Liquidazione Fattura Nr. 224/P  del 09/07/2018 (di cui Split per euro 9,18) - TRASCRIZIONE SEDUTA CC DEL 18/10/2017 - 107 min.;3528;1;3;2;13;999
BARTALUCCI SAS DI BARTALUCCI ELENA E BARTALUCCI MONICA;22/08/2018;Altri servizi ausiliari n.a.c.;58,52;Liquidazione Fattura Nr. 241/P  del 19/07/2018 (di cui Split per euro 10,55) - TRASCRIZIONE CC DEL 29 SETTEMBRE 2017 - 123 MIN.;3525;1;3;2;13;999
BARTALUCCI SAS DI BARTALUCCI ELENA E BARTALUCCI MONICA;22/08/2018;Altri servizi ausiliari n.a.c.;60,90;Liquidazione Fattura Nr. 249/P  del 26/07/2018 (di cui Split per euro 10,98) - TRASCRIZIONE CONSIGLIO COMUNALE DEL 30/10/2017 - 128 min;3526;1;3;2;13;999
BARTALUCCI SAS DI BARTALUCCI ELENA E BARTALUCCI MONICA;22/08/2018;Altri servizi ausiliari n.a.c.;74,22;Liquidazione Fattura Nr. 279/P  del 06/08/2018 (di cui Split per euro 13,38) - TRASCRIZIONE CC DEL 24 LUGLIO 2017 - 156 minuti;3527;1;3;2;13;999
CRISTOFORO SOC.COOP. SOCIALE ONLUS;18/07/2018;Altri servizi diversi n.a.c.;7.469,90;Liquidazione Fattura Nr. 452. 20006/ 2018  del 22/05/2018 (di cui Split per euro 679,08) - SERVIZIO ACCOMPAGNAMENTO SCUOLABUS MESE DI APRILE 2018;2382;1;3;2;99;999
CRISTOFORO SOC.COOP. SOCIALE ONLUS;18/07/2018;Altri servizi diversi n.a.c.;961,69;Liquidazione Fattura Nr. 453. 20006/ 2018  del 22/05/2018 (di cui Split per euro 87,43) - SERVIZIO PRESCUOLA MESE DI APRILE 2018 ;2381;1;3;2;99;999
L'ABBRACCIO SNC DI CONTI SIMONA E AMATUCCI VALENTINA;18/07/2018;Altri servizi diversi n.a.c.;236,00;"Liquidazione Fattura Nr. 10/PA  del 05/06/2018 - POSTO BAMBINO PEDANI ENIA MESE DI MAGGIO 2018 EURO 236,00
POR FSE - AZIONE 2: CODICE PROGETTO 171791 A.E.2017/2018 - COMUNE DI VINCI. SOSTEGNO SERVIZI EDUCATIVI";2377;1;3;2;99;999
AGENZIA DELLE ENTRATE;20/07/2018;Altri servizi diversi n.a.c.;1.712,50;"""CODICE ENTE 03491"" RIMBORSO AD AGENZIA DELLE ENTRATE RISCOSSIONE PER SOMME ISCRITTE A RUOLO E DISCARICATE DALL'ENTE. IMPEGNO DI SPESA E LIQUIDAZIONE.";2428;1;3;2;99;999
AGENZIA DELLE ENTRATE - RISCOSSIONE;20/07/2018;Altri servizi diversi n.a.c.;4.641,92;COMPENSAZIONE - REGOLARIZZAZIONE COMPENSO DOVUTO A EQUITALIA/AG, ENTRATE PER RISCOSSIONI TRAMITE RUOLO-  determinazione n. 7 del 31.01.18 settore 4 ;2430;1;3;2;99;999
TERZA CULTURA SOCIETA' COOPERATIVA;08/08/2018;Altri servizi diversi n.a.c.;561,20;Liquidazione Fattura Nr. FATTPA 8_18  del 12/07/2018 (di cui Split per euro 101,20) - Laboratorio di Robotica educativa con il robot umanoide Nao e kit lego education  nelle scuole primarie di Vinci classi 1� e 2� del 19.05.2018 ;2755;1;3;2;99;999
CRISTOFORO SOC.COOP. SOCIALE ONLUS;21/08/2018;Altri servizi diversi n.a.c.;9.839,51;Liquidazione Fattura Nr. 536. 20006/ 2018  del 15/06/2018 (di cui Split per euro 894,50) - servizio accompagnamento scuolabus mese di maggio 2018;3515;1;3;2;99;999
CRISTOFORO SOC.COOP. SOCIALE ONLUS;21/08/2018;Altri servizi diversi n.a.c.;1.244,53;Liquidazione Fattura Nr. 537. 20006/ 2018  del 15/06/2018 (di cui Split per euro 113,14) - servizio prescuola mese di maggio 2018;3514;1;3;2;99;999
CENTRO L.I.F.E.;22/08/2018;Altri servizi diversi n.a.c.;3.553,27;Liquidazione Fattura Nr. 000006-2018-1PA  del 27/07/2018 (di cui Split per euro 640,75) - SPORTELLO LAVORO SECONDO TRIMESTRE 2018;3535;1;3;2;99;999
V.A.B. VIGILANZA ANTICENDI BOSCHIVI;22/08/2018;Altri servizi diversi n.a.c.;6.000,00;Liquidazione Fattura Nr. FPA 4/18  del 10/07/2018 - convenzione rep.1863 del 31/12/20115;3537;1;3;2;99;999
CRISTOFORO SOC.COOP. SOCIALE ONLUS;20/09/2018;Altri servizi diversi n.a.c.;5.269,48;Liquidazione Fattura Nr. 606. 20006/ 2018  del 09/07/2018 (di cui Split per euro 479,04) - SERVIZIO ACCOMPAGNAMENTO SCUOLABUS MESE DI GIUGNO 2018;3698;1;3;2;99;999
CRISTOFORO SOC.COOP. SOCIALE ONLUS;20/09/2018;Altri servizi diversi n.a.c.;339,42;Liquidazione Fattura Nr. 607. 20006/ 2018  del 09/07/2018 (di cui Split per euro 30,86) - SERVIZIO PRESCUOLA MESE DI GIUGNO 2018;3699;1;3;2;99;999
L'ABBRACCIO SNC DI CONTI SIMONA E AMATUCCI VALENTINA;20/09/2018;Altri servizi diversi n.a.c.;236,00;"Liquidazione Fattura Nr. 13/PA  del 24/07/2018 - POSTO BAMBINO PEDANI ENIA MESE DI GIUGNO 2018 EURO 236,00
POR FSE - AZIONE 2: CODICE PROGETTO 171791 A.E.2017/2018 - COMUNE DI VINCI. SOSTEGNO SERVIZI EDUCATIVI";3696;1;3;2;99;999
MIA GRAFICA DI BENASSAI MONICA;20/09/2018;Altri servizi diversi n.a.c.;530,70;Liquidazione Fattura Nr. 000001-2018-E  del 30/08/2018 (di cui Split per euro 95,70) - Fornitura generica;3707;1;3;2;99;999
PIROTECNICA PIETRO POLEGGI DITTA INDIVIDUALE;20/09/2018;Altri servizi diversi n.a.c.;7.137,00;Liquidazione Fattura Nr. FATTPA 1_18  del 01/08/2018 (di cui Split per euro 1.287,00) - DETERMINA A CONTRARRE E AFFIDAMENTO DIRETTO PER SPETTACOLO PIROTECNICO DEL 1 AGOSTO PER FIERA DI LUGLIO - IMPEGNO DI SPESA;3708;1;3;2;99;999
PRODURRE PULITO SRL;20/09/2018;Altri servizi diversi n.a.c.;508,00;Liquidazione Fattura Nr. PA-7  del 20/07/2018 (di cui Split per euro 88,00) - APPALTO SERVIZIO REDAZIONE E TRASMISSIONE MUD RIFIUTI SPECIALI ANNO 2017 - IMPEGNO DI SPESA;3704;1;3;2;99;999
PROGETTO SRL;24/09/2018;Altri servizi diversi n.a.c.;500,00;Liquidazione Fattura Nr. 2/72  del 29/06/2018 (di cui Split per euro 90,16) - Guida TCI Editore -  Il mare piu' bello - Acquisto spazio pubblicitario e visualizzazione fb ;3738;1;3;2;99;999
PROGETTO SRL;24/09/2018;Altri servizi diversi n.a.c.;671,00;Liquidazione Fattura Nr. 2/85  del 23/07/2018 (di cui Split per euro 121,00) - GUIDA VERDE D'ITALIA TCI - VIA FRANCIGENA 2018 - IMPEGNO DI SPESA PER INSERZIONE PUBBLICITARIA;3735;1;3;2;99;999
BANCA CAMBIANO 1884;20/08/2018;Altri servizi informatici e di telecomunicazioni n.a.c.;1.220,00;Liquidazione Fattura Nr. 649/2018  del 19/07/2018 (di cui Split per euro 220,00) - Commissioni per adeguamento procedura SIOPE;3505;1;3;2;19;999
CONSORZIO STRADALE DI GABBIALLA C/O STUDIO OPUS;17/08/2018;Altri trasferimenti a famiglie n.a.c.;4.500,00;Liquidazione contributo per l'anno 2018;3461;1;4;2;5;999
CONSORZIO STRADALE GRAGNANI C/O STUDIO OPUS;17/08/2018;Altri trasferimenti a famiglie n.a.c.;911,00;Liquidazione contributo anno 2018;3462;1;4;2;5;999
ARREDO TEAM SRL;05/07/2018;Attrezzature n.a.c.;2.025,00;Liquidazione Fattura Nr. 5/20  del 28/02/2018 (di cui Split per euro 365,20) - Fornitura generica;2341;2;2;1;5;999
VALDELSA STUDIO SERVICE SNC DI CAMPATELLI NIDIACI  E VICIANI;18/07/2018;Attrezzature n.a.c.;214,72;"Liquidazione Fattura Nr. 03-PA  del 08/06/2018 (di cui Split per euro 38,72) - FORNITURA DI N. 10 LAMPADE E N. 3 PORTALAMPADE PER I FARI DI SCENA DEL TEATRO
DI VINCI - DETERMINAZIONE NR. 42 DEL 11/05/2018 (pagamento a 60 gg come definito i";2411;2;2;1;5;999
COMUNE DI VINCI;20/07/2018;Beni immobili n.a.c.;223,23;LIQUIDAZIONE FONDO INCENTIVANTE 2016 ART. 92 DEL DLGS. 163/2006;2421;2;2;1;9;999
COOPERATIVA SOCIALE PEGASO SOCIETA' COOPERATIVA;17/08/2018;Beni immobili n.a.c.;5.880,40;Liquidazione Fattura Nr. 61 be  del 31/05/2018 (di cui Split per euro 1.060,40) - Abbattimento e potatura pini, spportazione pini caduti, potatura siepi - Via Empolese-Via Battisti;3446;2;2;1;9;999
SANMINIATESE STRADE S.R.L.;17/08/2018;Beni immobili n.a.c.;6.100,00;Liquidazione Fattura Nr. 09  del 21/06/2018 (di cui Split per euro 1.100,00) - SISTEMAZIONE SCALINATA DI ACCESSO AL PARCO DELLA RIMEMBRANZA;3482;2;2;1;9;999
BENITO ARREDO URBANO SRL;18/09/2018;Beni immobili n.a.c.;2.378,75;Liquidazione Fattura Nr. FatPAM PA610000479  del 29/06/2018 - FORNITURA E POSA ATTREZZATURE SPORTIVE AREA FITNESS VIA EMPOLESE, SOVIGLIANA-PAGAMENTO DIRETTO AL SUBAPPALTATORE ART. 105, COMMA 13, D.LGS 50/2016;3641;2;2;1;9;999
BENITO ARREDO URBANO SRL;18/09/2018;Beni immobili n.a.c.;11.998,65;Liquidazione Fattura Nr. FatPAM PA610000479  del 29/06/2018 (di cui Split per euro 2.592,65) - FORNITURA E POSA ATTREZZATURE SPORTIVE AREA FITNESS VIA EMPOLESE, SOVIGLIANA;3642;2;2;1;9;999
OASI VERDE SNC DI GIRALDI SONIA & C.;18/07/2018;Beni per attivit� di rappresentanza ;90,00;Liquidazione Fattura Nr. 000005-2018-PA  del 16/06/2018 - Cerimonia del 16 Giugno 2018 - Fornitura n.1 corone di alloro;2374;1;3;1;2;9
ITALIANA PETROLI S.P.A.;09/07/2018;Carburanti, combustibili e lubrificanti ;590,13;Liquidazione Fattura Nr. I8215373  del 31/05/2018 (di cui Split per euro 106,42) - FORNITURA DI CARBURANTE PER AUTOTRAZIONE MEDIANTE FUEL CARD E DEI SERVIZI CONNESSI PER LE PUBBLICHE AMMINISTRAZIONI - REIMPUTAZIONE SOMME IMPEGNATE PROVVISOR;2357;1;3;1;2;2
ITALIANA PETROLI S.P.A.;09/07/2018;Carburanti, combustibili e lubrificanti ;872,53;Liquidazione Fattura Nr. I8215373  del 31/05/2018 (di cui Split per euro 157,34) - FORNITURA DI CARBURANTE PER AUTOTRAZIONE MEDIANTE FUEL CARD E DEI SERVIZI CONNESSI PER LE PUBBLICHE AMMINISTRAZIONI - REIMPUTAZIONE SOMME IMPEGNATE PROVVISOR;2358;1;3;1;2;2
ITALIANA PETROLI S.P.A.;09/07/2018;Carburanti, combustibili e lubrificanti ;408,69;Liquidazione Fattura Nr. I8215373  del 31/05/2018 (di cui Split per euro 73,70) - FORNITURA DI CARBURANTE PER AUTOTRAZIONE MEDIANTE FUEL CARD E DEI SERVIZI CONNESSI PER LE PUBBLICHE AMMINISTRAZIONI - REIMPUTAZIONE SOMME IMPEGNATE PROVVISORI;2356;1;3;1;2;2
ITALIANA PETROLI S.P.A.;16/08/2018;Carburanti, combustibili e lubrificanti ;755,45;Liquidazione Fattura Nr. I8239172  del 30/06/2018 (di cui Split per euro 136,23) - FORNITURA DI CARBURANTE PER AUTOTRAZIONE MEDIANTE FUEL CARD E DEI SERVIZI CONNESSI PER LE PUBBLICHE AMMINISTRAZIONI - GIUGNO 2018;3423;1;3;1;2;2
ITALIANA PETROLI S.P.A.;16/08/2018;Carburanti, combustibili e lubrificanti ;1.079,77;Liquidazione Fattura Nr. I8239172  del 30/06/2018 (di cui Split per euro 194,71) - FORNITURA DI CARBURANTE PER AUTOTRAZIONE MEDIANTE FUEL CARD E DEI SERVIZI CONNESSI PER LE PUBBLICHE AMMINISTRAZIONI - GIUGNO 2018;3424;1;3;1;2;2
ITALIANA PETROLI S.P.A.;16/08/2018;Carburanti, combustibili e lubrificanti ;361,33;Liquidazione Fattura Nr. I8239172  del 30/06/2018 (di cui Split per euro 65,16) - FORNITURA DI CARBURANTE PER AUTOTRAZIONE MEDIANTE FUEL CARD E DEI SERVIZI CONNESSI PER LE PUBBLICHE AMMINISTRAZIONI - GIUGNO 2018;3422;1;3;1;2;2
EUROGRAFICA  S.R.L.;18/07/2018;Carta, cancelleria e stampati;927,20;Liquidazione Fattura Nr. 4/01  del 30/06/2018 (di cui Split per euro 167,20) - DETERMINA A CONTRARRE E AFFIDAMENTO SERVIZI DI STAMPA DI MATERIALE INFORMATIVO PER MUSEO LEONARDIANO - IMPEGNO DI SPESA;2405;1;3;1;2;1
UFFICIO TECNICA  SAS;18/07/2018;Carta, cancelleria e stampati;211,89;Liquidazione Fattura Nr. 3/P  del 13/06/2018 (di cui Split per euro 38,21) - DETERMINA A CONTRARRE E AFFIDAMENTO SERVIZIO DI STAMPA DI DEPLIANT PER CELEBRAZIONI LEONARDIANE E CARTINE PER UFFICIO TURISTICO - IMPEGNO DI SPESA;2406;1;3;1;2;1
B & B UFFICIO SRL;31/07/2018;Carta, cancelleria e stampati;19,60;PAGAMENTO BUONO ECONOMALE NR. 200048 - ACQUISTO MATERIALE PER SERVIZIO NAVETTA- N.4 BLOCCHI DI RICEVUTE FISCALI NUMERATE;2662;1;3;1;2;1
BAZAR CINELLI DI CINELLI ILARIA E PAOLO;31/07/2018;Carta, cancelleria e stampati;9,90;PAGAMENTO BUONO ECONOMALE NR. 200044 - ACQUISTO MATERIALE URGENTE DI CANCELLERIA PER GLI UFFICI;2654;1;3;1;2;1
CALOS ITALIA DI CASTELLI ANTONIO;31/07/2018;Carta, cancelleria e stampati;79,80;PAGAMENTO BUONO ECONOMALE NR. 200050 - ACQUISTO TIMBRI URGENTI PER GLI UFFICI-N.8 TIMBRI VARI PER GLI UFFICI;2655;1;3;1;2;1
DHM MULTISTORE DAHAOMAI SRL;31/07/2018;Carta, cancelleria e stampati;8,77;PAGAMENTO BUONO ECONOMALE NR. 200038 - ACQUISTO MATERIALE URGENTE DI CANCELLERIA PER GLI UFFICI;2656;1;3;1;2;1
UFFICIO TECNICA  SAS;31/07/2018;Carta, cancelleria e stampati;15,00;PAGAMENTO BUONO ECONOMALE NR. 200041 - ACQUISTO MATERIALE URGENTE DI CANCELLERIA PER GLI UFFICI-ACQUISTO N.2 SPILLATRICI;2657;1;3;1;2;1
BAZAR CINELLI DI CINELLI ILARIA E PAOLO;02/08/2018;Carta, cancelleria e stampati;5,50;PAGAMENTO BUONO ECONOMALE NR. 200055 - ACQUISTI URGENTI DI MATERIALE VARIO PER GLI UFFICI-BUSTINE TRASPARENTI FORATURA UNIVERSALE UNA CONGEZIONE DA 50 PZ.;2664;1;3;1;2;1
CARTOPLAST SAS DI BONCIANI ALESSANDRO E C.;02/08/2018;Carta, cancelleria e stampati;98,00;PAGAMENTO BUONO ECONOMALE NR. 200057 - ACQUISTO MATERIALE DI CANCELLERIA PER MUSEO-BORSE IN CARTA TRE MISURE PER CONFEZIONAMENTO E CONSEGNA ACQUISTI AL MUSEO;2667;1;3;1;2;1
MAREMAGNUM.COM.SRL;02/08/2018;Carta, cancelleria e stampati;29,20;PAGAMENTO BUONO ECONOMALE NR. 200054 - ACQUISTI MINUTI ED URGENTI PER LA BIBLIOTECA-ACQUISTO VOLUME SCHIESE ROMANICHE E MODERNE IN PISTOIA E DIOCESI;2666;1;3;1;2;1
SINTESI S.R.L. - SISTEMI INTEGRATI PER UFFICIO;02/08/2018;Carta, cancelleria e stampati;25,20;PAGAMENTO BUONO ECONOMALE NR. 200056 - ACQUISTO URGENTE DI CARTA PER GLI UFFICI- N.3 RISME DI CARTA A3 BIANCA PER UFFICIO EDILIZIA;2665;1;3;1;2;1
CALOS ITALIA DI CASTELLI ANTONIO;07/08/2018;Carta, cancelleria e stampati;17,56;IVA Liquidazione Fattura Nr. 33/PA  del 30/05/2018 (di cui Split per euro 17,56) - Rif. vs Spesa Economale del 22/05/2018;2711;1;3;1;2;1
MONTI ROBERTA;07/08/2018;Carta, cancelleria e stampati;726,14;Liquidazione Fattura Nr. SP  000038  del 28/06/2018 (di cui Split per euro 130,94) - C/VENDITA;2712;1;3;1;2;1
B & B S.R.L.;21/09/2018;Carta, cancelleria e stampati;16,50;PAGAMENTO BUONO ECONOMALE NR. 200060 - ACQUISTO MATERIALE URGENTE DI CANCELLERIA PER GLI UFFICI-ACQUISTO ROTOLINI POS URGENTI PER BIGLIETTERIE MUSEI;3726;1;3;1;2;1
BAZAR CINELLI DI CINELLI ILARIA E PAOLO;21/09/2018;Carta, cancelleria e stampati;15,60;PAGAMENTO BUONO ECONOMALE NR. 200061 - ACQUISTO MATERIALE URGENTE DI CANCELLERIA PER GLI UFFICI-ACQUISTO 2 QUADERNI E 2 RACCOGLITORI;3727;1;3;1;2;1
BAZAR CINELLI DI CINELLI ILARIA E PAOLO;21/09/2018;Carta, cancelleria e stampati;23,00;PAGAMENTO BUONO ECONOMALE NR. 200063 - ACQUISTO MATERIALE URGENTE PER GLI UFFICI-ACQUISTO TAMPONI PER TIMBRI, BUSTE FORATE E RACCOGLITORI PORTAFATTURE;3728;1;3;1;2;1
BAZAR CINELLI DI CINELLI ILARIA E PAOLO;21/09/2018;Carta, cancelleria e stampati;12,00;PAGAMENTO BUONO ECONOMALE NR. 200064 - ACQUISTI URGENTI DI MATERIALE VARIO PER GLI UFFICI-ACQUISTO 3 RACC.PORTAFATTURE;3729;1;3;1;2;1
COMUNE DI VINCI;20/07/2018;Cimiteri;37,96;LIQUIDAZIONE FONDO INCENTIVANTE 2016 ART. 92 DEL DLGS. 163/2006;2425;2;2;1;9;15
COMUNE DI VINCI;20/07/2018;Cimiteri;142,35;LIQUIDAZIONE FONDO INCENTIVANTE 2016 ART. 92 DEL DLGS. 163/2006;2426;2;2;1;9;15
COMUNE DI VINCI;20/07/2018;Cimiteri;197,53;LIQUIDAZIONE FONDO INCENTIVANTE 2016 ART. 92 DEL DLGS. 163/2006;2427;2;2;1;9;15
COMUNE DI VINCI- CONTI CORRENTI POSTALI VARI;20/07/2018;Commissioni per servizi finanziari;235,00;CONTO CORRENTE POSTALE ICI INTESTATO ALL'ENTE. REINTEGRO SPESE COMMISSIONI;2416;1;3;2;17;1
CRESCIOLI  CECILIA;20/08/2018;Compensi agli organi istituzionali di revisione, di controllo ed altri incarichi istituzionali dell'amministrazione;2.000,00;LIQUIDAZIONE FATTURA NR. 20427  DEL 27/07/2018 - COMPENSO PER COMPONENTE NUCLEO DI VALUTAZIONE ANNO 2016;3501;1;3;2;1;8
I.N.P.S. S.A.P. (SEDI AUTONOME DI       PRODUZIONE);13/09/2018;Compensi agli organi istituzionali di revisione, di controllo ed altri incarichi istituzionali dell'amministrazione;320,00;RIT.PREVIDENZ. A CARICO 2/3 DEL 24% SU FATT.N.20427 DEL 27/07/18 PER INCARICO A CRESCIOLI CECILIA DETERM.179/2016;3571;1;3;2;1;8
ARCA - COOPERATIVA SOCIALE A R.L.;08/08/2018;Contratti di servizio di asilo nido;34.914,74;Liquidazione Fattura Nr. E-704  del 07/06/2018 (di cui Split per euro 1.662,61) - GESTIONE SERVIZIO EDUCATIVO PRESSO NIDO COMUNALE PICCINO PICCIO' MESE DI MAGGIO 2018;2741;1;3;2;15;10
ARCA - COOPERATIVA SOCIALE A R.L.;08/08/2018;Contratti di servizio di asilo nido;4.951,37;Liquidazione Fattura Nr. E-705  del 07/06/2018 (di cui Split per euro 235,78) - GESTIONE SERVIZIO DI REFEZIONE PRESSO NIDO COMUNALE PICCINO PICCIO' MESE DI MAGGIO 2018;2740;1;3;2;15;10
ARCA - COOPERATIVA SOCIALE A R.L.;20/09/2018;Contratti di servizio di asilo nido;34.914,74;Liquidazione Fattura Nr. E-785  del 06/07/2018 (di cui Split per euro 1.662,61) - GESTIONE SERVIZIO EDUCATIVO PRESSO IL NIDO COMUNALE PICCINO PICCIO' MESE DI GIUGNO 2018;3700;1;3;2;15;10
ARCA - COOPERATIVA SOCIALE A R.L.;20/09/2018;Contratti di servizio di asilo nido;4.951,37;Liquidazione Fattura Nr. E-786  del 06/07/2018 (di cui Split per euro 235,78) - GESTIONE SERVIZIO REFEZIONE PRESSO IL NIDO COMUNALE PICCINO PICCIO' MESE DI GIUGNO 2018;3701;1;3;2;15;10
EREDI LEPORATTI S.A.S.;18/07/2018;Contratti di servizio di trasporto pubblico;2.313,12;Liquidazione Fattura Nr. 32/E  del 30/05/2018 (di cui Split per euro 210,28) - FATTURA TPL MENSILITA' MAGGIO 2018;2390;1;3;2;15;1
EREDI LEPORATTI S.A.S.;18/07/2018;Contratti di servizio di trasporto pubblico;857,14;Liquidazione Fattura Nr. 33/E  del 30/05/2018 (di cui Split per euro 77,92) - Servizio Navetta a chiamata Vinci-Anchiano-Vinci e Vinci-Empoli Stazione-Vinci periodo 01/05/2018 - 31/05/2018;2391;1;3;2;15;1
EREDI LEPORATTI S.A.S.;21/08/2018;Contratti di servizio di trasporto pubblico;2.313,11;Liquidazione Fattura Nr. 34/E  del 28/06/2018 (di cui Split per euro 210,28) - FATTURA TPL MENSILITA' GIUGNO 2018;3516;1;3;2;15;1
EREDI LEPORATTI S.A.S.;21/08/2018;Contratti di servizio di trasporto pubblico;857,14;Liquidazione Fattura Nr. 35/E  del 28/06/2018 (di cui Split per euro 77,92) - Servizio Navetta a chiamata Vinci-Anchiano-Vinci e Vinci-Empoli Stazione-Vinci periodo 01/06/2018 - 30/06/2018;3517;1;3;2;15;1
EREDI LEPORATTI S.A.S.;22/08/2018;Contratti di servizio di trasporto pubblico;857,14;Liquidazione Fattura Nr. 36/E  del 30/07/2018 (di cui Split per euro 77,92) - Servizio Navetta a chiamata Vinci-Anchiano-Vinci e Vinci-Empoli Stazione-Vinci periodo 01/07/2018 - 31/07/2018;3534;1;3;2;15;1
EREDI LEPORATTI S.A.S.;22/08/2018;Contratti di servizio di trasporto pubblico;2.104,67;Liquidazione Fattura Nr. 39/E  del 06/08/2018 (di cui Split per euro 191,33) - FATTURA TPL MENSILITA' LUGLIO 2018;3533;1;3;2;15;1
ANGELINO S.R.L.;09/07/2018;Contratti di servizio di trasporto scolastico;597,74;Liquidazione Fattura Nr. 00236P  del 08/06/2018 (di cui Split per euro 54,34) - SERV.SCOLASTICO 2017-2018 - USCITE DIDATTICHE MESI DI OTTOBRE E NOVEMBRE 2017;2346;1;3;2;15;2
ANGELINO S.R.L.;09/07/2018;Contratti di servizio di trasporto scolastico;519,57;Liquidazione Fattura Nr. 00237P  del 08/06/2018 (di cui Split per euro 47,23) - SERV.SCOLASTICO 2017-2018 - USCITE DIDATTICHE MESE DI GENNAIO 2018;2347;1;3;2;15;2
ANGELINO S.R.L.;09/07/2018;Contratti di servizio di trasporto scolastico;2.007,03;Liquidazione Fattura Nr. 00239P  del 08/06/2018 (di cui Split per euro 182,46) - SERV.SCOLASTICO 2017-2018 - USCITE DIDATTICHE MESE DI MARZO 2018;2348;1;3;2;15;2
ANGELINO S.R.L.;09/07/2018;Contratti di servizio di trasporto scolastico;2.126,58;Liquidazione Fattura Nr. 00240P  del 08/06/2018 (di cui Split per euro 193,33) - SERV.SCOLASTICO 2017-2018 - USCITE DIDATTICHE MESE DI APRILE 2018;2350;1;3;2;15;2
ANGELINO S.R.L.;09/07/2018;Contratti di servizio di trasporto scolastico;1.880,58;Liquidazione Fattura Nr. 00241P  del 08/06/2018 (di cui Split per euro 170,96) - SERV.SCOLASTICO 2017-2018 - USCITE DIDATTICHE MESE DI MAGGIO 2018;2349;1;3;2;15;2
ANGELINO S.R.L.;18/07/2018;Contratti di servizio di trasporto scolastico;1.356,41;Liquidazione Fattura Nr. 00242P  del 08/06/2018 (di cui Split per euro 123,31) - SERV.SCOLASTICO 2016-2017 - USCITE DIDATTICHE EFFETTUATE PER I CENTRI ESTIVI MESE DI GIUGNO 2017;2379;1;3;2;15;2
ANGELINO S.R.L.;18/07/2018;Contratti di servizio di trasporto scolastico;1.538,03;Liquidazione Fattura Nr. 00243P  del 08/06/2018 (di cui Split per euro 139,82) - SERV.SCOLASTICO 2017-2018 - USCITE DIDATTICHE MESE DI DICEMBRE 2017;2380;1;3;2;15;2
ANGELINO S.R.L.;08/08/2018;Contratti di servizio di trasporto scolastico;1.650,68;Liquidazione Fattura Nr. 00238P  del 08/06/2018 (di cui Split per euro 150,06) - SERV.SCOLASTICO 2017-2018 - USCITE DIDATTICHE MESE DI FEBBRAIO 2018;2745;1;3;2;15;2
ANGELINO S.R.L.;08/08/2018;Contratti di servizio di trasporto scolastico;20.074,87;Liquidazione Fattura Nr. 00282P  del 09/07/2018 (di cui Split per euro 1.824,99) - servizio trasporto scolastico mese di Giugno 2018;2743;1;3;2;15;2
ANGELINO S.R.L.;08/08/2018;Contratti di servizio di trasporto scolastico;749,47;Liquidazione Fattura Nr. 00283P  del 09/07/2018 (di cui Split per euro 68,13) - USCITE DIDATTICHE MESE DI GIUGNO 2018;2742;1;3;2;15;2
ANGELINO S.R.L.;08/08/2018;Contratti di servizio di trasporto scolastico;1.689,77;Liquidazione Fattura Nr. 00284P  del 09/07/2018 (di cui Split per euro 153,62) - SERV.SCOLASTICO 2017-2018 - USCITE DIDATTICHE CENTRI ESTIVI MESE DI GIUGNO 2018;2744;1;3;2;15;2
ANGELINO S.R.L.;29/08/2018;Contratti di servizio di trasporto scolastico;4.418,68;LIQUIDAZIONE FATTURA NR. 00289P  DEL 30/07/2018 (DI CUI SPLIT PER EURO 401,70) - SERV.SCOLASTICO 2017-2018 - CENTRI ESTIVI MESE DI LUGLIO 2018;3540;1;3;2;15;2
OSPEDALE VETERINARIO LEONARDO DA VINCI;07/08/2018;Contratti di servizio per la lotta al randagismo ;256,13;LIQUIDAZIONE FATTURA NR. 000019-2018-FPA  DEL 29/06/2018 (DI CUI SPLIT PER EURO 46,19) - CN28-04-17 CANE METICCIO M;2730;1;3;2;15;11
"PENSIONE PER CANI E GATTI ""CERTOSA"" S.R.L.";07/08/2018;Contratti di servizio per la lotta al randagismo ;1.101,42;Liquidazione Fattura Nr. FATTPA 49_18  del 01/07/2018 (di cui Split per euro 198,62) - RATA BIMESTRALE CANI MAGGIO GIUGNO 2018;2731;1;3;2;15;11
OSPEDALE VETERINARIO LEONARDO DA VINCI;20/09/2018;Contratti di servizio per la lotta al randagismo ;227,62;LIQUIDAZIONE FATTURA NR. 000020-2018-FPA  DEL 03/07/2018 (DI CUI SPLIT PER EURO 41,05) - GATTO 21/06/2018 GATTO C.EUROPEO F;3710;1;3;2;15;11
ALIA SERVIZI AMBIENTALI S.P.A.;25/07/2018;Contratti di servizio per la raccolta rifiuti;178.793,23;Liquidazione Fattura Nr. 0000132392  del 30/06/2018 (di cui Split per euro 16.253,93) - gestione rifiuti urbani mese di giugno 2018;2634;1;3;2;15;4
ALIA SERVIZI AMBIENTALI S.P.A.;06/09/2018;Contratti di servizio per la raccolta rifiuti;178.793,23;Liquidazione Fattura Nr. 0000132461  del 31/07/2018 (di cui Split per euro 16.253,93) - GESTIONE RIFIUTI URBANI MESE DI LUGLIO 2018;3541;1;3;2;15;4
ALIA SERVIZI AMBIENTALI S.P.A.;20/09/2018;Contratti di servizio per la raccolta rifiuti;178.793,23;"Liquidazione Fattura Nr. 0000132536  del 31/08/2018 (di cui Split per euro 16.253,93) - gestione rifiuti urbani agosto 2018
";3705;1;3;2;15;4
CIR FOOD S.C. DIVISIONE EUDANIA;08/08/2018;Contratti di servizio per le mense scolastiche;159,43;Liquidazione Fattura Nr. 5200015466  del 31/05/2018 (di cui Split per euro 28,75) - PASTI DOMESTICI MESE DI MAGGIO 2018;2739;1;3;2;15;6
CIR FOOD S.C. DIVISIONE EUDANIA;08/08/2018;Contratti di servizio per le mense scolastiche;29.497,74;Liquidazione Fattura Nr. 5200017979  del 31/05/2018 (di cui Split per euro 1.134,53) - Destinatario:0000100288,COMUNE DI VINCI,Piazza Leonardo 29,VINCI,50059,FI Trattenute DPR RIT 0,5 % ART. 4 C.3 DPR 207/2010 di 142,53- RIF2: SER.RIST.SCOL;2738;1;3;2;15;6
CIR FOOD S.C. DIVISIONE EUDANIA;20/09/2018;Contratti di servizio per le mense scolastiche;12.129,84;Liquidazione Fattura Nr. 5200018329  del 30/06/2018 (di cui Split per euro 466,53) - Destinatario:0000100288,COMUNE DI VINCI,Piazza Leonardo 29,VINCI,50059,FI Trattenute DPR RIT 0,5 % ART. 4 C.3 DPR 207/2010 di 58,61- RIF2: SER.RIST.SCOLAST;3694;1;3;2;15;6
CIR FOOD S.C. DIVISIONE EUDANIA;20/09/2018;Contratti di servizio per le mense scolastiche;36,23;Liquidazione Fattura Nr. 5200019403  del 30/06/2018 (di cui Split per euro 6,53) - Destinatario:0000526587,COMUNE DI VINCI Pasto Domestico,SCUOLA GALILEI P.ZA GARIBALDI,VINCI,50059,FI RIF2: APPARECCHIATURA E PULIZIA PER IL CONSUMO DEL PASTO;3695;1;3;2;15;6
EDISON ENERGIA S.P.A.;03/07/2018;Energia elettrica;14,25;Liquidazione Fattura Nr. 5750585333  del 13/06/2018 (di cui Split per euro 2,57) - IT001E04919526 - fornitura energia elettrica mese di maggio 2018 bagni pubblici;2329;1;3;2;5;4
EDISON ENERGIA S.P.A.;03/07/2018;Energia elettrica;22,52;Liquidazione Fattura Nr. 5750586543  del 13/06/2018 (di cui Split per euro 4,06) - IT001E40889318 - fornitura energia elettrica mese di maggio 2018 casa Comparini;2291;1;3;2;5;4
EDISON ENERGIA S.P.A.;03/07/2018;Energia elettrica;22,52;Liquidazione Fattura Nr. 5750586561  del 13/06/2018 (di cui Split per euro 4,06) - IT001E04919533 - fornitura energia elettrica mese di maggio 2018 uff. dismesso Via Torre, 3;2290;1;3;2;5;4
EDISON ENERGIA S.P.A.;03/07/2018;Energia elettrica;22,52;Liquidazione Fattura Nr. 5750586623  del 13/06/2018 (di cui Split per euro 4,06) - IT001E04919518 - fornitura energia elettrica mese di maggio 2018 pilomat;2325;1;3;2;5;4
EDISON ENERGIA S.P.A.;03/07/2018;Energia elettrica;22,52;Liquidazione Fattura Nr. 5750586675  del 13/06/2018 (di cui Split per euro 4,06) - IT001E43232056 - fornitura energia elettrica mese di maggio 2018 fontanello Apparita;2331;1;3;2;5;4
EDISON ENERGIA S.P.A.;03/07/2018;Energia elettrica;22,52;Liquidazione Fattura Nr. 5750586743  del 13/06/2018 (di cui Split per euro 4,06) - IT001E04919522 - fornitura energia elettrica mese di maggio 2018 locali ex macelli;2292;1;3;2;5;4
EDISON ENERGIA S.P.A.;03/07/2018;Energia elettrica;23,88;Liquidazione Fattura Nr. 5750587478  del 13/06/2018 (di cui Split per euro 2,17) - IT001E41741369 - fornitura energia elettria mese di maggio 2018 alloggi Petroio;2294;1;3;2;5;4
EDISON ENERGIA S.P.A.;03/07/2018;Energia elettrica;34,26;Liquidazione Fattura Nr. 5750588157  del 13/06/2018 (di cui Split per euro 6,18) - IT001E04919543 - fornitura energia mese di maggio 2018 mercato settimanale e impianto irrigazione;2327;1;3;2;5;4
EDISON ENERGIA S.P.A.;03/07/2018;Energia elettrica;42,61;Liquidazione Fattura Nr. 5750588632  del 13/06/2018 (di cui Split per euro 7,68) - IT001E04919530 - fornitura energia elettrica mese di maggio 2018 ex scuola di Anchiano;2293;1;3;2;5;4
EDISON ENERGIA S.P.A.;03/07/2018;Energia elettrica;44,20;Liquidazione Fattura Nr. 5750588946  del 13/06/2018 (di cui Split per euro 7,97) - IT001E43263124 - fornitura energia elettrica mese di maggio 2018 fontanello Vitolini;2330;1;3;2;5;4
EDISON ENERGIA S.P.A.;03/07/2018;Energia elettrica;47,78;Liquidazione Fattura Nr. 5750589237  del 13/06/2018 (di cui Split per euro 8,62) - IT001E41398842 -- fornitura energia elettrica mese di maggio 2018 fontanello parco mille;2332;1;3;2;5;4
EDISON ENERGIA S.P.A.;03/07/2018;Energia elettrica;59,06;Liquidazione Fattura Nr. 5750589745  del 13/06/2018 (di cui Split per euro 10,65) - IT001E04919532 - fornitura energia elettrica mese di maggio 2018 uff. comunali Via Torre, 9;2296;1;3;2;5;4
EDISON ENERGIA S.P.A.;03/07/2018;Energia elettrica;80,95;Liquidazione Fattura Nr. 5750590678  del 13/06/2018 (di cui Split per euro 14,60) - IT001E04919525 - fornitura energia elettrica mese di maggio 2018 Uff. Turistico nuovo;2328;1;3;2;5;4
EDISON ENERGIA S.P.A.;03/07/2018;Energia elettrica;94,42;Liquidazione Fattura Nr. 5750591106  del 13/06/2018 (di cui Split per euro 17,03) - IT001E04919517 - fornitura energia elettrica mese di maggio 2018 cassa espansione Piccaratico;2326;1;3;2;5;4
EDISON ENERGIA S.P.A.;03/07/2018;Energia elettrica;108,21;Liquidazione Fattura Nr. 5750591381  del 13/06/2018 (di cui Split per euro 19,51) - IT001E04919527 - fornitura energia elettrica mese di maggio 2018 archivio comunale;2299;1;3;2;5;4
EDISON ENERGIA S.P.A.;03/07/2018;Energia elettrica;194,75;Liquidazione Fattura Nr. 5750592228  del 13/06/2018 (di cui Split per euro 35,12) - IT001E04919515 - fornitura energia elettrica mese di maggio 2018 scuola infanzia Spicchio;2307;1;3;2;5;4
EDISON ENERGIA S.P.A.;03/07/2018;Energia elettrica;209,55;Liquidazione Fattura Nr. 5750592326  del 13/06/2018 (di cui Split per euro 37,79) - IT001E04919540 - fonritura energia elettrica mese di maggio 2018 Villa Reghini;2335;1;3;2;5;4
EDISON ENERGIA S.P.A.;03/07/2018;Energia elettrica;224,09;Liquidazione Fattura Nr. 5750592435  del 13/06/2018 (di cui Split per euro 40,41) - IT001E04919519 - fornitura energia elettrica mese di maggio 2018 URP Via Fucini;2300;1;3;2;5;4
EDISON ENERGIA S.P.A.;03/07/2018;Energia elettrica;241,88;Liquidazione Fattura Nr. 5750592524  del 13/06/2018 (di cui Split per euro 43,62) - IT001E04919524 - fornitura energia elettrica mese di maggio 2018 magazzino comunale;2295;1;3;2;5;4
EDISON ENERGIA S.P.A.;03/07/2018;Energia elettrica;249,86;Liquidazione Fattura Nr. 5750592583  del 13/06/2018 (di cui Split per euro 45,06) - IT001E40889726 - fornitura energia elettrica mese di maggio 2018 Teatro Misericordia;2320;1;3;2;5;4
EDISON ENERGIA S.P.A.;03/07/2018;Energia elettrica;329,49;Liquidazione Fattura Nr. 5750592945  del 13/06/2018 (di cui Split per euro 59,42) - IT001E04919536 - fornitura energia elettrica mese di maggio 2018 uff. comunali Via Battisti ;2297;1;3;2;5;4
EDISON ENERGIA S.P.A.;03/07/2018;Energia elettrica;347,18;Liquidazione Fattura Nr. 5750593021  del 13/06/2018 (di cui Split per euro 62,61) - IT001E04919521 - fornitura energia elettrica mese di maggio 2018 biblioteca;2315;1;3;2;5;4
EDISON ENERGIA S.P.A.;03/07/2018;Energia elettrica;372,61;Liquidazione Fattura Nr. 5750593098  del 13/06/2018 (di cui Split per euro 67,19) - IT001E04919544 - fornitura energia elettrica mese di maggio 2018 nido comunale;2333;1;3;2;5;4
EDISON ENERGIA S.P.A.;03/07/2018;Energia elettrica;156,83;Liquidazione Fattura Nr. 5750593135  del 13/06/2018 (di cui Split per euro 28,28) - IT001E41412665 - fornitura energia elettrica mese di maggio 2018 Palasport;2324;1;3;2;5;4
EDISON ENERGIA S.P.A.;03/07/2018;Energia elettrica;235,25;Liquidazione Fattura Nr. 5750593135  del 13/06/2018 (di cui Split per euro 42,42) - IT001E41412665 - fornitura energia elettrica mese di maggio 2018 Palasport;2323;1;3;2;5;4
EDISON ENERGIA S.P.A.;03/07/2018;Energia elettrica;418,86;Liquidazione Fattura Nr. 5750593191  del 13/06/2018 (di cui Split per euro 75,53) - IT001E04919534 - fornitura energia elettrica mese di maggio 2018 residenza per anziani;2339;1;3;2;5;4
EDISON ENERGIA S.P.A.;03/07/2018;Energia elettrica;439,75;Liquidazione Fattura Nr. 5750593233  del 13/06/2018 (di cui Split per euro 79,30) - IT001E04919529 - fornitura energia elettrica mese di maggio 2018 casa natale Leonardo;2317;1;3;2;5;4
EDISON ENERGIA S.P.A.;03/07/2018;Energia elettrica;466,71;Liquidazione Fattura Nr. 5750593266  del 13/06/2018 (di cui Split per euro 84,16) - IT001E04919535 - forniuta energia elettrica mese di maggio 2018 scuola infanzia Vinci;2306;1;3;2;5;4
EDISON ENERGIA S.P.A.;03/07/2018;Energia elettrica;639,26;Liquidazione Fattura Nr. 5750593510  del 13/06/2018 (di cui Split per euro 115,28) - IT001E04919516 - fornitura energia elettrica mese di maggio 2018 scuola primaria di Spicchio;2308;1;3;2;5;4
EDISON ENERGIA S.P.A.;03/07/2018;Energia elettrica;343,29;Liquidazione Fattura Nr. 5750593602  del 13/06/2018 (di cui Split per euro 61,90) - IT001E04919520 - fornitura energia elettrica mese di maggio 2018 scuola primaria e secondaia 1� grado di Vinci;2313;1;3;2;5;4
EDISON ENERGIA S.P.A.;03/07/2018;Energia elettrica;343,30;Liquidazione Fattura Nr. 5750593602  del 13/06/2018 (di cui Split per euro 61,91) - IT001E04919520 - fornitura energia elettrica mese di maggio 2018 scuola primaria e secondaia 1� grado di Vinci;2309;1;3;2;5;4
EDISON ENERGIA S.P.A.;03/07/2018;Energia elettrica;724,19;Liquidazione Fattura Nr. 5750593647  del 13/06/2018 (di cui Split per euro 130,59) - IT001E04919531 - fornitura energia elettrica mese di maggio 2018 museo Leonardiano;2318;1;3;2;5;4
EDISON ENERGIA S.P.A.;03/07/2018;Energia elettrica;732,67;Liquidazione Fattura Nr. 5750593658  del 13/06/2018 (di cui Split per euro 132,12) - IT001E04919538 - fornitura energia elettrica mese di maggio 2018 scuola infanzia Sovigliana;2305;1;3;2;5;4
EDISON ENERGIA S.P.A.;03/07/2018;Energia elettrica;816,86;Liquidazione Fattura Nr. 5750593777  del 13/06/2018 (di cui Split per euro 147,30) - IT001E40886806 - fornitura energia elettrica mese di maggio 2018 scuola sec. 1� grado di Sovigliana;2314;1;3;2;5;4
EDISON ENERGIA S.P.A.;03/07/2018;Energia elettrica;1.071,51;Liquidazione Fattura Nr. 5750594023  del 13/06/2018 (di cui Split per euro 193,22) - IT001E04919523 - fornitura energia elettrica mese di maggio 2018 edificio comunale;2289;1;3;2;5;4
EDISON ENERGIA S.P.A.;03/07/2018;Energia elettrica;1.433,07;Liquidazione Fattura Nr. 5750594159  del 13/06/2018 (di cui Split per euro 258,42) - IT001E04919528 - fornitura energia elettrica mese di maggio 2018 Palazzina Uzielli;2319;1;3;2;5;4
EDISON ENERGIA S.P.A.;18/07/2018;Energia elettrica;15.388,58;Liquidazione Fattura Nr. 5750594819  del 13/06/2018 (di cui Split per euro 2.774,99) - FORNITURA ENERGIA ELETTRICA PER P.I. MAGGIO 2018;2396;1;3;2;5;4
GESTORE DEI SERVIZI ENERGETICI - GSE S.P.A.;23/07/2018;Energia elettrica;41,58;COMPENSAZIONE reversali n. 5128 e 5129: LIQUIDAZIONE FATTURA NR. 21916  DEL 01/06/2018 (DI CUI SPLIT PER EURO 7,50) - CORRISPETTIVO A COPERTURA DEGLI ONERI DI GESTIONE CONVENZIONE: P02E22139407;2432;1;3;2;5;4
EDISON ENERGIA S.P.A.;10/08/2018;Energia elettrica;14,25;Liquidazione Fattura Nr. 5750600204  del 13/07/2018 (di cui Split per euro 2,57) - IT001E04919526 - fornitura energia elettrica mese di giugno 2018 bagni pubblici;3132;1;3;2;5;4
EDISON ENERGIA S.P.A.;10/08/2018;Energia elettrica;22,52;Liquidazione Fattura Nr. 5750600771  del 13/07/2018 (di cui Split per euro 4,06) - IT001E04919518 - fornitura energia elettrica mese di giugno 2018 pilomat;3131;1;3;2;5;4
EDISON ENERGIA S.P.A.;10/08/2018;Energia elettrica;22,52;Liquidazione Fattura Nr. 5750600853  del 13/07/2018 (di cui Split per euro 4,06) - IT001E43232056 - fornitura energia elettrica mese di giugno 2018 Fontanello Apparita;3134;1;3;2;5;4
EDISON ENERGIA S.P.A.;10/08/2018;Energia elettrica;22,52;Liquidazione Fattura Nr. 5750600857  del 13/07/2018 (di cui Split per euro 4,06) - IT001E04919522 - - fornitura energia elettrica mese di giugno 2018 locali ex macelli;3110;1;3;2;5;4
EDISON ENERGIA S.P.A.;10/08/2018;Energia elettrica;23,88;Liquidazione Fattura Nr. 5750601001  del 13/07/2018 (di cui Split per euro 4,31) - IT001E04919533 - fornitura energia elettrica mese di giugno 2018 ufficio dismesso Via Torre, 3;3111;1;3;2;5;4
EDISON ENERGIA S.P.A.;10/08/2018;Energia elettrica;22,83;Liquidazione Fattura Nr. 5750601083  del 13/07/2018 (di cui Split per euro 2,08) - IT001E41741369 - fornitura energia elettrica mese di giugno 2018 alloggi Petroio;3108;1;3;2;5;4
EDISON ENERGIA S.P.A.;10/08/2018;Energia elettrica;37,89;Liquidazione Fattura Nr. 5750601673  del 13/07/2018 (di cui Split per euro 6,83) - IT001E43263124 - fornitura energia elettrica mese di giugno 2018 Fontanello Vitolini;3136;1;3;2;5;4
EDISON ENERGIA S.P.A.;10/08/2018;Energia elettrica;39,64;Liquidazione Fattura Nr. 5750601708  del 13/07/2018 (di cui Split per euro 7,15) - IT001E04919530 - fornitura energia elettrica mese di giugno 2018 ex scuola di Anchiano;3109;1;3;2;5;4
EDISON ENERGIA S.P.A.;10/08/2018;Energia elettrica;41,11;Liquidazione Fattura Nr. 5750601724  del 13/07/2018 (di cui Split per euro 7,41) - IT001E04919543 - fornitura energia elettrica mese di giugno 2018 mercato settimanale e impianto irrigazione;3130;1;3;2;5;4
EDISON ENERGIA S.P.A.;10/08/2018;Energia elettrica;49,35;Liquidazione Fattura Nr. 5750602124  del 13/07/2018 (di cui Split per euro 8,90) - IT001E41398842 - fornitura energia elettrica mese di giugno 2018 fontanello Parco Mille;3135;1;3;2;5;4
EDISON ENERGIA S.P.A.;10/08/2018;Energia elettrica;57,54;Liquidazione Fattura Nr. 5750602272  del 13/07/2018 (di cui Split per euro 10,38) - IT001E04919532 - fornitura energia elettrica mese di giugno 2018 uff. comunali Via Torre, 9;3104;1;3;2;5;4
EDISON ENERGIA S.P.A.;10/08/2018;Energia elettrica;80,62;Liquidazione Fattura Nr. 5750602613  del 13/07/2018 (di cui Split per euro 14,54) - IT001E40889318 - fornitura energia elettrica mese di giugno 2018 casa Comparini;3105;1;3;2;5;4
EDISON ENERGIA S.P.A.;10/08/2018;Energia elettrica;88,08;Liquidazione Fattura Nr. 5750602690  del 13/07/2018 (di cui Split per euro 15,88) - IT001E04919517 - fornitura energia elettrica mese di giugno 2018 cassa espansione Piccaratico;3129;1;3;2;5;4
EDISON ENERGIA S.P.A.;10/08/2018;Energia elettrica;124,62;Liquidazione Fattura Nr. 5750603019  del 13/07/2018 (di cui Split per euro 22,47) - IT001E04919527 - fornitura energia elettrica mese di giugno 2018 archivio comunale;3114;1;3;2;5;4
EDISON ENERGIA S.P.A.;10/08/2018;Energia elettrica;148,08;Liquidazione Fattura Nr. 5750603188  del 13/07/2018 (di cui Split per euro 26,70) - IT001E04919515 - fornitura energia elettrica mese di giugno 2018 scuola infanzia Spicchio;3117;1;3;2;5;4
EDISON ENERGIA S.P.A.;10/08/2018;Energia elettrica;88,53;Liquidazione Fattura Nr. 5750603565  del 13/07/2018 (di cui Split per euro 15,96) - IT001E41412665 - fornitura energia elettrica mese di giugno 2018 Palasport;3127;1;3;2;5;4
EDISON ENERGIA S.P.A.;10/08/2018;Energia elettrica;132,80;Liquidazione Fattura Nr. 5750603565  del 13/07/2018 (di cui Split per euro 23,95) - IT001E41412665 - fornitura energia elettrica mese di giugno 2018 Palasport;3128;1;3;2;5;4
EDISON ENERGIA S.P.A.;10/08/2018;Energia elettrica;237,28;Liquidazione Fattura Nr. 5750603622  del 13/07/2018 (di cui Split per euro 42,79) - IT001E40889726 - fornitura energia elettrica mese di giugno 2018 teatro Misericordia;3126;1;3;2;5;4
EDISON ENERGIA S.P.A.;10/08/2018;Energia elettrica;243,19;Liquidazione Fattura Nr. 5750603646  del 13/07/2018 (di cui Split per euro 43,85) - IT001E04919519 - fornitura energia elettrica mese di giugno 2018 URP Via Fucini;3113;1;3;2;5;4
EDISON ENERGIA S.P.A.;10/08/2018;Energia elettrica;271,56;Liquidazione Fattura Nr. 5750603752  del 13/07/2018 (di cui Split per euro 48,97) - IT001E04919524 - fornitura energia elettrica mese di giugno 2018 magazzino comunale;3107;1;3;2;5;4
EDISON ENERGIA S.P.A.;10/08/2018;Energia elettrica;322,76;Liquidazione Fattura Nr. 5750603987  del 13/07/2018 (di cui Split per euro 58,20) - IT001E04919521 - fornitura energia elettrica mese di giugno 2018 biblioteca;3122;1;3;2;5;4
EDISON ENERGIA S.P.A.;10/08/2018;Energia elettrica;323,87;Liquidazione Fattura Nr. 5750603993  del 13/07/2018 (di cui Split per euro 58,40) - IT001E04919544 - fornitura energia elettrica mese di giugno 2018 nido comunale;3137;1;3;2;5;4
EDISON ENERGIA S.P.A.;10/08/2018;Energia elettrica;327,56;Liquidazione Fattura Nr. 5750604005  del 13/07/2018 (di cui Split per euro 59,07) - IT001E04919536 - fornitura energia elettrica mese di giugno 2018 uffici comunali Via Battisti;3106;1;3;2;5;4
EDISON ENERGIA S.P.A.;10/08/2018;Energia elettrica;363,55;Liquidazione Fattura Nr. 5750604173  del 13/07/2018 (di cui Split per euro 65,56) - IT001E04919535 - fornitura energia elettrica mese di giugno 2018 scuola infanzia Vinci;3115;1;3;2;5;4
EDISON ENERGIA S.P.A.;10/08/2018;Energia elettrica;408,59;Liquidazione Fattura Nr. 5750604404  del 13/07/2018 (di cui Split per euro 73,68) - IT001E04919516 - fornitura energia elettrica mese di giugno 2018 scuola primaria Spicchio;3119;1;3;2;5;4
EDISON ENERGIA S.P.A.;10/08/2018;Energia elettrica;411,15;Liquidazione Fattura Nr. 5750604414  del 13/07/2018 (di cui Split per euro 74,14) - IT001E04919540 - fornitura energia elettrica mese di giugno 2018 villa Reghini;3138;1;3;2;5;4
EDISON ENERGIA S.P.A.;10/08/2018;Energia elettrica;209,43;Liquidazione Fattura Nr. 5750604442  del 13/07/2018 (di cui Split per euro 37,76) - IT001E04919520 - fornitura energia elettrica mese di giugno 2018 scuola primaria e sec. 1� grado di Vinci;3121;1;3;2;5;4
EDISON ENERGIA S.P.A.;10/08/2018;Energia elettrica;209,44;Liquidazione Fattura Nr. 5750604442  del 13/07/2018 (di cui Split per euro 37,77) - IT001E04919520 - fornitura energia elettrica mese di giugno 2018 scuola primaria e sec. 1� grado di Vinci;3118;1;3;2;5;4
EDISON ENERGIA S.P.A.;10/08/2018;Energia elettrica;433,51;Liquidazione Fattura Nr. 5750604531  del 13/07/2018 (di cui Split per euro 78,17) - IT001E04919534 - fornitura energia elettrica mese di giugno 2018 residenza per anziani;3139;1;3;2;5;4
EDISON ENERGIA S.P.A.;10/08/2018;Energia elettrica;475,56;Liquidazione Fattura Nr. 5750604676  del 13/07/2018 (di cui Split per euro 85,76) - IT001E40886806 - fornitura energia elettrica mese di giugno 2018 scuola sec. 1� grado Sovigliana;3120;1;3;2;5;4
EDISON ENERGIA S.P.A.;10/08/2018;Energia elettrica;535,73;Liquidazione Fattura Nr. 5750604875  del 13/07/2018 (di cui Split per euro 96,61) - IT001E04919529 - fornitura energia elettrica mese di giugno 2018 casa natale Leonardo;3123;1;3;2;5;4
EDISON ENERGIA S.P.A.;10/08/2018;Energia elettrica;631,28;Liquidazione Fattura Nr. 5750605180  del 13/07/2018 (di cui Split per euro 113,84) - IT001E04919538 - fornitura energia elettrica mese di giugno 2018 scuola infanzia Sovigliana;3116;1;3;2;5;4
EDISON ENERGIA S.P.A.;10/08/2018;Energia elettrica;1.001,84;Liquidazione Fattura Nr. 5750605600  del 13/07/2018 (di cui Split per euro 180,66) - IT001E04919523 - fornitura energia elettrica mese di giugno 2018 edificio comunale;3112;1;3;2;5;4
EDISON ENERGIA S.P.A.;10/08/2018;Energia elettrica;1.174,30;Liquidazione Fattura Nr. 5750605694  del 13/07/2018 (di cui Split per euro 211,76) - IT001E04919531 - fornitura energia elettrica mese di giugno 2018 museo Leonardiano;3125;1;3;2;5;4
EDISON ENERGIA S.P.A.;10/08/2018;Energia elettrica;2.283,30;Liquidazione Fattura Nr. 5750606083  del 13/07/2018 (di cui Split per euro 411,74) - IT001E04919528 - fornitura energia elettrica mese di giugno 2018 Palazzina Uzielli;3124;1;3;2;5;4
EDISON ENERGIA S.P.A.;10/08/2018;Energia elettrica;13.860,44;Liquidazione Fattura Nr. 5750606858  del 13/07/2018 (di cui Split per euro 2.499,42) - FORNITURA ENERGIA ELETTRICA PER P.I. - GIUGNO 2018;3133;1;3;2;5;4
EDISON ENERGIA S.P.A.;16/08/2018;Energia elettrica;73,79;Liquidazione Fattura Nr. 5750602541  del 13/07/2018 (di cui Split per euro 13,31) - IT001E04919525 - fornitura energia elettrica mese di giugno 2018 ufficio turistico nuovo;3427;1;3;2;5;4
EDISON ENERGIA S.P.A.;13/09/2018;Energia elettrica;12,10;Liquidazione Fattura Nr. 5750616474  del 09/08/2018 (di cui Split per euro 2,18) - IT001E04919526 - fornitura energia elettrica mese di luglio 2018 bagni pubblici;3609;1;3;2;5;4
EDISON ENERGIA S.P.A.;13/09/2018;Energia elettrica;14,20;Liquidazione Fattura Nr. 5750617927  del 09/08/2018 (di cui Split per euro 2,56) - IT001E43232057  - fornitura energia elettrica mese di luglio 2018 fontanello p.zza Garibaldi Vinci;3614;1;3;2;5;4
EDISON ENERGIA S.P.A.;13/09/2018;Energia elettrica;18,07;Liquidazione Fattura Nr. 5750619188  del 09/08/2018 (di cui Split per euro 3,26) - IT001E04919543 - fornitura energia elettrica mese di luglio 2018 mercato settimanale e impianto irrigazione;3607;1;3;2;5;4
EDISON ENERGIA S.P.A.;13/09/2018;Energia elettrica;19,13;Liquidazione Fattura Nr. 5750619560  del 09/08/2018 (di cui Split per euro 3,45) - IT001E04919522 - fornitura energia elettrica mese di luglio 2018 locali ex macelli;3585;1;3;2;5;4
EDISON ENERGIA S.P.A.;13/09/2018;Energia elettrica;21,98;Liquidazione Fattura Nr. 5750620660  del 09/08/2018 (di cui Split per euro 3,96) - IT001E04919518 - fornitura energia elettrica mese di luglio 2018 pilomat;3608;1;3;2;5;4
EDISON ENERGIA S.P.A.;13/09/2018;Energia elettrica;22,06;Liquidazione Fattura Nr. 5750620680  del 09/08/2018 (di cui Split per euro 3,98) - IT001E43263124 - fornitura energia elettrica mese di luglio 2018 fontanello Vitolini;3615;1;3;2;5;4
EDISON ENERGIA S.P.A.;13/09/2018;Energia elettrica;21,54;Liquidazione Fattura Nr. 5750621172  del 09/08/2018 (di cui Split per euro 1,96) - IT001E41741369 - fornitura energia elettrica mese di luglio 2018 alloggi Petroio;3586;1;3;2;5;4
EDISON ENERGIA S.P.A.;13/09/2018;Energia elettrica;29,21;Liquidazione Fattura Nr. 5750622033  del 09/08/2018 (di cui Split per euro 5,27) - IT001E04919533 - fornitura energia elettrica mese di luglio 2018 uff. dismesso Via Torre, 3;3582;1;3;2;5;4
EDISON ENERGIA S.P.A.;13/09/2018;Energia elettrica;30,15;Liquidazione Fattura Nr. 5750622141  del 09/08/2018 (di cui Split per euro 5,44) - IT001E40889318 - fornitura energia elettrica mese di luglio 2018 casa comparini;3581;1;3;2;5;4
EDISON ENERGIA S.P.A.;13/09/2018;Energia elettrica;37,49;Liquidazione Fattura Nr. 5750622931  del 09/08/2018 (di cui Split per euro 6,76) - IT001E43232056 - fornitura energia elettrica mese di luglio 2018 fontanello Apparita;3612;1;3;2;5;4
EDISON ENERGIA S.P.A.;13/09/2018;Energia elettrica;38,44;Liquidazione Fattura Nr. 5750623083  del 09/08/2018 (di cui Split per euro 6,93) - IT001E04919530 - fornitura energia elettrica mese di luglio 2018 ex scuola Anchiano;3583;1;3;2;5;4
EDISON ENERGIA S.P.A.;13/09/2018;Energia elettrica;47,54;Liquidazione Fattura Nr. 5750623666  del 09/08/2018 (di cui Split per euro 8,57) - IT001E41398842 - fornitura energia elettrica mese di luglio 2018 fontanello Parco Mille;3613;1;3;2;5;4
EDISON ENERGIA S.P.A.;13/09/2018;Energia elettrica;50,84;Liquidazione Fattura Nr. 5750623800  del 09/08/2018 (di cui Split per euro 9,17) - IT001E04919532 - fornitura energia elettrica mese di luglio 2018 uff. comunali Via Torre, 9;3584;1;3;2;5;4
EDISON ENERGIA S.P.A.;13/09/2018;Energia elettrica;72,07;Liquidazione Fattura Nr. 5750624560  del 09/08/2018 (di cui Split per euro 13,00) - IT001E04919527 - fornitura energia elettrica mese di luglio 2018 archivio comunale;3590;1;3;2;5;4
EDISON ENERGIA S.P.A.;13/09/2018;Energia elettrica;75,62;Liquidazione Fattura Nr. 5750624655  del 09/08/2018 (di cui Split per euro 13,64) - IT001E04919517 - fornitura energia elettrica mese di luglio 2018 cassa espansione Piccaratico;3606;1;3;2;5;4
EDISON ENERGIA S.P.A.;13/09/2018;Energia elettrica;66,01;Liquidazione Fattura Nr. 5750625520  del 09/08/2018 (di cui Split per euro 11,90) - IT001E41412665 - fornitura energia elettrica mese di luglio 2018 palasport;3604;1;3;2;5;4
EDISON ENERGIA S.P.A.;13/09/2018;Energia elettrica;44,00;Liquidazione Fattura Nr. 5750625520  del 09/08/2018 (di cui Split per euro 7,94) - IT001E41412665 - fornitura energia elettrica mese di luglio 2018 palasport;3605;1;3;2;5;4
EDISON ENERGIA S.P.A.;13/09/2018;Energia elettrica;112,44;Liquidazione Fattura Nr. 5750625575  del 09/08/2018 (di cui Split per euro 20,28) - IT001E04919515 - fornitura energia elettrica mese di luglio 2018 scuola infanzia Spicchio;3592;1;3;2;5;4
EDISON ENERGIA S.P.A.;13/09/2018;Energia elettrica;130,54;Liquidazione Fattura Nr. 5750625870  del 09/08/2018 (di cui Split per euro 23,54) - IT001E04919525 - fornitura energia elettrica mese di luglio 2018 uff. turistico nuovo ;3610;1;3;2;5;4
EDISON ENERGIA S.P.A.;13/09/2018;Energia elettrica;153,35;Liquidazione Fattura Nr. 5750626198  del 09/08/2018 (di cui Split per euro 27,65) - IT001E04919535 - fornitura energia elettrica mese di luglio 2018 scuola infanzia Vinci;3594;1;3;2;5;4
EDISON ENERGIA S.P.A.;13/09/2018;Energia elettrica;238,84;Liquidazione Fattura Nr. 5750626998  del 09/08/2018 (di cui Split per euro 43,07) - IT001E04919538 - fornitura energia elettrica mese di luglio 2018 scuola infanzia Sovigliana;3593;1;3;2;5;4
EDISON ENERGIA S.P.A.;13/09/2018;Energia elettrica;250,70;Liquidazione Fattura Nr. 5750627079  del 09/08/2018 (di cui Split per euro 45,21) - IT001E40886806 - fornitura energia elettrica mese di luglio 2018 scuola sec. 1� grado di Sovigliana;3598;1;3;2;5;4
EDISON ENERGIA S.P.A.;13/09/2018;Energia elettrica;262,39;Liquidazione Fattura Nr. 5750627160  del 09/08/2018 (di cui Split per euro 47,32) - IT001E04919519 - fornitura energia elettrica mese di luglio 2018 URP Via Fucini;3591;1;3;2;5;4
EDISON ENERGIA S.P.A.;13/09/2018;Energia elettrica;278,90;Liquidazione Fattura Nr. 5750627255  del 09/08/2018 (di cui Split per euro 50,29) - IT001E04919544  - fornitura energia elettrica mese di luglio 2018 nido comunale;3616;1;3;2;5;4
EDISON ENERGIA S.P.A.;13/09/2018;Energia elettrica;291,21;Liquidazione Fattura Nr. 5750627311  del 09/08/2018 (di cui Split per euro 52,51) - IT001E04919516  - fornitura energia elettrica mese di luglio 2018 scuola primaria Via Guiducci;3596;1;3;2;5;4
EDISON ENERGIA S.P.A.;13/09/2018;Energia elettrica;292,69;Liquidazione Fattura Nr. 5750627314  del 09/08/2018 (di cui Split per euro 52,78) - IT001E40889726 - fornitura energia elettrica mese di luglio 2018 Teatro misericordia;3603;1;3;2;5;4
EDISON ENERGIA S.P.A.;13/09/2018;Energia elettrica;315,43;Liquidazione Fattura Nr. 5750627431  del 09/08/2018 (di cui Split per euro 56,88) - IT001E04919521 - fornitura energia elettrica mese di luglio 2018 biblioteca;3599;1;3;2;5;4
EDISON ENERGIA S.P.A.;13/09/2018;Energia elettrica;169,98;Liquidazione Fattura Nr. 5750627535  del 09/08/2018 (di cui Split per euro 30,65) - IT001E04919520 - fornitura energia elettrica mese di luglio 2018 scuola primaria e secondaria 1� grado di Vinci;3597;1;3;2;5;4
EDISON ENERGIA S.P.A.;13/09/2018;Energia elettrica;169,99;Liquidazione Fattura Nr. 5750627535  del 09/08/2018 (di cui Split per euro 30,66) - IT001E04919520 - fornitura energia elettrica mese di luglio 2018 scuola primaria e secondaria 1� grado di Vinci;3595;1;3;2;5;4
EDISON ENERGIA S.P.A.;13/09/2018;Energia elettrica;419,79;Liquidazione Fattura Nr. 5750627833  del 09/08/2018 (di cui Split per euro 75,70) - IT001E04919524 - fornitura energia elettrica mese di luglio 2018 magazzino comunale;3587;1;3;2;5;4
EDISON ENERGIA S.P.A.;13/09/2018;Energia elettrica;428,22;Liquidazione Fattura Nr. 5750627855  del 09/08/2018 (di cui Split per euro 77,22) - IT001E04919534 - fornitura energia elettrica mese di luglio 2018 residenza per anziani;3618;1;3;2;5;4
EDISON ENERGIA S.P.A.;13/09/2018;Energia elettrica;430,20;Liquidazione Fattura Nr. 5750627862  del 09/08/2018 (di cui Split per euro 77,58) - IT001E04919536 - fornitura energia elettrica mese di luglio 2018 uff. comunali Via Battisti;3588;1;3;2;5;4
EDISON ENERGIA S.P.A.;13/09/2018;Energia elettrica;444,75;Liquidazione Fattura Nr. 5750627903  del 09/08/2018 (di cui Split per euro 80,20) - IT001E04919540 - fornitura energia elettrica mese di luglio 2018 villa reghini;3617;1;3;2;5;4
EDISON ENERGIA S.P.A.;13/09/2018;Energia elettrica;575,35;Liquidazione Fattura Nr. 5750628177  del 09/08/2018 (di cui Split per euro 103,75) - IT001E04919529 - fornitura energia elettrica mese di luglio 2018 casa natale Leonardo;3602;1;3;2;5;4
EDISON ENERGIA S.P.A.;13/09/2018;Energia elettrica;925,36;Liquidazione Fattura Nr. 5750628570  del 09/08/2018 (di cui Split per euro 166,87) - IT001E04919531  - fornitura energia elettrica mese di luglio 2018 museo Leonardiano;3600;1;3;2;5;4
EDISON ENERGIA S.P.A.;13/09/2018;Energia elettrica;1.014,72;Liquidazione Fattura Nr. 5750628636  del 09/08/2018 (di cui Split per euro 182,98) - IT001E04919523 - fornitura energia elettrica mese di luglio 2018 edificio comunale;3589;1;3;2;5;4
EDISON ENERGIA S.P.A.;13/09/2018;Energia elettrica;3.365,48;Liquidazione Fattura Nr. 5750629030  del 09/08/2018 (di cui Split per euro 606,89) - IT001E04919528 - fornitura energia elettrica mese di luglio 2018 palazzina Uzielli;3601;1;3;2;5;4
EDISON ENERGIA S.P.A.;13/09/2018;Energia elettrica;13.887,14;LIQUIDAZIONE FATTURA NR. 5750629204  DEL 09/08/2018 (DI CUI SPLIT PER EURO 2.504,24) - FORNITURA ENERGIA ELETTRICA PER P.I.-LUGLIO 2018;3611;1;3;2;5;4
AUTOGAMMA SNC DI LETTIERI FABIO & C.;25/07/2018;Equipaggiamento;366,88;Liquidazione Fattura Nr. 10  del 31/05/2018 (di cui Split per euro 66,16) - FORNITURA G.A.V.;2637;1;3;1;2;3
ROMEO PURI IMPIANTI;12/07/2018;Fabbricati ad uso scolastico;14.658,56;Liquidazione Fattura Nr. 07/E  del 23/05/2018 (di cui Split per euro 1.332,60) - LAVORI DI ADEGUAMENTO STRUTTURALE PRESSO IL PLESSO SCOLASTICO DI PIAZZA GARIBALDI IN VINCI CAPOLUOGO - DETERMINA A CONTRARRE E AFFIDAMENTO DITTA ROMEO PURI IMP;2368;2;2;1;9;3
ROMEO PURI IMPIANTI;12/07/2018;Fabbricati ad uso scolastico;17.992,80;Liquidazione Fattura Nr. 09/E  del 08/06/2018 (di cui Split per euro 1.635,71) - RIQUALIFICAZIONE DEGLI SPOGLIATOI DELLA PALESTRA E NUOVO SERVIZIO IGIENICO AL PLESSO SCOLASTICO DI VINCI PIAZZA GARIBALDI � APPROVAZIONE STATO FINALE E LIQUIDA;2363;2;2;1;9;3
ROMEO PURI IMPIANTI;12/07/2018;Fabbricati ad uso scolastico;1.528,93;Liquidazione Fattura Nr. 09/E  del 08/06/2018 (di cui Split per euro 139,00) - RIQUALIFICAZIONE DEGLI SPOGLIATOI DELLA PALESTRA E NUOVO SERVIZIO IGIENICO AL PLESSO SCOLASTICO DI VINCI PIAZZA GARIBALDI � APPROVAZIONE STATO FINALE E LIQUIDAZI;2365;2;2;1;9;3
ROMEO PURI IMPIANTI;12/07/2018;Fabbricati ad uso scolastico;38.500,00;Liquidazione Fattura Nr. 09/E  del 08/06/2018 (di cui Split per euro 3.500,00) - RIQUALIFICAZIONE DEGLI SPOGLIATOI DELLA PALESTRA E NUOVO SERVIZIO IGIENICO AL PLESSO SCOLASTICO DI VINCI PIAZZA GARIBALDI � APPROVAZIONE STATO FINALE E LIQUIDA;2362;2;2;1;9;3
ROMEO PURI IMPIANTI;12/07/2018;Fabbricati ad uso scolastico;474,16;Liquidazione Fattura Nr. 09/E  del 08/06/2018 (di cui Split per euro 43,11) - RIQUALIFICAZIONE DEGLI SPOGLIATOI DELLA PALESTRA E NUOVO SERVIZIO IGIENICO AL PLESSO SCOLASTICO DI VINCI PIAZZA GARIBALDI � APPROVAZIONE STATO FINALE E LIQUIDAZIO;2367;2;2;1;9;3
ROMEO PURI IMPIANTI;12/07/2018;Fabbricati ad uso scolastico;5.655,03;Liquidazione Fattura Nr. 09/E  del 08/06/2018 (di cui Split per euro 514,09) - RIQUALIFICAZIONE DEGLI SPOGLIATOI DELLA PALESTRA E NUOVO SERVIZIO IGIENICO AL PLESSO SCOLASTICO DI VINCI PIAZZA GARIBALDI � APPROVAZIONE STATO FINALE E LIQUIDAZI;2364;2;2;1;9;3
ROMEO PURI IMPIANTI;12/07/2018;Fabbricati ad uso scolastico;965,07;Liquidazione Fattura Nr. 09/E  del 08/06/2018 (di cui Split per euro 87,73) - RIQUALIFICAZIONE DEGLI SPOGLIATOI DELLA PALESTRA E NUOVO SERVIZIO IGIENICO AL PLESSO SCOLASTICO DI VINCI PIAZZA GARIBALDI � APPROVAZIONE STATO FINALE E LIQUIDAZIO;2366;2;2;1;9;3
LOCABOX SRL;18/07/2018;Fabbricati ad uso scolastico;183,00;Liquidazione Fattura Nr. 49/E  del 30/04/2018 (di cui Split per euro 33,00) - Destinazione: -Piazza Garibaldi Vinci FI Conf. d'ordine n.0354/17 DEL 0354/17 DEL 29/12/2017 DETERMINAZIONE N. 376 DEL 29/12/2017 Periodo 05/03/2018-05/04/2018;2398;2;2;1;9;3
LOCABOX SRL;18/07/2018;Fabbricati ad uso scolastico;183,00;Liquidazione Fattura Nr. 62/E  del 31/05/2018 (di cui Split per euro 33,00) - Destinazione: -Piazza Garibaldi Vinci FI Conf. d'ordine n.0354/17 DEL 0354/17 DEL 29/12/2017 DETERMINAZIONE N. 376 DEL 29/12/2017 PERIODO 04/04/2018 - 05/05/2018;2399;2;2;1;9;3
COMUNE DI VINCI;20/07/2018;Fabbricati ad uso scolastico;3.312,50;LIQUIDAZIONE FONDO INCENTIVANTE 2016 ART. 92 DEL DLGS. 163/2006;2420;2;2;1;9;3
C.O.E. - COOPERATIVA OPERAIA EDILE  S.C.A.R.L.;16/08/2018;Fabbricati ad uso scolastico;2.420,65;Liquidazione Fattura Nr. 000002-2018-001  del 14/07/2018 (di cui Split per euro 220,06) - CONTRATTO REPERTORIO N. 1487 DEL 12/07/2016 - IMPORTI A SALDO RISULTANTI DALLO STATO FINALE;3444;2;2;1;9;3
C.O.E. - COOPERATIVA OPERAIA EDILE  S.C.A.R.L.;16/08/2018;Fabbricati ad uso scolastico;34.430,79;Liquidazione Fattura Nr. 12  del 08/11/2016 (di cui Split per euro 3.130,07) - CONTRATTO REPERTORIO N. 1488 DEL 2 AGOSTO 2016;3443;2;2;1;9;3
TECNOROMS;17/08/2018;Fabbricati ad uso scolastico;1.749,48;Liquidazione Fattura Nr. FATTPA 1_18  del 19/06/2018 (di cui Split per euro 315,48) - controsoffitto e coibentazione laboratorio artistica presso Scuola Secondaria Vinci;3475;2;2;1;9;3
LOCABOX SRL;06/09/2018;Fabbricati ad uso scolastico;61,00;Liquidazione Fattura Nr. 76/E  del 28/06/2018 (di cui Split per euro 11,00) - Destinazione: -Piazza Garibaldi Vinci FI Conf. d'ordine n.0354/17 DEL 0354/17 DEL 29/12/2017 DETERMINAZIONE N. 161 DEL 06/06/2018 PERIODO 05/05/2018 - 05/06/2018;3569;2;2;1;9;3
LOCABOX SRL;06/09/2018;Fabbricati ad uso scolastico;122,00;Liquidazione Fattura Nr. 76/E  del 28/06/2018 (di cui Split per euro 22,00) - Destinazione: -Piazza Garibaldi Vinci FI Conf. d'ordine n.0354/17 DEL 0354/17 DEL 29/12/2017 DETERMINAZIONE N. 161 DEL 06/06/2018 PERIODO 05/05/2018 - 05/06/2018;3568;2;2;1;9;3
TECNOROMS;18/09/2018;Fabbricati ad uso scolastico;20.538,78;Liquidazione Fattura Nr. FATTPA 5_18  del 01/08/2018 (di cui Split per euro 1.867,16) - RIQUALIFICAZIONE SERVIZI IGIENICI, CONTROSOFFITTO ED ILLUMINAZIONE DELLA SCUOLA PRIMARIA SIBILLA ALERAMO DI SPICCHIO,COMPLETAMENTO DEI CONTROSOFFITTI, D;3640;2;2;1;9;3
TECNOROMS;18/09/2018;Fabbricati ad uso scolastico;22.691,22;Liquidazione Fattura Nr. FATTPA 5_18  del 01/08/2018 (di cui Split per euro 2.062,84) - RIQUALIFICAZIONE SERVIZI IGIENICI, CONTROSOFFITTO ED ILLUMINAZIONE DELLA SCUOLA PRIMARIA SIBILLA ALERAMO DI SPICCHIO,COMPLETAMENTO DEI CONTROSOFFITTI, D;3638;2;2;1;9;3
TECNOROMS;18/09/2018;Fabbricati ad uso scolastico;385,00;Liquidazione Fattura Nr. FATTPA 5_18  del 01/08/2018 (di cui Split per euro 35,00) - RIQUALIFICAZIONE SERVIZI IGIENICI, CONTROSOFFITTO ED ILLUMINAZIONE DELLA SCUOLA PRIMARIA SIBILLA ALERAMO DI SPICCHIO,COMPLETAMENTO DEI CONTROSOFFITTI, DELL;3639;2;2;1;9;3
COMANDO PROVINCIALE VIGILI DEL FUOCO;18/07/2018;Fabbricati ad uso strumentale;216,00;Versamento per presentazione pratica SCIA adeguamento anticendio archivio comunale Via Roma;2397;2;2;1;9;19
COMUNE DI VINCI;20/07/2018;Fabbricati ad uso strumentale;201,90;LIQUIDAZIONE FONDO INCENTIVANTE 2016 ART. 92 DEL DLGS. 163/2006;2418;2;2;1;9;19
IGETECMA S.N.C.;17/08/2018;Fabbricati ad uso strumentale;427,00;Liquidazione Fattura Nr. 13  del 06/06/2018 (di cui Split per euro 77,00) - PROVE DI CARICO PRESSO L'ARCHIVIO COMUNALE;3474;2;2;1;9;19
ENERGETIC S.P.A.;03/07/2018;Gas;15,31;Liquidazione Fattura Nr. EX25311/2018  del 13/06/2018 (di cui Split per euro 2,76) - Servizio di fornitura Gas Naturale Palasport;2322;1;3;2;5;6
ENERGETIC S.P.A.;03/07/2018;Gas;22,97;Liquidazione Fattura Nr. EX25311/2018  del 13/06/2018 (di cui Split per euro 4,14) - Servizio di fornitura Gas Naturale Palasport;2321;1;3;2;5;6
ENERGETIC S.P.A.;03/07/2018;Gas;293,20;Liquidazione Fattura Nr. EX25312/2018  del 13/06/2018 (di cui Split per euro 52,87) - Servizio di fornitura Gas Naturale RSA;2338;1;3;2;5;6
ENERGETIC S.P.A.;03/07/2018;Gas;97,70;Liquidazione Fattura Nr. EX25313/2018  del 13/06/2018 (di cui Split per euro 17,62) - Servizio di fornitura Gas Naturale Villa Reghini;2336;1;3;2;5;6
ENERGETIC S.P.A.;03/07/2018;Gas;132,00;Liquidazione Fattura Nr. EX25314/2018  del 13/06/2018 (di cui Split per euro 23,80) - Servizio di fornitura Gas Naturale magazzino Comunale;2286;1;3;2;5;6
ENERGETIC S.P.A.;03/07/2018;Gas;120,69;Liquidazione Fattura Nr. EX25315/2018  del 13/06/2018 (di cui Split per euro 21,76) - Servizio di fornitura Gas Naturale Nido;2334;1;3;2;5;6
ENERGETIC S.P.A.;03/07/2018;Gas;77,71;Liquidazione Fattura Nr. EX25316/2018  del 13/06/2018 (di cui Split per euro 14,01) - Servizio di fornitura Gas Naturale Uffici Spicchio;2287;1;3;2;5;6
ENERGETIC S.P.A.;03/07/2018;Gas;38,28;Liquidazione Fattura Nr. EX25317/2018  del 13/06/2018 (di cui Split per euro 6,90) - Servizio di fornitura Gas Naturale scuola infanzia Sovigliana;2303;1;3;2;5;6
ENERGETIC S.P.A.;03/07/2018;Gas;58,00;Liquidazione Fattura Nr. EX25318/2018  del 13/06/2018 (di cui Split per euro 10,46) - Servizio di fornitura Gas Naturale scuola infanzia Spicchio;2301;1;3;2;5;6
ENERGETIC S.P.A.;03/07/2018;Gas;41,79;Liquidazione Fattura Nr. EX25319/2018  del 13/06/2018 (di cui Split per euro 7,54) - Servizio di fornitura Gas Naturale Comune;2288;1;3;2;5;6
ENERGETIC S.P.A.;03/07/2018;Gas;301,96;Liquidazione Fattura Nr. EX25320/2018  del 13/06/2018 (di cui Split per euro 54,45) - Servizio di fornitura Gas Naturale Secondaria Sovigliana;2312;1;3;2;5;6
ENERGETIC S.P.A.;03/07/2018;Gas;38,28;Liquidazione Fattura Nr. EX25321/2018  del 13/06/2018 (di cui Split per euro 6,90) - Servizio di fornitura Gas Naturale plesso scolastico Vinci;2311;1;3;2;5;6
ENERGETIC S.P.A.;03/07/2018;Gas;38,28;Liquidazione Fattura Nr. EX25322/2018  del 13/06/2018 (di cui Split per euro 6,90) - Servizio di fornitura Gas Naturale plesso scolastico Vinci;2310;1;3;2;5;6
ENERGETIC S.P.A.;03/07/2018;Gas;38,28;Liquidazione Fattura Nr. EX25323/2018  del 13/06/2018 (di cui Split per euro 6,90) - Servizio di fornitura Gas Naturale Infanzia Vinci;2302;1;3;2;5;6
ENERGETIC S.P.A.;16/08/2018;Gas;38,28;Liquidazione Fattura Nr. EX30056/2018  del 12/07/2018 (di cui Split per euro 6,90) - Servizio di fornitura Gas Naturale scuola secondaria Sovigliana;3436;1;3;2;5;6
ENERGETIC S.P.A.;16/08/2018;Gas;248,83;Liquidazione Fattura Nr. EX30057/2018  del 12/07/2018 (di cui Split per euro 44,87) - Servizio di fornitura Gas Naturale RSA;3442;1;3;2;5;6
ENERGETIC S.P.A.;16/08/2018;Gas;3,03;Liquidazione Fattura Nr. EX30058/2018  del 12/07/2018 (di cui Split per euro 0,55) - Servizio di fornitura Gas Naturale Villa Reghini;3441;1;3;2;5;6
ENERGETIC S.P.A.;16/08/2018;Gas;117,19;Liquidazione Fattura Nr. EX30059/2018  del 12/07/2018 (di cui Split per euro 21,13) - Servizio di fornitura Gas Naturale magazzino comunale;3431;1;3;2;5;6
ENERGETIC S.P.A.;16/08/2018;Gas;3,03;Liquidazione Fattura Nr. EX30060/2018  del 12/07/2018 (di cui Split per euro 0,55) - Servizio di fornitura Gas Naturale Nido d'infanzia;3440;1;3;2;5;6
ENERGETIC S.P.A.;16/08/2018;Gas;72,09;Liquidazione Fattura Nr. EX30061/2018  del 12/07/2018 (di cui Split per euro 13,00) - Servizio di fornitura Gas Naturale uffici Spicchio;3429;1;3;2;5;6
ENERGETIC S.P.A.;16/08/2018;Gas;38,28;Liquidazione Fattura Nr. EX30062/2018  del 12/07/2018 (di cui Split per euro 6,90) - Servizio di fornitura Gas Naturale scuola infanzia Sovigliana;3432;1;3;2;5;6
ENERGETIC S.P.A.;16/08/2018;Gas;52,36;Liquidazione Fattura Nr. EX30063/2018  del 12/07/2018 (di cui Split per euro 9,44) - Servizio di fornitura Gas Naturale scuola infanzia Spicchio;3434;1;3;2;5;6
ENERGETIC S.P.A.;16/08/2018;Gas;38,28;Liquidazione Fattura Nr. EX30064/2018  del 12/07/2018 (di cui Split per euro 6,90) - Servizio di fornitura Gas Naturale Palazzo Comunale;3430;1;3;2;5;6
ENERGETIC S.P.A.;16/08/2018;Gas;106,79;Liquidazione Fattura Nr. EX30065/2018  del 12/07/2018 (di cui Split per euro 19,26) - Servizio di fornitura Gas Naturale Palasport;3439;1;3;2;5;6
ENERGETIC S.P.A.;16/08/2018;Gas;160,19;Liquidazione Fattura Nr. EX30065/2018  del 12/07/2018 (di cui Split per euro 28,88) - Servizio di fornitura Gas Naturale Palasport;3438;1;3;2;5;6
ENERGETIC S.P.A.;16/08/2018;Gas;38,28;Liquidazione Fattura Nr. EX30066/2018  del 12/07/2018 (di cui Split per euro 6,90) - Servizio di fornitura Gas Naturale scuola primaria Spicchio;3435;1;3;2;5;6
ENERGETIC S.P.A.;16/08/2018;Gas;38,28;Liquidazione Fattura Nr. EX30067/2018  del 12/07/2018 (di cui Split per euro 6,90) - Servizio di fornitura Gas Naturale plesso scolastico Vinci;3437;1;3;2;5;6
ENERGETIC S.P.A.;16/08/2018;Gas;38,28;Liquidazione Fattura Nr. EX30068/2018  del 12/07/2018 (di cui Split per euro 6,90) - Servizio di fornitura Gas Naturale scuola infanzia Vinci;3433;1;3;2;5;6
ENERGETIC S.P.A.;06/09/2018;Gas;74,88;Liquidazione Fattura Nr. EX35087/2018  del 03/08/2018 (di cui Split per euro 13,50) - Servizio di fornitura Gas Naturale Secondaria Sovigliana;3560;1;3;2;5;6
ENERGETIC S.P.A.;06/09/2018;Gas;74,88;Liquidazione Fattura Nr. EX35088/2018  del 03/08/2018 (di cui Split per euro 13,50) - Servizio di fornitura Gas Naturale RSA;3567;1;3;2;5;6
ENERGETIC S.P.A.;06/09/2018;Gas;39,63;Liquidazione Fattura Nr. EX35089/2018  del 03/08/2018 (di cui Split per euro 7,15) - Servizio di fornitura Gas Naturale Villa Reghini;3566;1;3;2;5;6
ENERGETIC S.P.A.;06/09/2018;Gas;74,88;Liquidazione Fattura Nr. EX35090/2018  del 03/08/2018 (di cui Split per euro 13,50) - Servizio di fornitura Gas Naturale Magazzino Comunale;3543;1;3;2;5;6
ENERGETIC S.P.A.;06/09/2018;Gas;39,63;Liquidazione Fattura Nr. EX35091/2018  del 03/08/2018 (di cui Split per euro 7,15) - Servizio di fornitura Gas Naturale Nido;3564;1;3;2;5;6
ENERGETIC S.P.A.;06/09/2018;Gas;108,53;Liquidazione Fattura Nr. EX35092/2018  del 03/08/2018 (di cui Split per euro 19,57) - Servizio di fornitura Gas Naturale Uffici Spicchio;3544;1;3;2;5;6
ENERGETIC S.P.A.;06/09/2018;Gas;74,88;Liquidazione Fattura Nr. EX35093/2018  del 03/08/2018 (di cui Split per euro 13,50) - Servizio di fornitura Gas Naturale Infanzia Sovigliana;3555;1;3;2;5;6
ENERGETIC S.P.A.;06/09/2018;Gas;89,38;Liquidazione Fattura Nr. EX35094/2018  del 03/08/2018 (di cui Split per euro 16,12) - Servizio di fornitura Gas Naturale Infanzia Spicchio;3549;1;3;2;5;6
ENERGETIC S.P.A.;06/09/2018;Gas;74,88;Liquidazione Fattura Nr. EX35095/2018  del 03/08/2018 (di cui Split per euro 13,50) - Servizio di fornitura Gas Naturale Comune;3545;1;3;2;5;6
ENERGETIC S.P.A.;06/09/2018;Gas;74,88;Liquidazione Fattura Nr. EX35096/2018  del 03/08/2018 (di cui Split per euro 13,50) - Servizio di fornitura Gas Naturale Palasport;3563;1;3;2;5;6
ENERGETIC S.P.A.;06/09/2018;Gas;74,88;Liquidazione Fattura Nr. EX35097/2018  del 03/08/2018 (di cui Split per euro 13,50) - Servizio di fornitura Gas Naturale primaria Spicchio;3553;1;3;2;5;6
ENERGETIC S.P.A.;06/09/2018;Gas;37,44;Liquidazione Fattura Nr. EX35098/2018  del 03/08/2018 (di cui Split per euro 6,75) - Servizio di fornitura Gas Naturale Plesso vinci;3554;1;3;2;5;6
ENERGETIC S.P.A.;06/09/2018;Gas;37,44;Liquidazione Fattura Nr. EX35098/2018  del 03/08/2018 (di cui Split per euro 6,75) - Servizio di fornitura Gas Naturale Plesso vinci;3559;1;3;2;5;6
ENERGETIC S.P.A.;06/09/2018;Gas;129,99;Liquidazione Fattura Nr. EX35099/2018  del 03/08/2018 (di cui Split per euro 23,44) - Servizio di fornitura Gas Naturale Scuola Infanzia Vinci;3548;1;3;2;5;6
ACCA SOFTWARE S.P.A.;07/08/2018;Gestione e manutenzione applicazioni;528,26;Liquidazione Fattura Nr. P000374/2018 del 18/06/2018 - Rinnovo Primus - Imp. DS02079/1;2716;1;3;2;19;1
LDP PROGETTI GIS S.R.L.;07/08/2018;Gestione e manutenzione applicazioni;4.575,00;Liquidazione Fattura Nr. 51PA del 16/07/2018 - Det. N.68 Sett.II del 28.06.2018 Imp. DS02068/1-2018 Cap. 1724/6-2018;2720;1;3;2;19;1
CENTRO INTERNAZIONALE DI STUDI E DOCUMENTAZIONE LEONARDO DA VINCI C/O BIBLIOTECA;20/08/2018;Gestione e manutenzione applicazioni;99,00;Liquidazione Fattura Nr. 3/A del 21/06/2018 - RIFERIMENTO DET. 14/2018 E DET. 26/2018 CAP. 3260/2 IMP. DS05014 SUB 1;3491;1;3;2;19;1
LATINI  CLAUDIO;18/07/2018;Incarichi professionali per la realizzazione di investimenti;951,60;LIQUIDAZIONE FATTURA NR. 000006-2018-PA  DEL 22/05/2018 (DI CUI SPLIT PER EURO 171,60) - PRESTAZION PROFESSIONALE COORD.SICUREZZA IN PROGETTAZIONE - PSC PREVENZIONE INCENDI ARCHIVIO DI VIA ROMA.;2400;2;2;3;5;1
STUDIO DI INGEGNERIA DI  PRIAMI LEONARDO;18/07/2018;Incarichi professionali per la realizzazione di investimenti;1.862,65;LIQUIDAZIONE FATTURA NR. PA01-2018  DEL 22/05/2018 (DI CUI SPLIT PER EURO 335,89) - SCUOLA SECONDARIA DI PRIMO GRADO DI SOVIGLIANA - RIQUALIFICAZIONE ENERGETICA E MIGLIORAMENTO SISMICO � INCARICO PROGETTAZIONE DEFINITIVA IMPIANTI � DETERMIN;2401;2;2;3;5;1
STUDIO ASSOCIATO COLUCCI & PARTNERS;25/07/2018;Incarichi professionali per la realizzazione di investimenti;19.070,71;LIQUIDAZIONE FATTURA NR. 9  DEL 29/05/2018 (DI CUI SPLIT PER EURO 3.438,98) - PROGETTAZIONE DI FATTIBILITA TECNICA ECONOMICA PER LA REALIZZAZIONE DELLA NUOVA SCUOLA DELL'INFANZIA IN VINCI;2647;2;2;3;5;1
ING. GIUSEPPE NUCARA;17/08/2018;Incarichi professionali per la realizzazione di investimenti;1.634,51;LIQUIDAZIONE FATTURA NR. PA-03-2018  DEL 04/06/2018 (DI CUI SPLIT PER EURO 294,75) - ADEGUAMENTO STATICO PLESSO SCOLASTICO VINCI - PE, DL, SICUREZZA;3483;2;2;3;5;1
ING. GIUSEPPE NUCARA;17/08/2018;Incarichi professionali per la realizzazione di investimenti;2.996,61;LIQUIDAZIONE FATTURA NR. PA-03-2018  DEL 04/06/2018 (DI CUI SPLIT PER EURO 540,37) - ADEGUAMENTO STATICO PLESSO SCOLASTICO VINCI - PE, DL, SICUREZZA;3484;2;2;3;5;1
SICURING S.R.L.;17/08/2018;Incarichi professionali per la realizzazione di investimenti;5.709,60;Liquidazione Fattura Nr. 33/PA  del 25/06/2018 (di cui Split per euro 1.029,60) - SCUOLA PRIMARIA SIBILLA ALERMO DI SPICCHIO � ADEGUAMENTO SISMICO � INCARICO PROGETTO DI FATTIBILITA' TECNICA ECONOMICA - DETERMINA A CONTRARRE E AFFIDAMENTO S;3485;2;2;3;5;1
STUDIO ASSOCIATO COLUCCI & PARTNERS;17/08/2018;Incarichi professionali per la realizzazione di investimenti;6.090,24;LIQUIDAZIONE FATTURA NR. 11  DEL 28/06/2018 (DI CUI SPLIT PER EURO 1.098,24) - ASSISTENZA AL R.U.P. FONDI BEI E CARICAMENTO PORTALE G.S.E.;3486;2;2;3;5;1
ING. NUCARA FRANCESCO;22/08/2018;Incarichi professionali per la realizzazione di investimenti;12.053,60;LIQUIDAZIONE FATTURA NR. 02PA  DEL 29/06/2018 (DI CUI SPLIT PER EURO 2.173,60) - REDAZIONE PROGETTO DI FATTIBILITA' TECNICA ED ECONOMICA ADEGUAMENTO SISMICO PLESSO SCOLASTICO DI VINCI;3539;2;2;3;5;1
STUDIO TECNICO SALVAGGIO S. & MARCHETTI D. PERITI INDUSTRIALI ASS.NE PROF.LE;06/09/2018;Incarichi professionali per la realizzazione di investimenti;6.851,43;"LIQUIDAZIONE FATTURA NR. 03/PA  DEL 12/07/2018 (DI CUI SPLIT PER EURO 1.235,50) - ACCONTO 1 ADEGUAMENTO ANTINCENDIO DI DUE SCUOLE COMUNALI ""PROGETTO DI FATTIBILIT�""  E AMPLIAMENTO DEL SISTEMA DI VIDEOSORVEGLIANZA SUL TERRITORIO COMUNALE, ""P";3570;2;2;3;5;1
PERSONALE DIPENDENTE SEDE;10/08/2018;indennit� di missione e di trasferta;9,00;stipendio 08;3186;1;3;2;2;2
PERSONALE DIPENDENTE SEDE;10/08/2018;indennit� di missione e di trasferta;36,00;stipendio 08;3187;1;3;2;2;2
PERSONALE DIPENDENTE SEDE;10/08/2018;indennit� di missione e di trasferta;23,80;stipendio 08;3193;1;3;2;2;2
PERSONALE DIPENDENTE SEDE;10/08/2018;indennit� di missione e di trasferta;24,00;stipendio 08;3197;1;3;2;2;2
PERSONALE DIPENDENTE SEDE;10/08/2018;indennit� di missione e di trasferta;148,10;stipendio 08;3210;1;3;2;2;2
PERSONALE DIPENDENTE SEDE;10/08/2018;indennit� di missione e di trasferta;13,40;stipendio 08;3215;1;3;2;2;2
PERSONALE DIPENDENTE SEDE;10/08/2018;indennit� di missione e di trasferta;28,50;stipendio 08;3229;1;3;2;2;2
PERSONALE DIPENDENTE SEDE;10/08/2018;indennit� di missione e di trasferta;63,75;stipendio 08;3230;1;3;2;2;2
PERSONALE DIPENDENTE SEDE;10/08/2018;indennit� di missione e di trasferta;28,20;stipendio 08;3231;1;3;2;2;2
PERSONALE DIPENDENTE SEDE;10/08/2018;indennit� di missione e di trasferta;70,40;stipendio 08;3244;1;3;2;2;2
SOC.ING.MAGNANI SRL;22/08/2018;Infrastrutture idrauliche;12.716,00;Liquidazione Fattura Nr. 61/10  del 13/07/2018 (di cui Split per euro 1.156,00) - OPERE PREPARATORIE PROPEDEUTIHE INSTALLAZIONE FONTANELLI FISSI DA ESTERNO-STATO FINALE;3538;2;2;1;9;10
COMUNE DI VINCI;20/07/2018;Infrastrutture stradali;436,31;LIQUIDAZIONE FONDO INCENTIVANTE 2016 ART. 92 DEL DLGS. 163/2006;2422;2;2;1;9;12
COMUNE DI VINCI;20/07/2018;Infrastrutture stradali;426,10;LIQUIDAZIONE FONDO INCENTIVANTE 2016 ART. 92 DEL DLGS. 163/2006;2423;2;2;1;9;12
COMUNE DI VINCI;20/07/2018;Infrastrutture stradali;228,26;LIQUIDAZIONE FONDO INCENTIVANTE 2016 ART. 92 DEL DLGS. 163/2006;2424;2;2;1;9;12
E-DISTRIBUZIOINE SPA;16/08/2018;Infrastrutture stradali;122,00;Liquidazione Fattura Nr. 0000918900003606  del 01/08/2018 (di cui Split per euro 22,00) - RIQUALIFICAZIONE DELLA SP13 - MONTALBANO - MEDIANTE LA REALIZZAZIONE DI UN PERCORSO PROTETTO PER L'UTENZA DEBOLE - IMPEGNO DI SPESA PER  SOPRALLUOGO E;3428;2;2;1;9;12
MOVITER S.R.L. - LAVORI STRADALI MOVIMENTO TERRA;18/09/2018;Infrastrutture stradali;24.753,74;Liquidazione Fattura Nr. 2018/012/el  del 27/07/2018 (di cui Split per euro 4.463,79) - Attraversamento pedonale rialzato nell'abitato di Vitolini e ripristini della pavimentazione in conglomerato bituminoso su tratti di viabilit� comunale ;3669;2;2;1;9;12
TECHNE S.R.L;07/08/2018;Licenze d'uso per software;3.993,06;Liquidazione Fattura Nr. PA/70 del 30/05/2018 - SOTTOSCRIZIONE DI N.2 LICENZE TRIENNALI SW AUTODESK REVIT LT 2018 PER UFFICIO TECNICO - CIG N. Z63238A268 - MEPA;2719;1;3;2;7;6
LENSI MARZIO E AMMANNATI GIANNA PAOLA;05/07/2018;Locazione di beni immobili;6.375,00;CANONE LOCAZIONE IMMOBILE ARCHIVIO VIA ROMA 3 TRIM. 2018;2340;1;3;2;7;1
CINELLI TACITO E GABBANINI DIANA;18/07/2018;Locazione di beni immobili;2.500,00;CANONE LOCAZIONE IMMOBILE VIA FUCINI ANGOLO VIA ROSSI - PARTE ADIBITA A U.R.P.  -  3� TRIM. 2018;2392;1;3;2;7;1
CINELLI TACITO E GABBANINI DIANA;18/07/2018;Locazione di beni immobili;1.677,47;CANONE LOCAZIONE LOCALI VIA FUCINI ANGOLO VIA ROSSI - PARTE ADIBITA A BIBLIOTECA CIVICA - 3� TRIM 2018;2393;1;3;2;7;1
ITS SERVICE DI DANIELE MACCIONI;25/07/2018;Manutenzione ordinaria e riparazioni di beni immobili;463,60;Liquidazione Fattura Nr. 1/E  del 31/05/2018 (di cui Split per euro 83,60) - MANUTENZIONE IMPIANTO IDRAULICO SCUOLA PRIMARIA VIA GUIDUCCI;2638;1;3;2;9;8
COOPERATIVA SOCIALE PEGASO SOCIETA' COOPERATIVA;17/08/2018;Manutenzione ordinaria e riparazioni di beni immobili;5.124,00;Liquidazione Fattura Nr. 60 be  del 31/05/2018 (di cui Split per euro 924,00) - Abbattimento e potatura pini, spportazione pini caduti, potatura siepi - Via Empolese-Via Battisti;3445;1;3;2;9;8
R.F. ANTINCENDIO  DI FORCONI GIOVANNI;17/08/2018;Manutenzione ordinaria e riparazioni di beni immobili;194,86;Liquidazione Fattura Nr. 97/PA-2018  del 08/06/2018 (di cui Split per euro 35,13) - MANUTENZIONI EXTRACANONE PRESIDI ANTINCENDIO PRESSO  EDIFICI COMUNALI E SCOLASTICI;3460;1;3;2;9;8
R.F. ANTINCENDIO  DI FORCONI GIOVANNI;17/08/2018;Manutenzione ordinaria e riparazioni di beni immobili;292,29;Liquidazione Fattura Nr. 98/PA-2018  del 08/06/2018 (di cui Split per euro 52,71) - MANUTENZIONI EXTRACANONE PRESIDI ANTINCENDIO PRESSO  Museo, Palazzina, Casa natale, Nido, Palasport 60%;3459;1;3;2;9;8
RAME LUCA DI MIGLIORINI LUCA;17/08/2018;Manutenzione ordinaria e riparazioni di beni immobili;1.207,80;Liquidazione Fattura Nr. 70  del 31/05/2018 (di cui Split per euro 217,80) - FORNITURA E POSA IN OPERA DI PLUVIALI PRESSO IL CIMITERO DI VINCI ;3466;1;3;2;9;8
COOPERATIVA SOCIALE MIMOSA ONLUS;18/09/2018;Manutenzione ordinaria e riparazioni di beni immobili;3.132,44;Liquidazione Fattura Nr. 000005-2018-FE  del 31/05/2018 (di cui Split per euro 564,87) - SERVIZIO DI PULIZIA DEL VERDE PUBBLICO DAL 25.02.2018 AL 25.05.2018  � SALDO;3661;1;3;2;9;8
COOPERATIVA SOCIALE MIMOSA ONLUS;18/09/2018;Manutenzione ordinaria e riparazioni di beni immobili;4.961,94;Liquidazione Fattura Nr. 000006-2018-FE  del 30/06/2018 (di cui Split per euro 894,78) - SERVIZIO DI PULIZIA DEL VERDE PUBBLICO DAL 26.05.2018 AL 31.12.2018- 1� STATO AVANZAMENTO;3662;1;3;2;9;8
PRATESI LORENZO S.R.L.;18/09/2018;Manutenzione ordinaria e riparazioni di beni immobili;1.150,31;Liquidazione Fattura Nr. 1 E  del 30/06/2018 (di cui Split per euro 207,43) - NOLEGGIO MINI ESCAVATORE PER MANUTENZIONE VIA LA PROFONDA ;3631;1;3;2;9;8
REPORTITALIA SAS DI CAPPELLI IARES & C.;18/09/2018;Manutenzione ordinaria e riparazioni di beni immobili;985,76;Liquidazione Fattura Nr. 2  del 13/07/2018 (di cui Split per euro 177,76) - DETERMINA 88 DEL 27/04/2017 FORNITURA E POSA DI STAMPE PER IL PALAZZO COMUNALE;3620;1;3;2;9;8
SANMINIATESE STRADE S.R.L.;18/09/2018;Manutenzione ordinaria e riparazioni di beni immobili;14.516,35;Liquidazione Fattura Nr. 10  del 18/07/2018 (di cui Split per euro 2.617,70) - LAVORI DI MANUTENZIONE SU VIA STREDA;3635;1;3;2;9;8
SANMINIATESE STRADE S.R.L.;18/09/2018;Manutenzione ordinaria e riparazioni di beni immobili;2.815,01;Liquidazione Fattura Nr. 10  del 18/07/2018 (di cui Split per euro 507,63) - LAVORI DI MANUTENZIONE SU VIA STREDA;3636;1;3;2;9;8
ARNO MANETTI ASCENSORI S.R.L.;17/08/2018;Manutenzione ordinaria e riparazioni di impianti e macchinari;263,52;Liquidazione Fattura Nr. 13/E  del 26/06/2018 (di cui Split per euro 47,52) - MANUTENZIONE EXTRACANONE IMPIANTO ASCENSORE CASA NATALE;3480;1;3;2;9;4
ARNO MANETTI ASCENSORI S.R.L.;17/08/2018;Manutenzione ordinaria e riparazioni di impianti e macchinari;123,95;Liquidazione Fattura Nr. 14/E  del 26/06/2018 (di cui Split per euro 22,35) - INTERVENTI DI MANUTENZIONE EXTRACANONE IMPIANTI ASCENSORE SEDI ISTITUZIONALI, SCUOLE PRIMARIE E SECONDARIE;3476;1;3;2;9;4
ARNO MANETTI ASCENSORI S.R.L.;17/08/2018;Manutenzione ordinaria e riparazioni di impianti e macchinari;354,38;Liquidazione Fattura Nr. 14/E  del 26/06/2018 (di cui Split per euro 63,90) - INTERVENTI DI MANUTENZIONE EXTRACANONE IMPIANTI ASCENSORE SEDI ISTITUZIONALI, SCUOLE PRIMARIE E SECONDARIE;3478;1;3;2;9;4
ARNO MANETTI ASCENSORI S.R.L.;17/08/2018;Manutenzione ordinaria e riparazioni di impianti e macchinari;393,43;Liquidazione Fattura Nr. 14/E  del 26/06/2018 (di cui Split per euro 70,95) - INTERVENTI DI MANUTENZIONE EXTRACANONE IMPIANTI ASCENSORE SEDI ISTITUZIONALI, SCUOLE PRIMARIE E SECONDARIE;3479;1;3;2;9;4
R.F. ANTINCENDIO  DI FORCONI GIOVANNI;17/08/2018;Manutenzione ordinaria e riparazioni di impianti e macchinari;646,44;Liquidazione Fattura Nr. 97/PA-2018  del 08/06/2018 (di cui Split per euro 116,57) - MANUTENZIONI EXTRACANONE PRESIDI ANTINCENDIO PRESSO  EDIFICI COMUNALI E SCOLASTICI;3454;1;3;2;9;4
R.F. ANTINCENDIO  DI FORCONI GIOVANNI;17/08/2018;Manutenzione ordinaria e riparazioni di impianti e macchinari;74,95;Liquidazione Fattura Nr. 97/PA-2018  del 08/06/2018 (di cui Split per euro 13,53) - MANUTENZIONI EXTRACANONE PRESIDI ANTINCENDIO PRESSO  EDIFICI COMUNALI E SCOLASTICI;3465;1;3;2;9;4
R.F. ANTINCENDIO  DI FORCONI GIOVANNI;17/08/2018;Manutenzione ordinaria e riparazioni di impianti e macchinari;75,75;Liquidazione Fattura Nr. 97/PA-2018  del 08/06/2018 (di cui Split per euro 13,66) - MANUTENZIONI EXTRACANONE PRESIDI ANTINCENDIO PRESSO  EDIFICI COMUNALI E SCOLASTICI;3451;1;3;2;9;4
R.F. ANTINCENDIO  DI FORCONI GIOVANNI;17/08/2018;Manutenzione ordinaria e riparazioni di impianti e macchinari;306,06;Liquidazione Fattura Nr. 97/PA-2018  del 08/06/2018 (di cui Split per euro 55,19) - MANUTENZIONI EXTRACANONE PRESIDI ANTINCENDIO PRESSO  EDIFICI COMUNALI E SCOLASTICI;3455;1;3;2;9;4
R.F. ANTINCENDIO  DI FORCONI GIOVANNI;17/08/2018;Manutenzione ordinaria e riparazioni di impianti e macchinari;328,17;Liquidazione Fattura Nr. 97/PA-2018  del 08/06/2018 (di cui Split per euro 59,18) - MANUTENZIONI EXTRACANONE PRESIDI ANTINCENDIO PRESSO  EDIFICI COMUNALI E SCOLASTICI;3450;1;3;2;9;4
R.F. ANTINCENDIO  DI FORCONI GIOVANNI;17/08/2018;Manutenzione ordinaria e riparazioni di impianti e macchinari;397,73;Liquidazione Fattura Nr. 97/PA-2018  del 08/06/2018 (di cui Split per euro 71,72) - MANUTENZIONI EXTRACANONE PRESIDI ANTINCENDIO PRESSO  EDIFICI COMUNALI E SCOLASTICI;3458;1;3;2;9;4
R.F. ANTINCENDIO  DI FORCONI GIOVANNI;17/08/2018;Manutenzione ordinaria e riparazioni di impianti e macchinari;409,32;Liquidazione Fattura Nr. 97/PA-2018  del 08/06/2018 (di cui Split per euro 73,81) - MANUTENZIONI EXTRACANONE PRESIDI ANTINCENDIO PRESSO  EDIFICI COMUNALI E SCOLASTICI;3456;1;3;2;9;4
R.F. ANTINCENDIO  DI FORCONI GIOVANNI;17/08/2018;Manutenzione ordinaria e riparazioni di impianti e macchinari;49,78;Liquidazione Fattura Nr. 98/PA-2018  del 08/06/2018 (di cui Split per euro 8,98) - MANUTENZIONI EXTRACANONE PRESIDI ANTINCENDIO PRESSO  Museo, Palazzina, Casa natale, Nido, Palasport 60%;3464;1;3;2;9;4
R.F. ANTINCENDIO  DI FORCONI GIOVANNI;17/08/2018;Manutenzione ordinaria e riparazioni di impianti e macchinari;466,14;Liquidazione Fattura Nr. 98/PA-2018  del 08/06/2018 (di cui Split per euro 84,05) - MANUTENZIONI EXTRACANONE PRESIDI ANTINCENDIO PRESSO  Museo, Palazzina, Casa natale, Nido, Palasport 60%;3457;1;3;2;9;4
ARNO MANETTI ASCENSORI S.R.L.;18/09/2018;Manutenzione ordinaria e riparazioni di impianti e macchinari;72,96;Liquidazione Fattura Nr. 15/E  del 09/07/2018 (di cui Split per euro 13,16) - MANUTENZIONE IMPIANTI ELEVATORI 2� TR. 2018 Sedi istituzionali, Scuole infanzia, Scuole primarie, Scuole sec. 1� grado, Villa Reghini, Residenza Anziani, 40% Pala;3630;1;3;2;9;4
ARNO MANETTI ASCENSORI S.R.L.;18/09/2018;Manutenzione ordinaria e riparazioni di impianti e macchinari;106,14;Liquidazione Fattura Nr. 15/E  del 09/07/2018 (di cui Split per euro 19,14) - MANUTENZIONE IMPIANTI ELEVATORI 2� TR. 2018 Sedi istituzionali, Scuole infanzia, Scuole primarie, Scuole sec. 1� grado, Villa Reghini, Residenza Anziani, 40% Pala;3622;1;3;2;9;4
ARNO MANETTI ASCENSORI S.R.L.;18/09/2018;Manutenzione ordinaria e riparazioni di impianti e macchinari;106,14;Liquidazione Fattura Nr. 15/E  del 09/07/2018 (di cui Split per euro 19,14) - MANUTENZIONE IMPIANTI ELEVATORI 2� TR. 2018 Sedi istituzionali, Scuole infanzia, Scuole primarie, Scuole sec. 1� grado, Villa Reghini, Residenza Anziani, 40% Pala;3632;1;3;2;9;4
ARNO MANETTI ASCENSORI S.R.L.;18/09/2018;Manutenzione ordinaria e riparazioni di impianti e macchinari;106,14;Liquidazione Fattura Nr. 15/E  del 09/07/2018 (di cui Split per euro 19,14) - MANUTENZIONE IMPIANTI ELEVATORI 2� TR. 2018 Sedi istituzionali, Scuole infanzia, Scuole primarie, Scuole sec. 1� grado, Villa Reghini, Residenza Anziani, 40% Pala;3634;1;3;2;9;4
ARNO MANETTI ASCENSORI S.R.L.;18/09/2018;Manutenzione ordinaria e riparazioni di impianti e macchinari;159,21;Liquidazione Fattura Nr. 15/E  del 09/07/2018 (di cui Split per euro 28,71) - MANUTENZIONE IMPIANTI ELEVATORI 2� TR. 2018 Sedi istituzionali, Scuole infanzia, Scuole primarie, Scuole sec. 1� grado, Villa Reghini, Residenza Anziani, 40% Pala;3625;1;3;2;9;4
ARNO MANETTI ASCENSORI S.R.L.;18/09/2018;Manutenzione ordinaria e riparazioni di impianti e macchinari;159,21;Liquidazione Fattura Nr. 15/E  del 09/07/2018 (di cui Split per euro 28,71) - MANUTENZIONE IMPIANTI ELEVATORI 2� TR. 2018 Sedi istituzionali, Scuole infanzia, Scuole primarie, Scuole sec. 1� grado, Villa Reghini, Residenza Anziani, 40% Pala;3627;1;3;2;9;4
ARNO MANETTI ASCENSORI S.R.L.;18/09/2018;Manutenzione ordinaria e riparazioni di impianti e macchinari;333,06;Liquidazione Fattura Nr. 15/E  del 09/07/2018 (di cui Split per euro 60,06) - MANUTENZIONE IMPIANTI ELEVATORI 2� TR. 2018 Sedi istituzionali, Scuole infanzia, Scuole primarie, Scuole sec. 1� grado, Villa Reghini, Residenza Anziani, 40% Pala;3621;1;3;2;9;4
ARNO MANETTI ASCENSORI S.R.L.;18/09/2018;Manutenzione ordinaria e riparazioni di impianti e macchinari;106,14;Liquidazione Fattura Nr. 16/E  del 17/07/2018 (di cui Split per euro 19,14) - MANUTENZIONE IMPIANTI ELEVATORI 2� TRIM. 2018 Museo, Palazzina, Casa Natale, Nido, Palasport 60%;3633;1;3;2;9;4
ARNO MANETTI ASCENSORI S.R.L.;18/09/2018;Manutenzione ordinaria e riparazioni di impianti e macchinari;109,43;Liquidazione Fattura Nr. 16/E  del 17/07/2018 (di cui Split per euro 19,73) - MANUTENZIONE IMPIANTI ELEVATORI 2� TRIM. 2018 Museo, Palazzina, Casa Natale, Nido, Palasport 60%;3629;1;3;2;9;4
ARNO MANETTI ASCENSORI S.R.L.;18/09/2018;Manutenzione ordinaria e riparazioni di impianti e macchinari;318,42;Liquidazione Fattura Nr. 16/E  del 17/07/2018 (di cui Split per euro 57,42) - MANUTENZIONE IMPIANTI ELEVATORI 2� TRIM. 2018 Museo, Palazzina, Casa Natale, Nido, Palasport 60%;3628;1;3;2;9;4
TERMOCONTROL SRL MANUTENZIONE IMPIANTI;18/09/2018;Manutenzione ordinaria e riparazioni di impianti e macchinari;60,00;Liquidazione Fattura Nr. 000032PA  del 02/07/2018 (di cui Split per euro 10,82) - MANUTENZIONE IMPIANTI TERMOIDRAULICI E DI CONDIZIONAMENTO ANNO TERMICO 2018-2019 � DETERMINA A CONTRARRE � AFFIDAMENTO DITTA TERMOCONTROL SRL DI MONSUMMANO � ;3652;1;3;2;9;4
TERMOCONTROL SRL MANUTENZIONE IMPIANTI;18/09/2018;Manutenzione ordinaria e riparazioni di impianti e macchinari;75,00;Liquidazione Fattura Nr. 000032PA  del 02/07/2018 (di cui Split per euro 13,52) - MANUTENZIONE IMPIANTI TERMOIDRAULICI E DI CONDIZIONAMENTO ANNO TERMICO 2018-2019 � DETERMINA A CONTRARRE � AFFIDAMENTO DITTA TERMOCONTROL SRL DI MONSUMMANO � ;3645;1;3;2;9;4
TERMOCONTROL SRL MANUTENZIONE IMPIANTI;18/09/2018;Manutenzione ordinaria e riparazioni di impianti e macchinari;80,00;Liquidazione Fattura Nr. 000032PA  del 02/07/2018 (di cui Split per euro 14,43) - MANUTENZIONE IMPIANTI TERMOIDRAULICI E DI CONDIZIONAMENTO ANNO TERMICO 2018-2019 � DETERMINA A CONTRARRE � AFFIDAMENTO DITTA TERMOCONTROL SRL DI MONSUMMANO � ;3659;1;3;2;9;4
TERMOCONTROL SRL MANUTENZIONE IMPIANTI;18/09/2018;Manutenzione ordinaria e riparazioni di impianti e macchinari;85,00;Liquidazione Fattura Nr. 000032PA  del 02/07/2018 (di cui Split per euro 15,33) - MANUTENZIONE IMPIANTI TERMOIDRAULICI E DI CONDIZIONAMENTO ANNO TERMICO 2018-2019 � DETERMINA A CONTRARRE � AFFIDAMENTO DITTA TERMOCONTROL SRL DI MONSUMMANO � ;3649;1;3;2;9;4
TERMOCONTROL SRL MANUTENZIONE IMPIANTI;18/09/2018;Manutenzione ordinaria e riparazioni di impianti e macchinari;1.150,00;Liquidazione Fattura Nr. 000032PA  del 02/07/2018 (di cui Split per euro 207,38) - MANUTENZIONE IMPIANTI TERMOIDRAULICI E DI CONDIZIONAMENTO ANNO TERMICO 2018-2019 � DETERMINA A CONTRARRE � AFFIDAMENTO DITTA TERMOCONTROL SRL DI MONSUMMANO �;3644;1;3;2;9;4
TERMOCONTROL SRL MANUTENZIONE IMPIANTI;18/09/2018;Manutenzione ordinaria e riparazioni di impianti e macchinari;1.240,00;Liquidazione Fattura Nr. 000032PA  del 02/07/2018 (di cui Split per euro 223,60) - MANUTENZIONE IMPIANTI TERMOIDRAULICI E DI CONDIZIONAMENTO ANNO TERMICO 2018-2019 � DETERMINA A CONTRARRE � AFFIDAMENTO DITTA TERMOCONTROL SRL DI MONSUMMANO �;3666;1;3;2;9;4
TERMOCONTROL SRL MANUTENZIONE IMPIANTI;18/09/2018;Manutenzione ordinaria e riparazioni di impianti e macchinari;150,00;Liquidazione Fattura Nr. 000032PA  del 02/07/2018 (di cui Split per euro 27,05) - MANUTENZIONE IMPIANTI TERMOIDRAULICI E DI CONDIZIONAMENTO ANNO TERMICO 2018-2019 � DETERMINA A CONTRARRE � AFFIDAMENTO DITTA TERMOCONTROL SRL DI MONSUMMANO � ;3648;1;3;2;9;4
TERMOCONTROL SRL MANUTENZIONE IMPIANTI;18/09/2018;Manutenzione ordinaria e riparazioni di impianti e macchinari;1.700,00;Liquidazione Fattura Nr. 000032PA  del 02/07/2018 (di cui Split per euro 306,56) - MANUTENZIONE IMPIANTI TERMOIDRAULICI E DI CONDIZIONAMENTO ANNO TERMICO 2018-2019 � DETERMINA A CONTRARRE � AFFIDAMENTO DITTA TERMOCONTROL SRL DI MONSUMMANO �;3667;1;3;2;9;4
TERMOCONTROL SRL MANUTENZIONE IMPIANTI;18/09/2018;Manutenzione ordinaria e riparazioni di impianti e macchinari;1.960,00;Liquidazione Fattura Nr. 000033PA  del 02/07/2018 (di cui Split per euro 353,44) - MANUTENZIONE IMPIANTI TERMOIDRAULICI E DI CONDIZIONAMENTO EXTRACANONE MUSEO, PALAZZINA, CASA NATALE, ASILO NIDO;3653;1;3;2;9;4
TERMOCONTROL SRL MANUTENZIONE IMPIANTI;18/09/2018;Manutenzione ordinaria e riparazioni di impianti e macchinari;450,00;Liquidazione Fattura Nr. 000033PA  del 02/07/2018 (di cui Split per euro 81,15) - MANUTENZIONE IMPIANTI TERMOIDRAULICI E DI CONDIZIONAMENTO EXTRACANONE MUSEO, PALAZZINA, CASA NATALE, ASILO NIDO;3664;1;3;2;9;4
TERMOCONTROL SRL MANUTENZIONE IMPIANTI;18/09/2018;Manutenzione ordinaria e riparazioni di impianti e macchinari;82,35;Liquidazione Fattura Nr. 000036PA  del 12/07/2018 (di cui Split per euro 14,85) - MANUTENZIONE IMPIANTI TERMOIDRAULICI E DI CONDIZIONAMENTO DA CANONE AL 30.06.2018;3655;1;3;2;9;4
TERMOCONTROL SRL MANUTENZIONE IMPIANTI;18/09/2018;Manutenzione ordinaria e riparazioni di impianti e macchinari;88,45;Liquidazione Fattura Nr. 000036PA  del 12/07/2018 (di cui Split per euro 15,95) - MANUTENZIONE IMPIANTI TERMOIDRAULICI E DI CONDIZIONAMENTO DA CANONE AL 30.06.2018;3646;1;3;2;9;4
TERMOCONTROL SRL MANUTENZIONE IMPIANTI;18/09/2018;Manutenzione ordinaria e riparazioni di impianti e macchinari;1.032,43;Liquidazione Fattura Nr. 000036PA  del 12/07/2018 (di cui Split per euro 186,18) - MANUTENZIONE IMPIANTI TERMOIDRAULICI E DI CONDIZIONAMENTO DA CANONE AL 30.06.2018;3651;1;3;2;9;4
TERMOCONTROL SRL MANUTENZIONE IMPIANTI;18/09/2018;Manutenzione ordinaria e riparazioni di impianti e macchinari;1.052,25;Liquidazione Fattura Nr. 000036PA  del 12/07/2018 (di cui Split per euro 189,75) - MANUTENZIONE IMPIANTI TERMOIDRAULICI E DI CONDIZIONAMENTO DA CANONE AL 30.06.2018;3647;1;3;2;9;4
TERMOCONTROL SRL MANUTENZIONE IMPIANTI;18/09/2018;Manutenzione ordinaria e riparazioni di impianti e macchinari;118,34;Liquidazione Fattura Nr. 000036PA  del 12/07/2018 (di cui Split per euro 21,34) - MANUTENZIONE IMPIANTI TERMOIDRAULICI E DI CONDIZIONAMENTO DA CANONE AL 30.06.2018;3660;1;3;2;9;4
TERMOCONTROL SRL MANUTENZIONE IMPIANTI;18/09/2018;Manutenzione ordinaria e riparazioni di impianti e macchinari;1.367,92;Liquidazione Fattura Nr. 000036PA  del 12/07/2018 (di cui Split per euro 246,67) - MANUTENZIONE IMPIANTI TERMOIDRAULICI E DI CONDIZIONAMENTO DA CANONE AL 30.06.2018;3650;1;3;2;9;4
TERMOCONTROL SRL MANUTENZIONE IMPIANTI;18/09/2018;Manutenzione ordinaria e riparazioni di impianti e macchinari;1.568,31;Liquidazione Fattura Nr. 000036PA  del 12/07/2018 (di cui Split per euro 282,81) - MANUTENZIONE IMPIANTI TERMOIDRAULICI E DI CONDIZIONAMENTO DA CANONE AL 30.06.2018;3643;1;3;2;9;4
TERMOCONTROL SRL MANUTENZIONE IMPIANTI;18/09/2018;Manutenzione ordinaria e riparazioni di impianti e macchinari;234,85;Liquidazione Fattura Nr. 000036PA  del 12/07/2018 (di cui Split per euro 42,35) - MANUTENZIONE IMPIANTI TERMOIDRAULICI E DI CONDIZIONAMENTO DA CANONE AL 30.06.2018;3668;1;3;2;9;4
TERMOCONTROL SRL MANUTENZIONE IMPIANTI;18/09/2018;Manutenzione ordinaria e riparazioni di impianti e macchinari;280,60;Liquidazione Fattura Nr. 000036PA  del 12/07/2018 (di cui Split per euro 50,60) - MANUTENZIONE IMPIANTI TERMOIDRAULICI E DI CONDIZIONAMENTO DA CANONE AL 30.06.2018;3657;1;3;2;9;4
TERMOCONTROL SRL MANUTENZIONE IMPIANTI;18/09/2018;Manutenzione ordinaria e riparazioni di impianti e macchinari;347,70;Liquidazione Fattura Nr. 000036PA  del 12/07/2018 (di cui Split per euro 62,70) - MANUTENZIONE IMPIANTI TERMOIDRAULICI E DI CONDIZIONAMENTO DA CANONE AL 30.06.2018;3656;1;3;2;9;4
TERMOCONTROL SRL MANUTENZIONE IMPIANTI;18/09/2018;Manutenzione ordinaria e riparazioni di impianti e macchinari;537,41;Liquidazione Fattura Nr. 000036PA  del 12/07/2018 (di cui Split per euro 96,91) - MANUTENZIONE IMPIANTI TERMOIDRAULICI E DI CONDIZIONAMENTO DA CANONE AL 30.06.2018;3665;1;3;2;9;4
TERMOCONTROL SRL MANUTENZIONE IMPIANTI;18/09/2018;Manutenzione ordinaria e riparazioni di impianti e macchinari;958,92;Liquidazione Fattura Nr. 000037PA  del 12/07/2018 (di cui Split per euro 172,92) - MANUTENZIONE IMPIANTI TERMOIDRAULICI E DI CONDIZIONAMENTO DA CANONE AL 30.06.2018 (NIDO, MUSEO, PALAZZINA, CASA NATALE, PALASPORT 60%);3654;1;3;2;9;4
TERMOCONTROL SRL MANUTENZIONE IMPIANTI;18/09/2018;Manutenzione ordinaria e riparazioni di impianti e macchinari;236,07;Liquidazione Fattura Nr. 000037PA  del 12/07/2018 (di cui Split per euro 42,57) - MANUTENZIONE IMPIANTI TERMOIDRAULICI E DI CONDIZIONAMENTO DA CANONE AL 30.06.2018 (NIDO, MUSEO, PALAZZINA, CASA NATALE, PALASPORT 60%);3663;1;3;2;9;4
TERMOCONTROL SRL MANUTENZIONE IMPIANTI;18/09/2018;Manutenzione ordinaria e riparazioni di impianti e macchinari;420,90;Liquidazione Fattura Nr. 000037PA  del 12/07/2018 (di cui Split per euro 75,90) - MANUTENZIONE IMPIANTI TERMOIDRAULICI E DI CONDIZIONAMENTO DA CANONE AL 30.06.2018 (NIDO, MUSEO, PALAZZINA, CASA NATALE, PALASPORT 60%);3658;1;3;2;9;4
SINTESI S.R.L. - SISTEMI INTEGRATI PER UFFICIO;07/08/2018;Manutenzione ordinaria e riparazioni di macchine per ufficio ;2.668,40;Liquidazione Fattura Nr. 33/E  del 29/06/2018 (di cui Split per euro 481,19) - AFFIDAMENTO DEL SERVIZIO DI ASSISTENZA E MANUTENZIONE A COSTO COPIA/STAMPA DELLE MACCHINE MULTUIFUNZIONE DELL'ENTE-DETERMINA A CONTRARRE E DI AGGIUDICAZIONE;2714;1;3;2;9;6
T.T. TECNOSISTEMI S.P.A.;07/08/2018;Manutenzione ordinaria e riparazioni di macchine per ufficio ;126,90;"Liquidazione Fattura Nr. 763/E del 29/06/2018 - N.2 SEAGATE Desk HD BarraCuda 2TB 3.5""SATA 3 - C/Vendita Split Payment";2715;1;3;2;9;6
SCOTTI VEICOLI INDUSTRIALI S.P.A.;03/07/2018;Manutenzione ordinaria e riparazioni di mezzi di trasporto ad uso civile, di sicurezza e ordine pubblico;1.005,37;Liquidazione Fattura Nr. 630091/63  del 08/05/2018 (di cui Split per euro 179,13) - REVISIONE ED ALTRI INTERVENTI SUL MEZZO IVECO DAILY TARGATO DR369FB _ DETERMINA A CONTRARRE E AFFIDAMENTO DITTA SCOTTI VEICOLI INDUSTRIALI SPA;2298;1;3;2;9;1
AGRIGARDEN S.N.C.;18/07/2018;Manutenzione ordinaria e riparazioni di mezzi di trasporto ad uso civile, di sicurezza e ordine pubblico;695,00;Liquidazione Fattura Nr. FATTPA 2_18  del 24/05/2018 (di cui Split per euro 125,33) - TAGLIANDO E ALTRI INTERVENTI SU TRATTORE GRILLO;2394;1;3;2;9;1
AEA S.R. L.;17/08/2018;Manutenzione ordinaria e riparazioni di mezzi di trasporto ad uso civile, di sicurezza e ordine pubblico;750,30;Liquidazione Fattura Nr. FATTPA 4_18  del 31/05/2018 (di cui Split per euro 135,30) - SOSTITUZIONE PNEUMATICI DEL MEZZO IVECO DAILY TARGATO DF398BB ;3468;1;3;2;9;1
AUTOGAMMA SNC DI LETTIERI FABIO & C.;17/08/2018;Manutenzione ordinaria e riparazioni di mezzi di trasporto ad uso civile, di sicurezza e ordine pubblico;429,14;Liquidazione Fattura Nr. 12  del 30/06/2018 (di cui Split per euro 77,39) - FORNITURA DPI;3477;1;3;2;9;1
AUTOPASS EMPOLI S.R.L.;17/08/2018;Manutenzione ordinaria e riparazioni di mezzi di trasporto ad uso civile, di sicurezza e ordine pubblico;786,90;Liquidazione Fattura Nr. FATTPA 4_18  del 31/05/2018 (di cui Split per euro 141,90) - REVISIONE ED ALTRI INTERVENTI SUL MEZZO PIAGGIO PORTER TARGATO DJ893SZ ;3453;1;3;2;9;1
SABBATINI CRISTINA & C. SAS;17/08/2018;Manutenzione ordinaria e riparazioni di mezzi di trasporto ad uso civile, di sicurezza e ordine pubblico;180,00;Liquidazione Fattura Nr. FATTPA 6_18  del 20/06/2018 (di cui Split per euro 32,46) - REVISIONE DEL MEZZO FIAT IVECO TARGATO CT439HR _ DETERMINA A CONTRARRE E AFFIDAMENTO A DELEGAZIONE ACI DI SOVIGLIANA-VINCI  DI SABBATINI CRISTINA E C. SAS;3469;1;3;2;9;1
SCOTTI VEICOLI INDUSTRIALI S.P.A.;17/08/2018;Manutenzione ordinaria e riparazioni di mezzi di trasporto ad uso civile, di sicurezza e ordine pubblico;330,77;Liquidazione Fattura Nr. 630113/63  del 12/06/2018 (di cui Split per euro 59,65) - TAGLIANDO DEL MEZZO IVECO DAILY TARGATO DR369FB;3467;1;3;2;9;1
SCOTTI VEICOLI INDUSTRIALI S.P.A.;17/08/2018;Manutenzione ordinaria e riparazioni di mezzi di trasporto ad uso civile, di sicurezza e ordine pubblico;775,51;Liquidazione Fattura Nr. 630114/63  del 20/06/2018 (di cui Split per euro 139,85) - REVISIONE DEL MEZZO IVECO 120 TARGATO CT439HR _ ;3470;1;3;2;9;1
CASALINI LIBRI S.P.A.;20/08/2018;Materiale bibliografico;76,50;Liquidazione Fattura Nr. 18-22219 del 01/06/2018 - Acquisto risorse librarie;3498;2;2;1;99;1
CASALINI LIBRI S.P.A.;20/08/2018;Materiale bibliografico;51,30;Liquidazione Fattura Nr. 18-22716 del 06/06/2018 - Acquisto risorse librarie;3499;2;2;1;99;1
CASALINI LIBRI S.P.A.;20/08/2018;Materiale bibliografico;35,10;Liquidazione Fattura Nr. 18-23139 del 08/06/2018 - Acquisto risorse librarie;3500;2;2;1;99;1
CENTROUFFICIO S.R.L.;20/08/2018;Materiale informatico;370,88;Liquidazione Fattura Nr. 1588  del 03/08/2018 (di cui Split per euro 66,88) - ACQUISTO CANCELLERIA E MATERIALE VARIO PER UFFICI CIG. Z152477B40 ;3504;1;3;1;2;6
COMUNE DI VINCI;20/07/2018;Musei, teatri e biblioteche di valore culturale, storico ed artistico;1.226,93;LIQUIDAZIONE FONDO INCENTIVANTE 2016 ART. 92 DEL DLGS. 163/2006;2419;2;2;1;10;8
BNP PARIBAS LEASE GROUP SA;07/08/2018;Noleggi di hardware;137,32;Liquidazione Fattura Nr. BMD49684 del 22/06/2018 - REIMPUTAZIONE IMPEGNI E VARIAZIONE FORNITORE PER NOLEGGIO STAMPANTE MULTIFUNZIONE PER SPORTELLO LAVORO SOVIGLIANA;2717;1;3;2;7;4
CONVERGE S.P.A.;07/08/2018;Noleggi di hardware;634,89;Liquidazione Fattura Nr. 204510 del 30/06/2018 - NOLEGGIO DI DUE MACCHINE MULTIFUNZIONE MEDIANTE ADESIONE A CONVENZIONE CONSIP - DETERMINA DI AFFIDAMENTO;2718;1;3;2;7;4
ARTMEDIASTUDIO DI V.CAPALBO E M.BERTOZZI ARCHITETTI;24/09/2018;Oggetti di valore;6.344,00;LIQUIDAZIONE FATTURA NR. 1 PA  DEL 17/04/2018 (DI CUI SPLIT PER EURO 1.144,00) - FORNITURA GENERICA;3739;2;2;1;11;1
BORGHINI E CINOTTI SRL;17/08/2018;Opere per la sistemazione del suolo;385,00;Liquidazione Fattura Nr. 41/PA  del 15/06/2018 (di cui Split per euro 35,00) - Giardino Via Toti - Via Manin - Opere elettriche - Saldo;3447;2;2;1;9;14
BORGHINI E CINOTTI SRL;17/08/2018;Opere per la sistemazione del suolo;10.539,56;Liquidazione Fattura Nr. 41/PA  del 15/06/2018 (di cui Split per euro 958,14) - Giardino Via Toti - Via Manin - Opere elettriche - Saldo;3448;2;2;1;9;14
AMMINISTRATORI COMUNALI;24/07/2018;Organi istituzionali dell'amministrazione - indennit�;8.330,37;stipendio 07;2520;1;3;2;1;1
AMMINISTRATORI COMUNALI;09/08/2018;Organi istituzionali dell'amministrazione - indennit�;8.330,37;stipendio 06;2924;1;3;2;1;1
AMMINISTRATORI COMUNALI;09/08/2018;Organi istituzionali dell'amministrazione - indennit�;988,32;Stipendio 06;2925;1;3;2;1;1
AMMINISTRATORI COMUNALI;09/08/2018;Organi istituzionali dell'amministrazione - indennit�;40,48;Stipendio 06;2926;1;3;2;1;1
AMMINISTRATORI COMUNALI;09/08/2018;Organi istituzionali dell'amministrazione - indennit�;217,76;Stipendio 06;2927;1;3;2;1;1
AMMINISTRATORI COMUNALI;09/08/2018;Organi istituzionali dell'amministrazione - indennit�;284,80;Stipendio 06;2928;1;3;2;1;1
AMMINISTRATORI COMUNALI;09/08/2018;Organi istituzionali dell'amministrazione - indennit�;1.153,04;Stipendio 06;2929;1;3;2;1;1
AMMINISTRATORI COMUNALI;13/08/2018;Organi istituzionali dell'amministrazione - indennit�;8.330,37;stipendio 08;3254;1;3;2;1;1
AMMINISTRATORI COMUNALI;25/09/2018;Organi istituzionali dell'amministrazione - indennit�;8.330,37;stipendio 09;3843;1;3;2;1;1
AMMINISTRATORI COMUNALI;13/08/2018;Organi istituzionali dell'amministrazione - Rimborsi ;393,10;Stipendi 08;3255;1;3;2;1;2
GIALLO MARE MINIMAL TEATRO;18/07/2018;Organizzazione e partecipazione a manifestazioni e convegni;15.000,00;LIQUIDAZIONE CONTRIBUTO PROGETTO DI RESIDENZA TEATRALE ANNO 2011;2408;1;3;2;2;5
GIALLO MARE MINIMAL TEATRO;18/07/2018;Organizzazione e partecipazione a manifestazioni e convegni;15.000,00;LIQUIDAZIONE CONTRIBUTO PROGETTO DI RESIDENZA TEATRALE ANNO 2013;2409;1;3;2;2;5
STUDIO LEGALE FALORNI - DE MEO S.S.;09/07/2018;Patrocinio legale;2.553,20;LIQUIDAZIONE FATTURA NR. 41/PA  DEL 01/06/2018 (DI CUI SPLIT PER EURO 343,20) - RICORSO TAR TOSCANA SRL COSTRUZIONI TOSCANE E ALTRI;2351;1;3;2;11;6
BARGELLINI CLAUDIO;21/08/2018;Patrocinio legale;1.205,36;LIQUIDAZIONE FATTURA NR. 1/PA  DEL 24/07/2018 - INCARICO DI DIFESA IN GIUDIZIO PIGNORAMENTO PRESSO TERZI, ISCRITTO AL N.R.G.E. 115/2017 DEL TRIBUNALE DI FIRENZE.;3520;1;3;2;11;6
STUDIO LEGALE FALORNI - DE MEO S.S.;21/08/2018;Patrocinio legale;450,00;LIQUIDAZIONE FATTURA NR. 54/PA  DEL 31/07/2018 - GIUDIZIO TRIBUNALE FIRENZE SIG. M. BENASSAI IMPEGNI DS1214 E DS11037 DEL 2015 (RIPORTATI AL 2018) (DELIBERE IN CARICO GC N. 174 E 2015 DEL 2013);3522;1;3;2;11;6
STUDIO LEGALE FALORNI - DE MEO S.S.;21/08/2018;Patrocinio legale;6.978,40;LIQUIDAZIONE FATTURA NR. 54/PA  DEL 31/07/2018 - GIUDIZIO TRIBUNALE FIRENZE SIG. M. BENASSAI IMPEGNI DS1214 E DS11037 DEL 2015 (RIPORTATI AL 2018) (DELIBERE INCARICO GC N. 174 E 2015 DEL 2013);3521;1;3;2;11;6
MAGGIOLI S.P.A.;31/07/2018;Pubblicazioni;78,00;PAGAMENTO BUONO ECONOMALE NR. 200051 - ACQUISTI TESTI E PUBBLICAZIONI PER GLI UFFICI;2658;1;3;1;1;2
CASALINI LIBRI S.P.A.;20/08/2018;Pubblicazioni;39,60;Liquidazione Fattura Nr. 18-22716 del 06/06/2018 - Acquisto risorse librarie;3489;1;3;1;1;2
CASALINI LIBRI S.P.A.;20/08/2018;Pubblicazioni;22,50;Liquidazione Fattura Nr. 18-23844  del 15/06/2018 - Acquisto risorse librarie;3490;1;3;1;1;2
ASSOCIAZIONE NAZIONALE CITTA' DEL VINO;07/08/2018;Quote di associazioni;200,00;QUOTA ADESIONE CALICI DI STELLE 2018;2724;1;3;2;99;3
ASSOCIAZIONE NAZIONALE CITTA' DEL VINO;07/08/2018;Quote di associazioni;1.919,70;QUOTA ASSOCIATIVA ANNUALE 2018;2723;1;3;2;99;3
ASSOCIAZIONE NAZIONALE CITTA' DELL'OLIO;07/08/2018;Quote di associazioni;1.561,78;QUOTA ASSOCIATIVA ANNUALE ANNO 2018;2725;1;3;2;99;3
CENTRO DI RICERCA DOCUMENTAZIONE E PROMOZIONE DEL PADULE DI FUCECCHIO;18/09/2018;Quote di associazioni;1.500,00;LIQUIDAZIONE QUOTA ASSOCIATIVA 2018 - CENTRO DI RICERCA E DOCUMENTAZIONE DEL PADULE DI FUCECCHIO;3686;1;3;2;99;3
PERSONALE DIPENDENTE SEDE;24/07/2018;Rimborso per viaggio e trasloco;330,72;stipendio 07;2460;1;3;2;2;1
PERSONALE DIPENDENTE SEDE;09/08/2018;Rimborso per viaggio e trasloco;172,80;stipendio 06;2806;1;3;2;2;1
PERSONALE DIPENDENTE SEDE;10/08/2018;Rimborso per viaggio e trasloco;85,80;stipendio 08;3188;1;3;2;2;1
COOPERATIVA SOCIALE ZOE S.C.A.R.L.;18/07/2018;Servizi di pulizia e lavanderia;154,60;Liquidazione Fattura Nr. FATTPA 259_18  del 31/05/2018 (di cui Split per euro 27,88) - PULIZIA BIBLIOTECHE APRILE 2018;2387;1;3;2;13;2
COOPERATIVA SOCIALE ZOE S.C.A.R.L.;18/07/2018;Servizi di pulizia e lavanderia;1.574,97;Liquidazione Fattura Nr. FATTPA 260_18  del 31/05/2018 (di cui Split per euro 284,01) - PULIZIA PALESTRE APRILE 2018;2388;1;3;2;13;2
COOPERATIVA SOCIALE ZOE S.C.A.R.L.;18/07/2018;Servizi di pulizia e lavanderia;1.352,74;Liquidazione Fattura Nr. FATTPA 286_18  del 31/05/2018 (di cui Split per euro 243,94) - PULIZIA PALESTRE MARZO 2018;2389;1;3;2;13;2
COOPERATIVA SOCIALE ZOE S.C.A.R.L.;08/08/2018;Servizi di pulizia e lavanderia;19,32;Liquidazione Fattura Nr. FATTPA 283_18  del 31/05/2018 (di cui Split per euro 3,48) - Pulizia Edifici comunali, Biblioteche e Nuovo UTU 2-5 mag 2018;2754;1;3;2;13;2
COOPERATIVA SOCIALE ZOE S.C.A.R.L.;08/08/2018;Servizi di pulizia e lavanderia;309,20;Liquidazione Fattura Nr. FATTPA 283_18  del 31/05/2018 (di cui Split per euro 55,76) - Pulizia Edifici comunali, Biblioteche e Nuovo UTU 2-5 mag 2018;2751;1;3;2;13;2
COOPERATIVA SOCIALE ZOE S.C.A.R.L.;08/08/2018;Servizi di pulizia e lavanderia;38,65;Liquidazione Fattura Nr. FATTPA 283_18  del 31/05/2018 (di cui Split per euro 6,97) - Pulizia Edifici comunali, Biblioteche e Nuovo UTU 2-5 mag 2018;2752;1;3;2;13;2
COOPERATIVA SOCIALE ZOE S.C.A.R.L.;08/08/2018;Servizi di pulizia e lavanderia;241,56;Liquidazione Fattura Nr. FATTPA 284_18  del 31/05/2018 (di cui Split per euro 43,56) - PULIZIA PALESTRE 2 MAG 5 MAG 2018;2753;1;3;2;13;2
COOPERATIVA SOCIALE ZOE S.C.A.R.L.;21/08/2018;Servizi di pulizia e lavanderia;1.595,61;Liquidazione Fattura Nr. FATTPA 350_18  del 30/06/2018 (di cui Split per euro 287,73) - pulizia edifici comunali 7 mag - 9 giu 2018;3511;1;3;2;13;2
COOPERATIVA SOCIALE ZOE S.C.A.R.L.;21/08/2018;Servizi di pulizia e lavanderia;189,95;Liquidazione Fattura Nr. FATTPA 352_18  del 30/06/2018 (di cui Split per euro 34,25) - pulizia biblioteche giugno 2018;3512;1;3;2;13;2
COOPERATIVA SOCIALE ZOE S.C.A.R.L.;21/08/2018;Servizi di pulizia e lavanderia;189,95;Liquidazione Fattura Nr. FATTPA 354_18  del 30/06/2018 (di cui Split per euro 34,25) - pulizia NUTU - 7 mag - 9 giu 2018;3513;1;3;2;13;2
COOPERATIVA SOCIALE ZOE S.C.A.R.L.;22/08/2018;Servizi di pulizia e lavanderia;9,80;Liquidazione Fattura Nr. FATTPA 377_18  del 31/07/2018 (di cui Split per euro 1,77) - ONERI SICUREZZA NUOVO UTU - GARA 7 MAG-9 GIU 2018;3532;1;3;2;13;2
COOPERATIVA SOCIALE ZOE S.C.A.R.L.;22/08/2018;Servizi di pulizia e lavanderia;1.979,54;Liquidazione Fattura Nr. FATTPA 396_18  del 31/07/2018 (di cui Split per euro 356,97) - PULIZIA PALESTRE + ONERI SICUREZZA RELATIVI - 7 MAG-9 GIU 2018;3531;1;3;2;13;2
COOPERATIVA SOCIALE ZOE S.C.A.R.L.;22/08/2018;Servizi di pulizia e lavanderia;88,21;Liquidazione Fattura Nr. FATTPA 399_18  del 31/07/2018 (di cui Split per euro 15,91) - ONERI SICUREZZA PULIZIA EDIFICI COMUNALI - GARA 7 MAG-9 GIU 2018;3529;1;3;2;13;2
COOPERATIVA SOCIALE ZOE S.C.A.R.L.;22/08/2018;Servizi di pulizia e lavanderia;9,80;Liquidazione Fattura Nr. FATTPA 401_18  del 31/07/2018 (di cui Split per euro 1,77) - ONERI SICUREZZA PULIZIA BIBLIOTECHE - GARA 7 MAG-9 GIU 2018;3530;1;3;2;13;2
TIM S.P.A. DIREZIONE E COORDINAMENTO VIVENDI SA;07/08/2018;Servizi di rete per trasmissione dati e VoIP e relativa manutenzione;951,33;Liquidazione Fattura Nr. 6820180620001841 del 15/06/2018 - FATTURAZIONE CONTRATTO RETE DATI RTRT3 - 2' TRIMESTRE 2018 - RIF.PROROGA TECNICA N.ADOZIONE 8557 DEL 16/06/2017;2682;1;3;2;19;4
TIM S.P.A. DIREZIONE E COORDINAMENTO VIVENDI SA;07/08/2018;Servizi di rete per trasmissione dati e VoIP e relativa manutenzione;157,94;Liquidazione Fattura Nr. 6820180620001841 del 15/06/2018 - FATTURAZIONE CONTRATTO RETE DATI RTRT3 - 2' TRIMESTRE 2018 - RIF.PROROGA TECNICA N.ADOZIONE 8557 DEL 16/06/2017;2683;1;3;2;19;4
TIM S.P.A. DIREZIONE E COORDINAMENTO VIVENDI SA;07/08/2018;Servizi di rete per trasmissione dati e VoIP e relativa manutenzione;123,30;Liquidazione Fattura Nr. 8L00421515 del 06/06/2018 - 4BIM 2018;2692;1;3;2;19;4
TIM S.P.A. DIREZIONE E COORDINAMENTO VIVENDI SA;07/08/2018;Servizi di rete per trasmissione dati e VoIP e relativa manutenzione;1,36;Liquidazione Fattura Nr. 8L00421515 del 06/06/2018 - 4BIM 2018;2693;1;3;2;19;4
TIM S.P.A. DIREZIONE E COORDINAMENTO VIVENDI SA;07/08/2018;Servizi di rete per trasmissione dati e VoIP e relativa manutenzione;124,92;Liquidazione Fattura Nr. 8L00422165 del 06/06/2018 - 4BIM 2018 Linea: 057113046758  via DELLA COSTITUENTE 14 - 50059 VINCI FI - Asilo;2691;1;3;2;19;4
TIM S.P.A. DIREZIONE E COORDINAMENTO VIVENDI SA;07/08/2018;Servizi di rete per trasmissione dati e VoIP e relativa manutenzione;124,66;Liquidazione Fattura Nr. 8L00422226 del 06/06/2018 - 4BIM 2018 Linea: 057113046158 via GIUSTI GIUSEPPE 56, 50059 VINCI FI;2690;1;3;2;19;4
TIM S.P.A. DIREZIONE E COORDINAMENTO VIVENDI SA;07/08/2018;Servizi di rete per trasmissione dati e VoIP e relativa manutenzione;82,96;Liquidazione Fattura Nr. 8L00422971 del 06/06/2018 - 4BIM 2018 Linea: 057113045291  Piazza GIUSEPPE GARIBALDI, 10 - 50059 VINCI FI;2696;1;3;2;19;4
TIM S.P.A. DIREZIONE E COORDINAMENTO VIVENDI SA;07/08/2018;Servizi di rete per trasmissione dati e VoIP e relativa manutenzione;124,66;Liquidazione Fattura Nr. 8L00423044 del 06/06/2018 - 4BIM 2018 Linea: 057113046155 via GUIDUCCI GUIDO, 9, 50059 VINCI FI;2695;1;3;2;19;4
TIM S.P.A. DIREZIONE E COORDINAMENTO VIVENDI SA;07/08/2018;Servizi di rete per trasmissione dati e VoIP e relativa manutenzione;124,66;Liquidazione Fattura Nr. 8L00423261 del 06/06/2018 - 4BIM 2018 Linea: 057113046159  Via PALMIRO TOGLIATTI, 51 - 50059 VINCI FI;2700;1;3;2;19;4
TIM S.P.A. DIREZIONE E COORDINAMENTO VIVENDI SA;07/08/2018;Servizi di rete per trasmissione dati e VoIP e relativa manutenzione;124,66;Liquidazione Fattura Nr. 8L00423911 del 06/06/2018 - 4BIM 2018 Linea: 057113046157 via LEONARDO DA VINCI, 2 -  50059 VINCI FI;2702;1;3;2;19;4
TIM S.P.A. DIREZIONE E COORDINAMENTO VIVENDI SA;07/08/2018;Servizi di rete per trasmissione dati e VoIP e relativa manutenzione;124,66;Liquidazione Fattura Nr. 8L00424970 del 06/06/2018 - 4BIM 2018 Linea: 057113046759  Piazza LEONARDO da Vinci 29 - 50059 VINCI;2685;1;3;2;19;4
TIM S.P.A. DIREZIONE E COORDINAMENTO VIVENDI SA;07/08/2018;Servizi di rete per trasmissione dati e VoIP e relativa manutenzione;225,36;Liquidazione Fattura Nr. 8L00425247 del 06/06/2018 - 4BIM 2018 Linea: 057113301214 Via BATTISTI CESARE 38 - 50059 VINCI HDSL;2686;1;3;2;19;4
TIM S.P.A. DIREZIONE E COORDINAMENTO VIVENDI SA;07/08/2018;Servizi di rete per trasmissione dati e VoIP e relativa manutenzione;112,24;Liquidazione Fattura Nr. 8L00425865 del 06/06/2018 - 4BIM 2018 057113045437  via DELLA LIBERTA' 20 - 50059 VINCI - Asilo nido;2706;1;3;2;19;4
TIM S.P.A. DIREZIONE E COORDINAMENTO VIVENDI SA;07/08/2018;Servizi di rete per trasmissione dati e VoIP e relativa manutenzione;82,96;Liquidazione Fattura Nr. 8L00425875 del 06/06/2018 - 4BIM 2018 Linea: 057113045436 via VAL DI SOLE, 4 50059 VINCI FI  Direzione didattica;2698;1;3;2;19;4
TIM S.P.A. DIREZIONE E COORDINAMENTO VIVENDI SA;07/08/2018;Servizi di rete per trasmissione dati e VoIP e relativa manutenzione;225,36;Liquidazione Fattura Nr. 8L00425950 del 06/06/2018 - 4BIM 2018 Linea: 057113301930 Piazza LEONARDO da Vinci 29 - 50059 VINCI HDSL;2684;1;3;2;19;4
TAMBURINI  GIONNI;07/08/2018;Spese per accertamenti sanitari resi necessari dall'attivit� lavorativa;130,00;LIQUIDAZIONE FATTURA NR. FATTPA 23_18  DEL 13/07/2018 - AFFIDAMENTO DEL SERVIZIO DI MEDICO COMPETENTE NELLE MORE DELL'ESPLETAMENTO DELLA PROCEDURA DI GARA;2709;1;3;2;18;1
GENERALI ITALIA SPA;06/07/2018;Spese per risarcimento danni;1.500,00;RIMBORSO SPESE PER FRANCHIGIE SU POLIZZE ASSICURATIVE;2342;1;10;5;2;1
GENERALI ITALIA SPA;09/07/2018;Spese per risarcimento danni;521,05;Regolamento polizze assicurative RC Patrimonilae e Kasko periodo 30.6.2017 - 31.12.2017;2344;1;10;5;2;1
GENERALI ITALIA SPA;20/09/2018;Spese per risarcimento danni;3.000,00;LIQUIDAZIONE FRANCHIGIE MAGGIO GIUGNO 2018 ;3691;1;10;5;2;1
ETRURIA P.A. SRL;20/08/2018;Spese per servizi finanziari n.a.c.;2.196,00;Liquidazione Fattura Nr. 1160/00000  del 06/07/2018 (di cui Split per euro 396,00) - ACQUISTO SOFTWARE DI CONVERSIONE PER CONNESSIONE A SIOPE+ MEDIANTE ODA SUL MEPA-DETERMINA A CONTRARRE E DI AFFIDAMENTO;3502;1;3;2;17;999
NEOPOST ITALIA - AFFRANCAPOSTA;08/08/2018;Spese postali;13.000,00;VERSAMENTO SU CONTO POSTALE INTESTATO A NEOPOST ITALIA SRL (provider di Poste Italiane) - esente IVA;2734;1;3;2;16;2
POSTE ITALIANE SPA SOCIETA' CON SOCIO UNICO;21/09/2018;Spese postali;6,50;PAGAMENTO BUONO ECONOMALE NR. 200062 - ASSEGNAZIONE PER SPEDIZIONI POSTALI URGENTI- RACC.A.R. URGENTE PER MALFUNZIONAMENTO AFFRANCATRICE;3730;1;3;2;16;2
UFFICIO TECNICA  SAS;31/07/2018;Stampa e rilegatura;81,50;PAGAMENTO BUONO ECONOMALE NR. 200040 - COPIE E RILEGATURE PER L'UFFICIO TECNICO-SCANSIONI E PLOTTAGGIO IN B/NE SALVATAGGIO SU CD;2653;1;3;2;13;4
TIM S.P.A. DIREZIONE E COORDINAMENTO VIVENDI SA;07/08/2018;Telefonia fissa;148,02;Liquidazione Fattura Nr. 4220618800010745 del 06/06/2018 - 4BIM 2018 Telefonia Fissa;2689;1;3;2;5;1
TIM S.P.A. DIREZIONE E COORDINAMENTO VIVENDI SA;07/08/2018;Telefonia fissa;119,47;Liquidazione Fattura Nr. 4220618800010745 del 06/06/2018 - 4BIM 2018 Telefonia Fissa;2694;1;3;2;5;1
TIM S.P.A. DIREZIONE E COORDINAMENTO VIVENDI SA;07/08/2018;Telefonia fissa;213,68;Liquidazione Fattura Nr. 4220618800010745 del 06/06/2018 - 4BIM 2018 Telefonia Fissa;2697;1;3;2;5;1
TIM S.P.A. DIREZIONE E COORDINAMENTO VIVENDI SA;07/08/2018;Telefonia fissa;234,91;Liquidazione Fattura Nr. 4220618800010745 del 06/06/2018 - 4BIM 2018 Telefonia Fissa;2699;1;3;2;5;1
TIM S.P.A. DIREZIONE E COORDINAMENTO VIVENDI SA;07/08/2018;Telefonia fissa;81,51;Liquidazione Fattura Nr. 4220618800010745 del 06/06/2018 - 4BIM 2018 Telefonia Fissa;2701;1;3;2;5;1
TIM S.P.A. DIREZIONE E COORDINAMENTO VIVENDI SA;07/08/2018;Telefonia fissa;47,58;Liquidazione Fattura Nr. 4220618800010745 del 06/06/2018 - 4BIM 2018 Telefonia Fissa;2703;1;3;2;5;1
TIM S.P.A. DIREZIONE E COORDINAMENTO VIVENDI SA;07/08/2018;Telefonia fissa;59,57;Liquidazione Fattura Nr. 4220618800010745 del 06/06/2018 - 4BIM 2018 Telefonia Fissa;2705;1;3;2;5;1
TIM S.P.A. DIREZIONE E COORDINAMENTO VIVENDI SA;07/08/2018;Telefonia fissa;35,38;Liquidazione Fattura Nr. 8L00424875 del 06/06/2018 - 4BIM 2018 Linea: 0571568036 via DELLA TORRE, 11 - 50059 VINCI FI;2704;1;3;2;5;1
TIM S.P.A. DIREZIONE E COORDINAMENTO VIVENDI SA;07/08/2018;Telefonia mobile;1.350,29;Liquidazione Fattura Nr. 4220618800010745 del 06/06/2018 - 4BIM 2018 Telefonia Fissa;2680;1;3;2;5;2
TIM S.P.A. DIREZIONE E COORDINAMENTO VIVENDI SA;07/08/2018;Telefonia mobile;364,83;Liquidazione Fattura Nr. 7X02219264 del 14/06/2018 - 4BIM 2018 Contratto n.: 888011328227 Offerta: CONVENZIONE PA 6;2681;1;3;2;5;2
TIM S.P.A. DIREZIONE E COORDINAMENTO VIVENDI SA;07/08/2018;Telefonia mobile;182,80;Liquidazione Fattura Nr. 7X02219264 del 14/06/2018 - 4BIM 2018 Contratto n.: 888011328227 Offerta: CONVENZIONE PA 6;2687;1;3;2;5;2
TIM S.P.A. DIREZIONE E COORDINAMENTO VIVENDI SA;07/08/2018;Telefonia mobile;706,42;Liquidazione Fattura Nr. 7X02219264 del 14/06/2018 - 4BIM 2018 Contratto n.: 888011328227 Offerta: CONVENZIONE PA 6;2688;1;3;2;5;2
FONDAZIONE IFEL ANCI;09/07/2018;Trasferimenti correnti a altre Amministrazioni Centrali n.a.c.;3.507,00;VERSAMENTO CONTRIBUTO OBBLIGATORIO SU RISCOSSIONE ICI 2002-2009;2354;1;4;1;1;999
AGENZIA DELLE ENTRATE - RISCOSSIONE;20/07/2018;Trasferimenti correnti a altre Amministrazioni Centrali n.a.c.;237,09;COMPENSAZIONE - REGOLARIZZAZIONE INCASSI COMPENSI  A SALDO - determinazione n. 7 del 31.01.18 settore 4 ;2431;1;4;1;1;999
FONDAZIONE IFEL ANCI;20/07/2018;Trasferimenti correnti a altre Amministrazioni Centrali n.a.c.;2.665,85;COMPENSAZIONE QUOTA IFEL SU INCASSI IMU ANNO 2017;2429;1;4;1;1;999
ATO TOSCANA CENTRO AUTORIT� PER IL SERVIZIO DI GESTIONE INTEGRATA DEI RIFIUTI UR;20/09/2018;Trasferimenti correnti a altre Amministrazioni Locali n.a.c.;1.265,75;SALDO SPESE DI FUNZIONAMENTO ATO TOSCANA CENTO - PROT.4375 DEL 230718  ;3692;1;4;1;2;999
TOSCANA ENERGIA GREEN S.P.A.;25/07/2018;Trasferimenti correnti a altre imprese;3.205,42;Liquidazione Fattura Nr. 37  del 31/05/2018 (di cui Split per euro 333,91) - Impianto fotovoltaico Via Guiducci - Tariffe incentivanti;2644;1;4;3;99;999
TOSCANA ENERGIA GREEN S.P.A.;25/07/2018;Trasferimenti correnti a altre imprese;54,62;Liquidazione Fattura Nr. 37  del 31/05/2018 (di cui Split per euro 5,69) - Impianto fotovoltaico Via Guiducci - Tariffe incentivanti;2645;1;4;3;99;999
TOSCANA ENERGIA GREEN S.P.A.;17/08/2018;Trasferimenti correnti a altre imprese;3.491,43;Liquidazione Fattura Nr. 70  del 27/06/2018 (di cui Split per euro 363,70) - Quota per impianto fotovoltaico scuola Via Guiducci;3481;1;4;3;99;999
CENTRO  FORMAZIONE E CULTURA MUSICALE;18/07/2018;Trasferimenti correnti a Istituzioni Sociali Private ;9.600,00;SALDO CONTRIBUTO ORDINARIO 2018;2410;1;4;4;1;1
CENTRO STUDI DISCIPLINE ORIENTALI;18/07/2018;Trasferimenti correnti a Istituzioni Sociali Private ;1.200,00;"LIQUIDAZIONE CONTRIBUTO PER LA REALIZZAZIONE DEL PROGETTO RIVOLTO ALLE SCUOLA DELL'INFANZIA DI VINCI ""IL NIDO DELLA FENICE""";2376;1;4;4;1;1
SCUOLA MATERNA PARROCCHIALE DON SERGIO CIONI;18/07/2018;Trasferimenti correnti a Istituzioni Sociali Private ;218,64;BUONI SCUOLA FINALIZZATI AL SOSTEGNO DELLE FAMIGLIE PER LA FREQUENZA DELLE SCUOLA PRIVATE PARITARIE (3-6 ANNI) A.S. 2017/2018 - LIQUIDAZIONE 2� TRANCHE (DA MARZO A GIUGNO 2018);2378;1;4;4;1;1
ASSOCIAZIONE VOLO DI CECCO SANTI;03/08/2018;Trasferimenti correnti a Istituzioni Sociali Private ;1.000,00;LIQUIDAZIONE ANTICIPO CONTRIBUTO PER ORGANIZZAZIONE VOLO CECCO SANTI FIERA LUGLIO;2668;1;4;4;1;1
CONFESERCENTI ZONA EMPOLESE VALDELSA;03/08/2018;Trasferimenti correnti a Istituzioni Sociali Private ;1.000,00;ANTICIPO SU CONTRIBUTO CONCESSO PER ORGANIZZAZIONE FIERA DI LUGLIO;2669;1;4;4;1;1
GRUPPO SPORTIVO MALTINTI LAMPADARI;03/08/2018;Trasferimenti correnti a Istituzioni Sociali Private ;4.000,00;ANTICIPO LIQUIDAZIONE CONTRIBUTO GARA CICLISTICA;2670;1;4;4;1;1
C.C.N. VINCINCENTRO;07/08/2018;Trasferimenti correnti a Istituzioni Sociali Private ;400,00;contributo epr organizzazione evento Donne e Motori;2722;1;4;4;1;1
PARROCCHIA DI SANTA MARIA A FALTOGNANO;07/08/2018;Trasferimenti correnti a Istituzioni Sociali Private ;1.500,00;CONCESSIONE CONTRIBUTO PER MANUTENZIONE LECCIO SECOLARE;2721;1;4;4;1;1
ASSOCIAZIONE RAGAZZI DI CERBAIOLA;08/08/2018;Trasferimenti correnti a Istituzioni Sociali Private ;700,00;"LIQUIDAZIONE CONTRIBUTO PER PROGETTO ""LA PACE""";2746;1;4;4;1;1
ASSOCIAZIONE VINCI NEL CUORE LI OMINI BONI DESIDERANO SAPERE;08/08/2018;Trasferimenti correnti a Istituzioni Sociali Private ;1.000,00;"LIQUIDAZIONE CONTRIBUTO PER EVENTI ""FESTA DELLA POESIA"" E ""I FATTI DI SANTA LUCIA""";2747;1;4;4;1;1
ASSOCIAZIONE CULTURALE ELICRISO;10/08/2018;Trasferimenti correnti a Istituzioni Sociali Private ;2.300,00;liquidazione contributo per 1� Festival fuciniano;3102;1;4;4;1;1
ASSOCIAZIONE CULTURALE ELICRISO;10/08/2018;Trasferimenti correnti a Istituzioni Sociali Private ;950,00;Liquidazione contributo per 1� festival fuciniano;3103;1;4;4;1;1
FONDAZIONE TOSCANA SPETTACOLO ONLUS;20/08/2018;Trasferimenti correnti a Istituzioni Sociali Private ;5.000,00;quota di compartecipazione alla rassegna teatro ragazzi 2018;3496;1;4;4;1;1
ATLETICA VINCI A.S.D.;21/08/2018;Trasferimenti correnti a Istituzioni Sociali Private ;250,00;"LIQUIDAZIONE CONTRIBUTO  PER EVENTO ""32� MARATONINA CITTA' DI VINCI";3507;1;4;4;1;1
ASSOCIAZIONE PRO LOCO VINCI;20/09/2018;Trasferimenti correnti a Istituzioni Sociali Private ;5.000,00;"liquidazione contributo per manifestazione ""Il Giorno di Leonardo""";3693;1;4;4;1;1
CONFESERCENTI ZONA EMPOLESE VALDELSA;20/09/2018;Trasferimenti correnti a Istituzioni Sociali Private ;3.600,00;liquidazione contributo concesso per organizzazione eventi fiera di luglio 2018;3723;1;4;4;1;1
CONSORZIO COLLINE DI VINCI;20/09/2018;Trasferimenti correnti a Istituzioni Sociali Private ;2.500,00;liquidazione contributo concesso per calici di stelle 2018;3725;1;4;4;1;1
MINISTERO DELL'INTERNO DIREZIONE CENTRALE PER I SERVIZI DEMOGRAFICI;09/07/2018;Trasferimenti correnti a Ministeri;1.477,52;LIQUIDAZIONE CARTA IDENTITA' ELETTRONICA 16.06.2018 - 30.06.2018;2352;1;4;1;1;1
MINISTERO DELL'INTERNO DIREZIONE CENTRALE PER I SERVIZI DEMOGRAFICI;08/08/2018;Trasferimenti correnti a Ministeri;1.561,47;Comune di Vinci, corrispettivo per rilascio di n. 93 carte d'identit� elettroniche dal 01.07.18 al 15.07.18;2733;1;4;1;1;1
MINISTERO DELL'INTERNO DIREZIONE CENTRALE PER I SERVIZI DEMOGRAFICI;14/08/2018;Trasferimenti correnti a Ministeri;2.132,33;Liquidazione CIE seconda quindicina luglio 2018;3421;1;4;1;1;1
MINISTERO DELL'INTERNO DIREZIONE CENTRALE PER I SERVIZI DEMOGRAFICI;18/09/2018;Trasferimenti correnti a Ministeri;1.645,42;LIQUIDAZIONE CIE DAL 16.08.2018 AL 31.08.2018;3687;1;4;1;1;1
ISTITUTO COMPRENSIVO DI VINCI;18/09/2018;Trasferimenti correnti a Ministero dell'Istruzione - Istituzioni scolastiche;1.000,00;CONTRIBUTI REGIONALI E COMUNALI P.E.Z. A.S. 2017/2018 -  LIQUIDAZIONE SECONDA PARTE CONTRIBUTI COMUNALI PER L'ORGANIZZAZIONE DELL'ISTITUTO COMPRENSIVO DI VINCI;3689;1;4;1;1;2
ISTITUTO COMPRENSIVO DI VINCI;18/09/2018;Trasferimenti correnti a Ministero dell'Istruzione - Istituzioni scolastiche;6.081,27;CONTRIBUTI REGIONALI E COMUNALI P.E.Z. A.S. 2017/2018 - LIQUIDAZIONE SECONDA PARTE CONTRIBUTI COMUNALI PER L'ORGANIZZAZIONE DELL'ISTITUTO COMPRENSIVO;3688;1;4;1;1;2
UNIONE DEI COMUNI CIRCONDARIO EMPOLESE VALDELSA;09/07/2018;Trasferimenti correnti a Unioni di Comuni;6.012,86;50%ACCONTO ANNO 2018: TRASFERIMENTO ALL'UNIONE DEI COMUNI DEL CIRCONDARIO PER LE FUNZIONI RELATIVE AD IMMIGRAZIONE . IMPEGNO DI SPESA ESERCIZIO 2018.;2360;1;4;1;2;5
UNIONE DEI COMUNI CIRCONDARIO EMPOLESE VALDELSA;09/07/2018;Trasferimenti correnti a Unioni di Comuni;12.531,49;50%ACCONTO ANNO 2018: TRASFERIMENTO ALL'UNIONE DEI COMUNI FUNZIONI RELATIVE A POLITICHE ABITATIVE. IMPEGNO DI SPESA ESERCIZIO 2018.;2359;1;4;1;2;5
UNIONE DEI COMUNI CIRCONDARIO EMPOLESE VALDELSA;09/07/2018;Trasferimenti correnti a Unioni di Comuni;301.869,40;50%ACCONTO ANNO 2018:TRASFERIMENTO ALL'UNIONE DEI COMUNI DEL CIRCONDARIO EMPOLESE VALDELSA PER LE FUNZIONI RELATIVE AD ATTIVITA' INERENTI I SERVIZI SOCIALI ASSISTENZIALI, IMMIGRAZIONE E POLITICHE ABITATIVE. IMPEGNI DI SPESA ESERCIZIO 2018.;2361;1;4;1;2;5
UNIONE DEI COMUNI CIRCONDARIO EMPOLESE VALDELSA;20/09/2018;Trasferimenti correnti a Unioni di Comuni;1.033,80;MANUTENZIONE VBG E PORTALE AIDA 2015 - DET. N. 64 DEL 03/08/18;3724;1;4;1;2;5
UNIONE DEI COMUNI CIRCONDARIO EMPOLESE VALDELSA;24/09/2018;Trasferimenti correnti a Unioni di Comuni;314.619,93;50%  ANNO 2017 PER LE FUNZIONI INERENTI I SERVIZI SOCIALI TRASFERIMENTO ALL'UNIONE DEI COMUNI DEL CIRCONDARIO EMPOLESE VALDELSA ;3743;1;4;1;2;5
UNIONE DEI COMUNI CIRCONDARIO EMPOLESE VALDELSA;24/09/2018;Trasferimenti correnti a Unioni di Comuni;6.012,86;ESERCIZIO 2017  PER LE FUNZIONI RELATIVE AD  IMMIGRAZIONE E POLITICHE ABITATIVE;3742;1;4;1;2;5
UNIONE DEI COMUNI CIRCONDARIO EMPOLESE VALDELSA;24/09/2018;Trasferimenti correnti a Unioni di Comuni;6.265,74;ESERCIZIO 2017 PER LE FUNZIONI RELATIVE AD  IMMIGRAZIONE E POLITICHE ABITATIVE. ;3741;1;4;1;2;5
ERARIO DELLO STATO PER PAGAMENTO I.V.A.;16/07/2018;Versamenti IVA a debito per le gestioni commerciali;14.069,57;PAGAMENTO IVA SU SERVIZI COMMERCIALI ESERCIZIO 2018 DEL MESE DI GIUGNO  A MEZZO F24EP ONLINE;2370;1;10;3;1;1
ERARIO DELLO STATO PER PAGAMENTO I.V.A.;06/08/2018;Versamenti IVA a debito per le gestioni commerciali;8.391,69;PAGAMENTO IVA SU SERVIZI COMMERCIALI ESERCIZIO 2018 MESE DI LUGLIO;2673;1;10;3;1;1
ERARIO DELLO STATO PER PAGAMENTO I.V.A.;13/09/2018;Versamenti IVA a debito per le gestioni commerciali;3.553,07;PAGAMENTO IVA SU SERVIZI COMMERCIALI ESERCIZIO 2018 MESE DI AGOSTO ;3575;1;10;3;1;1
